Organisation Name,Organisation Code,Date Paid,Transaction Number,Amount,Supplier Name,Supplier ID,Supplier post code (first 4 digits),Directorate,Service Area,General Ledger code Description,BVACOP class,Revenue/ Capital Spend
Wiltshire,http://opendatacommunities.org/id/unitary-authority/wiltshire,08/07/2016,1901752733,1367.74,1st Choice Cabs ,101285,SP4 ,Community Services,CTPLD Place CIC U65,Transport Contracts,Third Party Payments,REVENUE
Wiltshire,http://opendatacommunities.org/id/unitary-authority/wiltshire,25/07/2016,1901758423,1881.00,1st Choice Cabs ,101285,SP4 ,Neighbourhood & Planning,SEN Secondary,Transport Contracts,Third Party Payments,REVENUE
Wiltshire,http://opendatacommunities.org/id/unitary-authority/wiltshire,25/07/2016,1901758424,1871.50,1st Choice Cabs ,101285,SP4 ,Neighbourhood & Planning,SEN Secondary,Transport Contracts,Third Party Payments,REVENUE
Wiltshire,http://opendatacommunities.org/id/unitary-authority/wiltshire,25/07/2016,1901758425,2375.00,1st Choice Cabs ,101285,SP4 ,Neighbourhood & Planning,SEN Secondary,Transport Contracts,Third Party Payments,REVENUE
Wiltshire,http://opendatacommunities.org/id/unitary-authority/wiltshire,06/07/2016,1901752036,980.00,1st Choice Stairlifts ,113095,SN11,Wiltshire Council,Wiltshire Council,Payments to Contractors - Other,Third Party Payments,CAPITAL
Wiltshire,http://opendatacommunities.org/id/unitary-authority/wiltshire,06/07/2016,5106906379,700.00,1st Choice Stairlifts ,113095,SN11,Children & Education,CDT S&W,Other Social & Welfare Costs,Third Party Payments,REVENUE
Wiltshire,http://opendatacommunities.org/id/unitary-authority/wiltshire,11/07/2016,5106907115,2191.54,2 Care UK Ltd ,110002,BH7 ,Community Services,MH AOWA South Locali,Adult Residential Placements - Spot Purchase,Third Party Payments,REVENUE
Wiltshire,http://opendatacommunities.org/id/unitary-authority/wiltshire,27/07/2016,5106911664,2360.00,2 Care UK Ltd ,110002,BH7 ,Community Services,MH AOWA South Locali,Adult Residential Placements - Spot Purchase,Third Party Payments,REVENUE
Wiltshire,http://opendatacommunities.org/id/unitary-authority/wiltshire,27/07/2016,5106912795,2328.68,2 Care UK Ltd ,110002,BH7 ,Community Services,MH AOWA South Locali,Adult Residential Placements - Spot Purchase,Third Party Payments,REVENUE
Wiltshire,http://opendatacommunities.org/id/unitary-authority/wiltshire,27/07/2016,5106915621,2360.00,2 Care UK Ltd ,110002,BH7 ,Community Services,MH AOWA South Locali,Adult Residential Placements - Spot Purchase,Third Party Payments,REVENUE
Wiltshire,http://opendatacommunities.org/id/unitary-authority/wiltshire,27/07/2016,5106916159,1416.00,2 Care UK Ltd ,110002,BH7 ,Community Services,MH AOWA South Locali,Adult Residential Placements - Spot Purchase,Third Party Payments,REVENUE
Wiltshire,http://opendatacommunities.org/id/unitary-authority/wiltshire,27/07/2016,5106916160,944.00,2 Care UK Ltd ,110002,BH7 ,Community Services,Section 117-PCT Clnt,Adult Residential Placements - Spot Purchase,Third Party Payments,REVENUE
Wiltshire,http://opendatacommunities.org/id/unitary-authority/wiltshire,27/07/2016,5106916207,2360.00,2 Care UK Ltd ,110002,BH7 ,Community Services,MH AOWA South Locali,Adult Residential Placements - Spot Purchase,Third Party Payments,REVENUE
Wiltshire,http://opendatacommunities.org/id/unitary-authority/wiltshire,27/07/2016,5106913659,7353.16,22 Wingfield ,129621,BA14,Community Services,CTPLD Place CIC U65,Adult Residential Placements - Spot Purchase,Third Party Payments,REVENUE
Wiltshire,http://opendatacommunities.org/id/unitary-authority/wiltshire,27/07/2016,5106913729,5574.16,22 Wingfield ,129621,BA14,Community Services,MH AOWA North Locali,Adult Residential Placements - Spot Purchase,Third Party Payments,REVENUE
Wiltshire,http://opendatacommunities.org/id/unitary-authority/wiltshire,27/07/2016,5106914845,5781.92,22 Wingfield ,129621,BA14,Community Services,CTPLD Place CIC U65,Adult Residential Placements - Spot Purchase,Third Party Payments,REVENUE
Wiltshire,http://opendatacommunities.org/id/unitary-authority/wiltshire,06/07/2016,5106906480,453.79,24-7 Staffing ,140662,SN15,Community Services,Bradbury Manor Resp,Agency Staff,Employee Related,REVENUE
Wiltshire,http://opendatacommunities.org/id/unitary-authority/wiltshire,11/07/2016,5106907016,397.87,24-7 Staffing ,140662,SN15,Community Services,Bradbury Manor Resp,Agency Staff,Employee Related,REVENUE
Wiltshire,http://opendatacommunities.org/id/unitary-authority/wiltshire,11/07/2016,1901753186,1140.00,2get2 Taxi Services Ltd ,101102,SP1 ,Neighbourhood & Planning,SEN Primary,Transport Contracts,Third Party Payments,REVENUE
Wiltshire,http://opendatacommunities.org/id/unitary-authority/wiltshire,11/07/2016,1901753186,1140.00,2get2 Taxi Services Ltd ,101102,SP1 ,Neighbourhood & Planning,SEN Secondary,Transport Contracts,Third Party Payments,REVENUE
Wiltshire,http://opendatacommunities.org/id/unitary-authority/wiltshire,06/07/2016,5106894197,3714.00,4 Children ,113122,E14 ,Neighbourhood & Planning,Maternal Health Impr,Public Health Commissioning,Supplies and Services,REVENUE
Wiltshire,http://opendatacommunities.org/id/unitary-authority/wiltshire,27/07/2016,5106916601,1200.00,4 Children ,113122,E14 ,Children & Education,ACLTeamBud,Consultants� Fees,Supplies and Services,REVENUE
Wiltshire,http://opendatacommunities.org/id/unitary-authority/wiltshire,26/07/2016,1901758929,1242.79,A  and  S Private Hire ,101115,SN15,Neighbourhood & Planning,SEN Primary,Transport Contracts,Third Party Payments,REVENUE
Wiltshire,http://opendatacommunities.org/id/unitary-authority/wiltshire,22/07/2016,1901758034,665.00,A & P Taxis ,143342,SN12,Neighbourhood & Planning,SEN Secondary,Transport Contracts,Third Party Payments,REVENUE
Wiltshire,http://opendatacommunities.org/id/unitary-authority/wiltshire,22/07/2016,1901758042,1520.00,A & P Taxis ,143342,SN12,Neighbourhood & Planning,SEN Primary,Transport Contracts,Third Party Payments,REVENUE
Wiltshire,http://opendatacommunities.org/id/unitary-authority/wiltshire,14/07/2016,1901741660,268.00,A C E Supplies ,126284,BA15,Resources,County Hall Complex,Preventative Property Maintenance,Premises Related,REVENUE
Wiltshire,http://opendatacommunities.org/id/unitary-authority/wiltshire,05/07/2016,1901744498,493.03,A C E Supplies ,126284,BA15,Resources,County Hall Complex,Preventative Property Maintenance,Premises Related,REVENUE
Wiltshire,http://opendatacommunities.org/id/unitary-authority/wiltshire,01/07/2016,1901743900,300.00,A G Minibuses Ltd ,100878,BA12,Community Services,OVA West Locality,Transport Contracts,Third Party Payments,REVENUE
Wiltshire,http://opendatacommunities.org/id/unitary-authority/wiltshire,11/07/2016,1901753188,485.63,A G Minibuses Ltd ,100878,BA12,Neighbourhood & Planning,Connect 2 Wiltshire,Transport Contracts,Third Party Payments,REVENUE
Wiltshire,http://opendatacommunities.org/id/unitary-authority/wiltshire,11/07/2016,1901753190,997.50,A G Minibuses Ltd ,100878,BA12,Neighbourhood & Planning,Mainstream Primary,Transport Contracts,Third Party Payments,REVENUE
Wiltshire,http://opendatacommunities.org/id/unitary-authority/wiltshire,11/07/2016,1901753190,1588.52,A G Minibuses Ltd ,100878,BA12,Neighbourhood & Planning,Public Transport,Transport Contracts,Third Party Payments,REVENUE
Wiltshire,http://opendatacommunities.org/id/unitary-authority/wiltshire,11/07/2016,1901753190,1791.32,A G Minibuses Ltd ,100878,BA12,Neighbourhood & Planning,Connect 2 Wiltshire,Transport Contracts,Third Party Payments,REVENUE
Wiltshire,http://opendatacommunities.org/id/unitary-authority/wiltshire,18/07/2016,1901755243,4559.24,A G Minibuses Ltd ,100878,BA12,Neighbourhood & Planning,SEN Primary,Transport Contracts,Third Party Payments,REVENUE
Wiltshire,http://opendatacommunities.org/id/unitary-authority/wiltshire,18/07/2016,1901755245,678.55,A G Minibuses Ltd ,100878,BA12,Neighbourhood & Planning,SEN Primary,Transport Contracts,Third Party Payments,REVENUE
Wiltshire,http://opendatacommunities.org/id/unitary-authority/wiltshire,18/07/2016,1901755245,904.73,A G Minibuses Ltd ,100878,BA12,Children & Education,CDT S&W,Transport Contracts,Third Party Payments,REVENUE
Wiltshire,http://opendatacommunities.org/id/unitary-authority/wiltshire,18/07/2016,1901755245,2035.65,A G Minibuses Ltd ,100878,BA12,Neighbourhood & Planning,SEN Secondary,Transport Contracts,Third Party Payments,REVENUE
Wiltshire,http://opendatacommunities.org/id/unitary-authority/wiltshire,18/07/2016,1901755249,443.51,A G Minibuses Ltd ,100878,BA12,Neighbourhood & Planning,SEN 16+ Secondary,Transport Contracts,Third Party Payments,REVENUE
Wiltshire,http://opendatacommunities.org/id/unitary-authority/wiltshire,18/07/2016,1901755249,1330.53,A G Minibuses Ltd ,100878,BA12,Neighbourhood & Planning,SEN Secondary,Transport Contracts,Third Party Payments,REVENUE
Wiltshire,http://opendatacommunities.org/id/unitary-authority/wiltshire,18/07/2016,1901755249,1330.56,A G Minibuses Ltd ,100878,BA12,Neighbourhood & Planning,SEN Primary,Transport Contracts,Third Party Payments,REVENUE
Wiltshire,http://opendatacommunities.org/id/unitary-authority/wiltshire,18/07/2016,1901755250,688.12,A G Minibuses Ltd ,100878,BA12,Neighbourhood & Planning,SEN Secondary,Transport Contracts,Third Party Payments,REVENUE
Wiltshire,http://opendatacommunities.org/id/unitary-authority/wiltshire,18/07/2016,1901755250,1521.08,A G Minibuses Ltd ,100878,BA12,Neighbourhood & Planning,SEN Primary,Transport Contracts,Third Party Payments,REVENUE
Wiltshire,http://opendatacommunities.org/id/unitary-authority/wiltshire,18/07/2016,1901755251,535.17,A G Minibuses Ltd ,100878,BA12,Neighbourhood & Planning,SEN Secondary,Transport Contracts,Third Party Payments,REVENUE
Wiltshire,http://opendatacommunities.org/id/unitary-authority/wiltshire,18/07/2016,1901755251,1070.33,A G Minibuses Ltd ,100878,BA12,Neighbourhood & Planning,SEN Primary,Transport Contracts,Third Party Payments,REVENUE
Wiltshire,http://opendatacommunities.org/id/unitary-authority/wiltshire,25/07/2016,1901758420,1583.33,A G Minibuses Ltd ,100878,BA12,Neighbourhood & Planning,Mainstream Secondary,Transport Contracts,Third Party Payments,REVENUE
Wiltshire,http://opendatacommunities.org/id/unitary-authority/wiltshire,25/07/2016,1901758420,5246.76,A G Minibuses Ltd ,100878,BA12,Neighbourhood & Planning,Connect 2 Wiltshire,Transport Contracts,Third Party Payments,REVENUE
Wiltshire,http://opendatacommunities.org/id/unitary-authority/wiltshire,26/07/2016,1901758905,442.58,A G Minibuses Ltd ,100878,BA12,Neighbourhood & Planning,SEN Primary,Transport Contracts,Third Party Payments,REVENUE
Wiltshire,http://opendatacommunities.org/id/unitary-authority/wiltshire,26/07/2016,1901758905,1770.34,A G Minibuses Ltd ,100878,BA12,Neighbourhood & Planning,SEN Secondary,Transport Contracts,Third Party Payments,REVENUE
Wiltshire,http://opendatacommunities.org/id/unitary-authority/wiltshire,26/07/2016,1901758906,1744.62,A G Minibuses Ltd ,100878,BA12,Neighbourhood & Planning,Mainstream Primary,Transport Contracts,Third Party Payments,REVENUE
Wiltshire,http://opendatacommunities.org/id/unitary-authority/wiltshire,26/07/2016,1901758907,271.20,A G Minibuses Ltd ,100878,BA12,Neighbourhood & Planning,Mainstream Secondary,Transport Contracts,Third Party Payments,REVENUE
Wiltshire,http://opendatacommunities.org/id/unitary-authority/wiltshire,26/07/2016,1901758907,1717.59,A G Minibuses Ltd ,100878,BA12,Neighbourhood & Planning,Mainstream Primary,Transport Contracts,Third Party Payments,REVENUE
Wiltshire,http://opendatacommunities.org/id/unitary-authority/wiltshire,26/07/2016,1901758908,372.00,A G Minibuses Ltd ,100878,BA12,Community Services,OVA West Locality,Transport Contracts,Third Party Payments,REVENUE
Wiltshire,http://opendatacommunities.org/id/unitary-authority/wiltshire,26/07/2016,1901758909,1144.46,A G Minibuses Ltd ,100878,BA12,Neighbourhood & Planning,Mainstream Secondary,Transport Contracts,Third Party Payments,REVENUE
Wiltshire,http://opendatacommunities.org/id/unitary-authority/wiltshire,26/07/2016,1901758910,972.00,A G Minibuses Ltd ,100878,BA12,Neighbourhood & Planning,SEN Primary,Transport Contracts,Third Party Payments,REVENUE
Wiltshire,http://opendatacommunities.org/id/unitary-authority/wiltshire,26/07/2016,1901758910,972.00,A G Minibuses Ltd ,100878,BA12,Neighbourhood & Planning,SEN Secondary,Transport Contracts,Third Party Payments,REVENUE
Wiltshire,http://opendatacommunities.org/id/unitary-authority/wiltshire,26/07/2016,1901758911,1040.00,A G Minibuses Ltd ,100878,BA12,Community Services,MH OP South Locality,Transport Contracts,Third Party Payments,REVENUE
Wiltshire,http://opendatacommunities.org/id/unitary-authority/wiltshire,26/07/2016,1901758912,907.50,A G Minibuses Ltd ,100878,BA12,Community Services,CTPLD Place CIC U65,Transport Contracts,Third Party Payments,REVENUE
Wiltshire,http://opendatacommunities.org/id/unitary-authority/wiltshire,26/07/2016,1901758913,1544.36,A G Minibuses Ltd ,100878,BA12,Neighbourhood & Planning,SEN Secondary,Transport Contracts,Third Party Payments,REVENUE
Wiltshire,http://opendatacommunities.org/id/unitary-authority/wiltshire,26/07/2016,1901758914,1494.00,A G Minibuses Ltd ,100878,BA12,Neighbourhood & Planning,SEN Secondary,Transport Contracts,Third Party Payments,REVENUE
Wiltshire,http://opendatacommunities.org/id/unitary-authority/wiltshire,26/07/2016,1901758915,1662.50,A G Minibuses Ltd ,100878,BA12,Neighbourhood & Planning,Mainstream Primary,Transport Contracts,Third Party Payments,REVENUE
Wiltshire,http://opendatacommunities.org/id/unitary-authority/wiltshire,26/07/2016,1901758916,1072.00,A G Minibuses Ltd ,100878,BA12,Neighbourhood & Planning,Mainstream 16+ FE,Transport Contracts,Third Party Payments,REVENUE
Wiltshire,http://opendatacommunities.org/id/unitary-authority/wiltshire,26/07/2016,1901758917,1530.00,A G Minibuses Ltd ,100878,BA12,Neighbourhood & Planning,SEN Primary,Transport Contracts,Third Party Payments,REVENUE
Wiltshire,http://opendatacommunities.org/id/unitary-authority/wiltshire,26/07/2016,1901758919,662.40,A G Minibuses Ltd ,100878,BA12,Neighbourhood & Planning,SEN Primary,Transport Contracts,Third Party Payments,REVENUE
Wiltshire,http://opendatacommunities.org/id/unitary-authority/wiltshire,26/07/2016,1901758919,662.40,A G Minibuses Ltd ,100878,BA12,Neighbourhood & Planning,SEN Secondary,Transport Contracts,Third Party Payments,REVENUE
Wiltshire,http://opendatacommunities.org/id/unitary-authority/wiltshire,26/07/2016,1901758919,662.40,A G Minibuses Ltd ,100878,BA12,Neighbourhood & Planning,SEN 16+ Secondary,Transport Contracts,Third Party Payments,REVENUE
Wiltshire,http://opendatacommunities.org/id/unitary-authority/wiltshire,06/07/2016,5106906354,5860.00,A H Shorney Plant and Agricultural Hire,138694,SP5 ,Wiltshire Council,Wiltshire Council,Highways - Other Materials,Supplies and Services,CAPITAL
Wiltshire,http://opendatacommunities.org/id/unitary-authority/wiltshire,08/07/2016,1901752722,748.00,A1 Cab Company ,101233,SP4 ,Community Services,CTPLD Place CIC U65,Transport Contracts,Third Party Payments,REVENUE
Wiltshire,http://opendatacommunities.org/id/unitary-authority/wiltshire,08/07/2016,1901752723,675.00,A1 Cab Company ,101233,SP4 ,Neighbourhood & Planning,Mainstream Secondary,Transport Contracts,Third Party Payments,REVENUE
Wiltshire,http://opendatacommunities.org/id/unitary-authority/wiltshire,08/07/2016,1901752723,675.00,A1 Cab Company ,101233,SP4 ,Neighbourhood & Planning,SEN Secondary,Transport Contracts,Third Party Payments,REVENUE
Wiltshire,http://opendatacommunities.org/id/unitary-authority/wiltshire,25/07/2016,1901758435,1215.00,A1 Cab Company ,101233,SP4 ,Neighbourhood & Planning,SEN Primary,Transport Contracts,Third Party Payments,REVENUE
Wiltshire,http://opendatacommunities.org/id/unitary-authority/wiltshire,26/07/2016,1901758930,839.00,A1 Cab Company ,101233,SP4 ,Neighbourhood & Planning,SEN Secondary,Transport Contracts,Third Party Payments,REVENUE
Wiltshire,http://opendatacommunities.org/id/unitary-authority/wiltshire,26/07/2016,1901758930,1678.00,A1 Cab Company ,101233,SP4 ,Neighbourhood & Planning,SEN Primary,Transport Contracts,Third Party Payments,REVENUE
Wiltshire,http://opendatacommunities.org/id/unitary-authority/wiltshire,20/07/2016,1901755467,9824.55,A2 Winchester Ltd ,101167,SO23,Neighbourhood & Planning,Strategy & Enabling,Payments to Contractors - Other,Third Party Payments,REVENUE
Wiltshire,http://opendatacommunities.org/id/unitary-authority/wiltshire,08/07/2016,1901752720,297.50,Abbey Taxis (Swindon) Ltd ,100920,SN2 ,Neighbourhood & Planning,SEN 16+ FE Colleges,Transport Contracts,Third Party Payments,REVENUE
Wiltshire,http://opendatacommunities.org/id/unitary-authority/wiltshire,08/07/2016,1901752732,265.00,Abbey Taxis (Swindon) Ltd ,100920,SN2 ,Neighbourhood & Planning,SEN Primary,Transport Contracts,Third Party Payments,REVENUE
Wiltshire,http://opendatacommunities.org/id/unitary-authority/wiltshire,08/07/2016,1901752732,366.00,Abbey Taxis (Swindon) Ltd ,100920,SN2 ,Children & Education,Safeguarding Ass Nth,Transport Contracts,Third Party Payments,REVENUE
Wiltshire,http://opendatacommunities.org/id/unitary-authority/wiltshire,08/07/2016,1901752751,525.00,Abbey Taxis (Swindon) Ltd ,100920,SN2 ,Neighbourhood & Planning,SEN Secondary,Transport Contracts,Third Party Payments,REVENUE
Wiltshire,http://opendatacommunities.org/id/unitary-authority/wiltshire,08/07/2016,1901752756,810.00,Abbey Taxis (Swindon) Ltd ,100920,SN2 ,Community Services,CTPLD Place CIC U65,Transport Contracts,Third Party Payments,REVENUE
Wiltshire,http://opendatacommunities.org/id/unitary-authority/wiltshire,08/07/2016,1901752757,1520.00,Abbey Taxis (Swindon) Ltd ,100920,SN2 ,Neighbourhood & Planning,SEN Primary,Transport Contracts,Third Party Payments,REVENUE
Wiltshire,http://opendatacommunities.org/id/unitary-authority/wiltshire,08/07/2016,1901752759,807.50,Abbey Taxis (Swindon) Ltd ,100920,SN2 ,Neighbourhood & Planning,SEN Secondary,Transport Contracts,Third Party Payments,REVENUE
Wiltshire,http://opendatacommunities.org/id/unitary-authority/wiltshire,08/07/2016,1901752759,807.50,Abbey Taxis (Swindon) Ltd ,100920,SN2 ,Neighbourhood & Planning,SEN 16+ Secondary,Transport Contracts,Third Party Payments,REVENUE
Wiltshire,http://opendatacommunities.org/id/unitary-authority/wiltshire,08/07/2016,1901752760,2090.00,Abbey Taxis (Swindon) Ltd ,100920,SN2 ,Neighbourhood & Planning,SEN Secondary,Transport Contracts,Third Party Payments,REVENUE
Wiltshire,http://opendatacommunities.org/id/unitary-authority/wiltshire,08/07/2016,1901752762,950.00,Abbey Taxis (Swindon) Ltd ,100920,SN2 ,Neighbourhood & Planning,Mainstream Secondary,Transport Contracts,Third Party Payments,REVENUE
Wiltshire,http://opendatacommunities.org/id/unitary-authority/wiltshire,08/07/2016,1901752768,540.00,Abbey Taxis (Swindon) Ltd ,100920,SN2 ,Neighbourhood & Planning,Mainstream Primary,Transport Contracts,Third Party Payments,REVENUE
Wiltshire,http://opendatacommunities.org/id/unitary-authority/wiltshire,08/07/2016,1901752768,2160.00,Abbey Taxis (Swindon) Ltd ,100920,SN2 ,Neighbourhood & Planning,SEN Primary,Transport Contracts,Third Party Payments,REVENUE
Wiltshire,http://opendatacommunities.org/id/unitary-authority/wiltshire,08/07/2016,1901752769,722.00,Abbey Taxis (Swindon) Ltd ,100920,SN2 ,Neighbourhood & Planning,SEN Secondary,Transport Contracts,Third Party Payments,REVENUE
Wiltshire,http://opendatacommunities.org/id/unitary-authority/wiltshire,08/07/2016,1901752769,1140.00,Abbey Taxis (Swindon) Ltd ,100920,SN2 ,Neighbourhood & Planning,SEN Primary,Transport Contracts,Third Party Payments,REVENUE
Wiltshire,http://opendatacommunities.org/id/unitary-authority/wiltshire,08/07/2016,1901752770,1120.00,Abbey Taxis (Swindon) Ltd ,100920,SN2 ,Neighbourhood & Planning,SEN Primary,Transport Contracts,Third Party Payments,REVENUE
Wiltshire,http://opendatacommunities.org/id/unitary-authority/wiltshire,08/07/2016,1901752771,2128.00,Abbey Taxis (Swindon) Ltd ,100920,SN2 ,Neighbourhood & Planning,SEN 16+ Secondary,Transport Contracts,Third Party Payments,REVENUE
Wiltshire,http://opendatacommunities.org/id/unitary-authority/wiltshire,08/07/2016,1901752772,925.00,Abbey Taxis (Swindon) Ltd ,100920,SN2 ,Neighbourhood & Planning,SEN Primary,Transport Contracts,Third Party Payments,REVENUE
Wiltshire,http://opendatacommunities.org/id/unitary-authority/wiltshire,11/07/2016,1901753198,268.34,Abbey Taxis (Swindon) Ltd ,100920,SN2 ,Neighbourhood & Planning,SEN 16+ FE Colleges,Transport Contracts,Third Party Payments,REVENUE
Wiltshire,http://opendatacommunities.org/id/unitary-authority/wiltshire,11/07/2016,1901753198,421.66,Abbey Taxis (Swindon) Ltd ,100920,SN2 ,Children & Education,S&W 0-25 SEND Locali,Transport Contracts,Third Party Payments,REVENUE
Wiltshire,http://opendatacommunities.org/id/unitary-authority/wiltshire,11/07/2016,1901753202,638.55,Abbey Taxis (Swindon) Ltd ,100920,SN2 ,Neighbourhood & Planning,SEN Secondary,Transport Contracts,Third Party Payments,REVENUE
Wiltshire,http://opendatacommunities.org/id/unitary-authority/wiltshire,11/07/2016,1901753202,1596.45,Abbey Taxis (Swindon) Ltd ,100920,SN2 ,Neighbourhood & Planning,Mainstream Secondary,Transport Contracts,Third Party Payments,REVENUE
Wiltshire,http://opendatacommunities.org/id/unitary-authority/wiltshire,11/07/2016,1901753204,2124.00,Abbey Taxis (Swindon) Ltd ,100920,SN2 ,Neighbourhood & Planning,SEN Primary,Transport Contracts,Third Party Payments,REVENUE
Wiltshire,http://opendatacommunities.org/id/unitary-authority/wiltshire,11/07/2016,1901753208,700.00,Abbey Taxis (Swindon) Ltd ,100920,SN2 ,Neighbourhood & Planning,SEN Primary,Transport Contracts,Third Party Payments,REVENUE
Wiltshire,http://opendatacommunities.org/id/unitary-authority/wiltshire,12/07/2016,1901753358,258.00,Abbey Taxis (Swindon) Ltd ,100920,SN2 ,Neighbourhood & Planning,SEN Post 19,Transport Contracts,Third Party Payments,REVENUE
Wiltshire,http://opendatacommunities.org/id/unitary-authority/wiltshire,18/07/2016,1901755339,1344.00,Abbey Taxis (Swindon) Ltd ,100920,SN2 ,Neighbourhood & Planning,SEN Secondary,Transport Contracts,Third Party Payments,REVENUE
Wiltshire,http://opendatacommunities.org/id/unitary-authority/wiltshire,18/07/2016,1901755340,2175.12,Abbey Taxis (Swindon) Ltd ,100920,SN2 ,Neighbourhood & Planning,SEN Secondary,Transport Contracts,Third Party Payments,REVENUE
Wiltshire,http://opendatacommunities.org/id/unitary-authority/wiltshire,25/07/2016,1901758436,441.50,Abbey Taxis (Swindon) Ltd ,100920,SN2 ,Neighbourhood & Planning,Mainstream Primary,Transport Contracts,Third Party Payments,REVENUE
Wiltshire,http://opendatacommunities.org/id/unitary-authority/wiltshire,25/07/2016,1901758436,441.50,Abbey Taxis (Swindon) Ltd ,100920,SN2 ,Neighbourhood & Planning,SEN Secondary,Transport Contracts,Third Party Payments,REVENUE
Wiltshire,http://opendatacommunities.org/id/unitary-authority/wiltshire,25/07/2016,1901758436,1324.50,Abbey Taxis (Swindon) Ltd ,100920,SN2 ,Neighbourhood & Planning,SEN Primary,Transport Contracts,Third Party Payments,REVENUE
Wiltshire,http://opendatacommunities.org/id/unitary-authority/wiltshire,25/07/2016,1901758440,1190.00,Abbey Taxis (Swindon) Ltd ,100920,SN2 ,Neighbourhood & Planning,SEN Primary,Transport Contracts,Third Party Payments,REVENUE
Wiltshire,http://opendatacommunities.org/id/unitary-authority/wiltshire,25/07/2016,1901758443,1330.00,Abbey Taxis (Swindon) Ltd ,100920,SN2 ,Neighbourhood & Planning,Mainstream Primary,Transport Contracts,Third Party Payments,REVENUE
Wiltshire,http://opendatacommunities.org/id/unitary-authority/wiltshire,26/07/2016,1901758933,1897.50,Abbey Taxis (Swindon) Ltd ,100920,SN2 ,Neighbourhood & Planning,SEN Secondary,Transport Contracts,Third Party Payments,REVENUE
Wiltshire,http://opendatacommunities.org/id/unitary-authority/wiltshire,27/07/2016,1901759184,1900.00,Abbey Taxis (Swindon) Ltd ,100920,SN2 ,Neighbourhood & Planning,SEN Primary,Transport Contracts,Third Party Payments,REVENUE
Wiltshire,http://opendatacommunities.org/id/unitary-authority/wiltshire,27/07/2016,1901759185,836.00,Abbey Taxis (Swindon) Ltd ,100920,SN2 ,Neighbourhood & Planning,SEN Secondary,Transport Contracts,Third Party Payments,REVENUE
Wiltshire,http://opendatacommunities.org/id/unitary-authority/wiltshire,27/07/2016,1901759185,1254.00,Abbey Taxis (Swindon) Ltd ,100920,SN2 ,Neighbourhood & Planning,SEN Primary,Transport Contracts,Third Party Payments,REVENUE
Wiltshire,http://opendatacommunities.org/id/unitary-authority/wiltshire,18/07/2016,1901755315,960.00,Abbey Taxis Ltd ,101080,BA2 ,Neighbourhood & Planning,SEN Secondary,Transport Contracts,Third Party Payments,REVENUE
Wiltshire,http://opendatacommunities.org/id/unitary-authority/wiltshire,01/07/2016,1901744052,397.02,Abicare Services Ltd Homecare ,110031,SP2 ,Community Services,HTLAH - Neighbourhoo,Interim Support Plan - HTLAH,Third Party Payments,REVENUE
Wiltshire,http://opendatacommunities.org/id/unitary-authority/wiltshire,01/07/2016,1901744056,397.02,Abicare Services Ltd Homecare ,110031,SP2 ,Community Services,HTLAH - Neighbourhoo,Interim Support Plan - HTLAH,Third Party Payments,REVENUE
Wiltshire,http://opendatacommunities.org/id/unitary-authority/wiltshire,01/07/2016,1901744057,250.57,Abicare Services Ltd Homecare ,110031,SP2 ,Community Services,HTLAH - Neighbourhoo,Interim Support Plan - HTLAH,Third Party Payments,REVENUE
Wiltshire,http://opendatacommunities.org/id/unitary-authority/wiltshire,21/07/2016,1901757688,397.02,Abicare Services Ltd Homecare ,110031,SP2 ,Community Services,HTLAH - Neighbourhoo,Interim Support Plan - HTLAH,Third Party Payments,REVENUE
Wiltshire,http://opendatacommunities.org/id/unitary-authority/wiltshire,21/07/2016,1901757689,261.66,Abicare Services Ltd Homecare ,110031,SP2 ,Community Services,HTLAH - Neighbourhoo,Interim Support Plan - HTLAH,Third Party Payments,REVENUE
Wiltshire,http://opendatacommunities.org/id/unitary-authority/wiltshire,21/07/2016,1901757691,405.28,Abicare Services Ltd Homecare ,110031,SP2 ,Community Services,HTLAH - Neighbourhoo,Interim Support Plan - HTLAH,Third Party Payments,REVENUE
Wiltshire,http://opendatacommunities.org/id/unitary-authority/wiltshire,21/07/2016,1901757693,275.40,Abicare Services Ltd Homecare ,110031,SP2 ,Community Services,HTLAH - Neighbourhoo,Interim Support Plan - HTLAH,Third Party Payments,REVENUE
Wiltshire,http://opendatacommunities.org/id/unitary-authority/wiltshire,21/07/2016,1901757694,397.02,Abicare Services Ltd Homecare ,110031,SP2 ,Community Services,HTLAH - Neighbourhoo,Interim Support Plan - HTLAH,Third Party Payments,REVENUE
Wiltshire,http://opendatacommunities.org/id/unitary-authority/wiltshire,21/07/2016,1901757697,392.11,Abicare Services Ltd Homecare ,110031,SP2 ,Community Services,HTLAH - Neighbourhoo,Interim Support Plan - HTLAH,Third Party Payments,REVENUE
Wiltshire,http://opendatacommunities.org/id/unitary-authority/wiltshire,21/07/2016,1901757701,1134.00,Abicare Services Ltd Homecare ,110031,SP2 ,Community Services,HTLAH - Neighbourhoo,Interim Support Plan - HTLAH,Third Party Payments,REVENUE
Wiltshire,http://opendatacommunities.org/id/unitary-authority/wiltshire,01/07/2016,5106905651,512.33,Abicare Services Ltd Homecare ,110031,SP2 ,Community Services,Endless/St.A,Adult Domiciliary Care - Spot,Third Party Payments,REVENUE
Wiltshire,http://opendatacommunities.org/id/unitary-authority/wiltshire,01/07/2016,5106905652,512.33,Abicare Services Ltd Homecare ,110031,SP2 ,Community Services,Endless/St.A,Adult Domiciliary Care - Spot,Third Party Payments,REVENUE
Wiltshire,http://opendatacommunities.org/id/unitary-authority/wiltshire,01/07/2016,5106905657,723.38,Abicare Services Ltd Homecare ,110031,SP2 ,Community Services,CTPLD Place CIC U65,Adult Domiciliary Care - Live in Care,Third Party Payments,REVENUE
Wiltshire,http://opendatacommunities.org/id/unitary-authority/wiltshire,04/07/2016,5106905947,498.79,Abicare Services Ltd Homecare ,110031,SP2 ,Community Services,MH OP North Locality,Adult Domiciliary Care - Spot,Third Party Payments,REVENUE
Wiltshire,http://opendatacommunities.org/id/unitary-authority/wiltshire,04/07/2016,5106905949,539.81,Abicare Services Ltd Homecare ,110031,SP2 ,Community Services,BoA Cluster,Adult Domiciliary Care - Spot Contribution,Income,REVENUE
Wiltshire,http://opendatacommunities.org/id/unitary-authority/wiltshire,04/07/2016,5106905962,402.18,Abicare Services Ltd Homecare ,110031,SP2 ,Community Services,CTPLD Place CIC U65,Adult Domiciliary Care - Spot Contribution,Income,REVENUE
Wiltshire,http://opendatacommunities.org/id/unitary-authority/wiltshire,07/07/2016,5106906548,498.79,Abicare Services Ltd Homecare ,110031,SP2 ,Community Services,MH OP North Locality,Adult Domiciliary Care - Spot Contribution,Income,REVENUE
Wiltshire,http://opendatacommunities.org/id/unitary-authority/wiltshire,07/07/2016,5106906560,539.81,Abicare Services Ltd Homecare ,110031,SP2 ,Community Services,BoA Cluster,Adult Domiciliary Care - Spot Contribution,Income,REVENUE
Wiltshire,http://opendatacommunities.org/id/unitary-authority/wiltshire,07/07/2016,5106906561,402.18,Abicare Services Ltd Homecare ,110031,SP2 ,Community Services,CTPLD Place CIC U65,Adult Domiciliary Care - Spot Contribution,Income,REVENUE
Wiltshire,http://opendatacommunities.org/id/unitary-authority/wiltshire,13/07/2016,5106907639,512.33,Abicare Services Ltd Homecare ,110031,SP2 ,Community Services,Endless/St.A,Adult Domiciliary Care - Spot,Third Party Payments,REVENUE
Wiltshire,http://opendatacommunities.org/id/unitary-authority/wiltshire,13/07/2016,5106907655,723.38,Abicare Services Ltd Homecare ,110031,SP2 ,Community Services,CTPLD Place CIC U65,Adult Domiciliary Care - Live in Care,Third Party Payments,REVENUE
Wiltshire,http://opendatacommunities.org/id/unitary-authority/wiltshire,13/07/2016,5106907656,402.18,Abicare Services Ltd Homecare ,110031,SP2 ,Community Services,CTPLD Place CIC U65,Adult Domiciliary Care - Spot Contribution,Income,REVENUE
Wiltshire,http://opendatacommunities.org/id/unitary-authority/wiltshire,14/07/2016,5106908505,498.79,Abicare Services Ltd Homecare ,110031,SP2 ,Community Services,MH OP North Locality,Adult Domiciliary Care - Spot Contribution,Income,REVENUE
Wiltshire,http://opendatacommunities.org/id/unitary-authority/wiltshire,14/07/2016,5106908513,539.81,Abicare Services Ltd Homecare ,110031,SP2 ,Community Services,BoA Cluster,Adult Domiciliary Care - Spot Contribution,Income,REVENUE
Wiltshire,http://opendatacommunities.org/id/unitary-authority/wiltshire,14/07/2016,5106908514,742.34,Abicare Services Ltd Homecare ,110031,SP2 ,Community Services,MH OP North Locality,Adult Domiciliary care - Live in contribution,Income,REVENUE
Wiltshire,http://opendatacommunities.org/id/unitary-authority/wiltshire,20/07/2016,5106910452,742.34,Abicare Services Ltd Homecare ,110031,SP2 ,Community Services,MH OP North Locality,Adult Domiciliary care - Live in contribution,Income,REVENUE
Wiltshire,http://opendatacommunities.org/id/unitary-authority/wiltshire,29/07/2016,5106918988,742.34,Abicare Services Ltd Homecare ,110031,SP2 ,Community Services,MH OP North Locality,Adult Domiciliary care - Live in contribution,Income,REVENUE
Wiltshire,http://opendatacommunities.org/id/unitary-authority/wiltshire,29/07/2016,5106919101,402.65,Abicare Services Ltd Homecare ,110031,SP2 ,Community Services,CTPLD Place CIC U65,Adult Domiciliary Care - Spot Contribution,Income,REVENUE
Wiltshire,http://opendatacommunities.org/id/unitary-authority/wiltshire,29/07/2016,5106919102,402.18,Abicare Services Ltd Homecare ,110031,SP2 ,Community Services,CTPLD Place CIC U65,Adult Domiciliary Care - Spot Contribution,Income,REVENUE
Wiltshire,http://opendatacommunities.org/id/unitary-authority/wiltshire,29/07/2016,5106919103,723.38,Abicare Services Ltd Homecare ,110031,SP2 ,Community Services,CTPLD Place CIC U65,Adult Domiciliary Care - Live in Care,Third Party Payments,REVENUE
Wiltshire,http://opendatacommunities.org/id/unitary-authority/wiltshire,29/07/2016,5106919104,723.38,Abicare Services Ltd Homecare ,110031,SP2 ,Community Services,CTPLD Place CIC U65,Adult Domiciliary Care - Live in Care,Third Party Payments,REVENUE
Wiltshire,http://opendatacommunities.org/id/unitary-authority/wiltshire,01/07/2016,5106905654,822.78,Abicare Services Ltd Live in Care. ,113071,SP2 ,Community Services,Orchard,Adult Domiciliary Care - Live in Care,Third Party Payments,REVENUE
Wiltshire,http://opendatacommunities.org/id/unitary-authority/wiltshire,01/07/2016,5106905655,748.98,Abicare Services Ltd Live in Care. ,113071,SP2 ,Community Services,Endless/St.A,Adult Domiciliary care - Live in contribution,Income,REVENUE
Wiltshire,http://opendatacommunities.org/id/unitary-authority/wiltshire,01/07/2016,5106905656,768.48,Abicare Services Ltd Live in Care. ,113071,SP2 ,Community Services,OVA North Locality,Adult Domiciliary care - Live in contribution,Income,REVENUE
Wiltshire,http://opendatacommunities.org/id/unitary-authority/wiltshire,01/07/2016,5106905658,785.92,Abicare Services Ltd Live in Care. ,113071,SP2 ,Community Services,Endless/St.A,Adult Domiciliary care - Live in contribution,Income,REVENUE
Wiltshire,http://opendatacommunities.org/id/unitary-authority/wiltshire,01/07/2016,5106905659,711.37,Abicare Services Ltd Live in Care. ,113071,SP2 ,Community Services,MH OP North Locality,Adult Domiciliary care - Live in contribution,Income,REVENUE
Wiltshire,http://opendatacommunities.org/id/unitary-authority/wiltshire,01/07/2016,5106905670,708.90,Abicare Services Ltd Live in Care. ,113071,SP2 ,Community Services,Southbroom,Adult Domiciliary care - Live in contribution,Income,REVENUE
Wiltshire,http://opendatacommunities.org/id/unitary-authority/wiltshire,01/07/2016,5106905671,822.78,Abicare Services Ltd Live in Care. ,113071,SP2 ,Community Services,Salisbury,Adult Domiciliary Care - Live in Care,Third Party Payments,REVENUE
Wiltshire,http://opendatacommunities.org/id/unitary-authority/wiltshire,04/07/2016,5106905963,619.59,Abicare Services Ltd Live in Care. ,113071,SP2 ,Community Services,East Locality OP,Adult Domiciliary care - Live in contribution,Income,REVENUE
Wiltshire,http://opendatacommunities.org/id/unitary-authority/wiltshire,13/07/2016,5106907640,822.78,Abicare Services Ltd Live in Care. ,113071,SP2 ,Community Services,Orchard,Adult Domiciliary Care - Live in Care,Third Party Payments,REVENUE
Wiltshire,http://opendatacommunities.org/id/unitary-authority/wiltshire,13/07/2016,5106907641,748.98,Abicare Services Ltd Live in Care. ,113071,SP2 ,Community Services,Endless/St.A,Adult Domiciliary care - Live in contribution,Income,REVENUE
Wiltshire,http://opendatacommunities.org/id/unitary-authority/wiltshire,13/07/2016,5106907642,768.48,Abicare Services Ltd Live in Care. ,113071,SP2 ,Community Services,OVA North Locality,Adult Domiciliary care - Live in contribution,Income,REVENUE
Wiltshire,http://opendatacommunities.org/id/unitary-authority/wiltshire,13/07/2016,5106907643,785.92,Abicare Services Ltd Live in Care. ,113071,SP2 ,Community Services,Endless/St.A,Adult Domiciliary care - Live in contribution,Income,REVENUE
Wiltshire,http://opendatacommunities.org/id/unitary-authority/wiltshire,13/07/2016,5106907644,711.37,Abicare Services Ltd Live in Care. ,113071,SP2 ,Community Services,MH OP North Locality,Adult Domiciliary care - Live in contribution,Income,REVENUE
Wiltshire,http://opendatacommunities.org/id/unitary-authority/wiltshire,13/07/2016,5106907645,708.90,Abicare Services Ltd Live in Care. ,113071,SP2 ,Community Services,Southbroom,Adult Domiciliary care - Live in contribution,Income,REVENUE
Wiltshire,http://opendatacommunities.org/id/unitary-authority/wiltshire,13/07/2016,5106907646,822.78,Abicare Services Ltd Live in Care. ,113071,SP2 ,Community Services,Salisbury,Adult Domiciliary Care - Live in Care,Third Party Payments,REVENUE
Wiltshire,http://opendatacommunities.org/id/unitary-authority/wiltshire,13/07/2016,5106907647,619.59,Abicare Services Ltd Live in Care. ,113071,SP2 ,Community Services,Lansdown,Adult Domiciliary care - Live in contribution,Income,REVENUE
Wiltshire,http://opendatacommunities.org/id/unitary-authority/wiltshire,18/07/2016,5106908897,764.01,Abicare Services Ltd Live in Care. ,113071,SP2 ,Community Services,CTPLD Place CIC U65,Adult Domiciliary Care - Live in Care,Third Party Payments,REVENUE
Wiltshire,http://opendatacommunities.org/id/unitary-authority/wiltshire,18/07/2016,5106908898,822.78,Abicare Services Ltd Live in Care. ,113071,SP2 ,Community Services,CTPLD Place CIC U65,Adult Domiciliary Care - Live in Care,Third Party Payments,REVENUE
Wiltshire,http://opendatacommunities.org/id/unitary-authority/wiltshire,18/07/2016,5106908899,822.78,Abicare Services Ltd Live in Care. ,113071,SP2 ,Community Services,CTPLD Place CIC U65,Adult Domiciliary Care - Live in Care,Third Party Payments,REVENUE
Wiltshire,http://opendatacommunities.org/id/unitary-authority/wiltshire,18/07/2016,5106908900,822.78,Abicare Services Ltd Live in Care. ,113071,SP2 ,Community Services,CTPLD Place CIC U65,Adult Domiciliary Care - Live in Care,Third Party Payments,REVENUE
Wiltshire,http://opendatacommunities.org/id/unitary-authority/wiltshire,18/07/2016,5106908901,822.78,Abicare Services Ltd Live in Care. ,113071,SP2 ,Community Services,CTPLD Place CIC U65,Adult Domiciliary Care - Live in Care,Third Party Payments,REVENUE
Wiltshire,http://opendatacommunities.org/id/unitary-authority/wiltshire,18/07/2016,5106908904,646.47,Abicare Services Ltd Live in Care. ,113071,SP2 ,Community Services,CTPLD Place CIC U65,Adult Domiciliary Care - Live in Care,Third Party Payments,REVENUE
Wiltshire,http://opendatacommunities.org/id/unitary-authority/wiltshire,18/07/2016,5106908905,822.78,Abicare Services Ltd Live in Care. ,113071,SP2 ,Community Services,CTPLD Place CIC U65,Adult Domiciliary Care - Live in Care,Third Party Payments,REVENUE
Wiltshire,http://opendatacommunities.org/id/unitary-authority/wiltshire,18/07/2016,5106908907,822.78,Abicare Services Ltd Live in Care. ,113071,SP2 ,Community Services,CTPLD Place CIC U65,Adult Domiciliary Care - Live in Care,Third Party Payments,REVENUE
Wiltshire,http://opendatacommunities.org/id/unitary-authority/wiltshire,18/07/2016,5106908908,822.78,Abicare Services Ltd Live in Care. ,113071,SP2 ,Community Services,CTPLD Place CIC U65,Adult Domiciliary Care - Live in Care,Third Party Payments,REVENUE
Wiltshire,http://opendatacommunities.org/id/unitary-authority/wiltshire,18/07/2016,5106908909,822.78,Abicare Services Ltd Live in Care. ,113071,SP2 ,Community Services,CTPLD Place CIC U65,Adult Domiciliary Care - Live in Care,Third Party Payments,REVENUE
Wiltshire,http://opendatacommunities.org/id/unitary-authority/wiltshire,18/07/2016,5106908910,293.85,Abicare Services Ltd Live in Care. ,113071,SP2 ,Community Services,CTPLD Place CIC U65,Adult Domiciliary Care - Live in Care,Third Party Payments,REVENUE
Wiltshire,http://opendatacommunities.org/id/unitary-authority/wiltshire,22/07/2016,5106911095,619.59,Abicare Services Ltd Live in Care. ,113071,SP2 ,Community Services,East Locality OP,Adult Domiciliary care - Live in contribution,Income,REVENUE
Wiltshire,http://opendatacommunities.org/id/unitary-authority/wiltshire,22/07/2016,5106911096,619.59,Abicare Services Ltd Live in Care. ,113071,SP2 ,Community Services,East Locality OP,Adult Domiciliary Care - Live in Care,Third Party Payments,REVENUE
Wiltshire,http://opendatacommunities.org/id/unitary-authority/wiltshire,29/07/2016,5106919112,768.48,Abicare Services Ltd Live in Care. ,113071,SP2 ,Community Services,OVA North Locality,Adult Domiciliary care - Live in contribution,Income,REVENUE
Wiltshire,http://opendatacommunities.org/id/unitary-authority/wiltshire,27/07/2016,5106906831,4110.00,Ability Associates Ltd ,110033,SP3 ,Community Services,CTPLD Place CIC U65,Supported Living - Without SP payments,Third Party Payments,REVENUE
Wiltshire,http://opendatacommunities.org/id/unitary-authority/wiltshire,27/07/2016,5106906833,2585.00,Ability Associates Ltd ,110033,SP3 ,Community Services,CTPLD Place CIC U65,Supported Living - Without SP payments,Third Party Payments,REVENUE
Wiltshire,http://opendatacommunities.org/id/unitary-authority/wiltshire,27/07/2016,5106913033,6472.24,Ability Associates Ltd ,110033,SP3 ,Community Services,CTPLD Place CIC U65,Adult Residential Placements - Spot Purchase,Third Party Payments,REVENUE
Wiltshire,http://opendatacommunities.org/id/unitary-authority/wiltshire,27/07/2016,5106913061,4669.56,Ability Associates Ltd ,110033,SP3 ,Community Services,CTPLD Place CIC U65,Adult Residential Placements - Spot Purchase,Third Party Payments,REVENUE
Wiltshire,http://opendatacommunities.org/id/unitary-authority/wiltshire,27/07/2016,5106913085,6537.84,Ability Associates Ltd ,110033,SP3 ,Community Services,CTPLD Place CIC U65,Adult Residential Placements - Spot Purchase,Third Party Payments,REVENUE
Wiltshire,http://opendatacommunities.org/id/unitary-authority/wiltshire,27/07/2016,5106913319,6779.56,Ability Associates Ltd ,110033,SP3 ,Community Services,CTPLD Place CIC U65,Adult Residential Placements - Spot Purchase,Third Party Payments,REVENUE
Wiltshire,http://opendatacommunities.org/id/unitary-authority/wiltshire,27/07/2016,5106906808,425.32,ABLE ,101029,BA14,Community Services,MH AOWA North Locali,Supported Living - Without SP payments,Third Party Payments,REVENUE
Wiltshire,http://opendatacommunities.org/id/unitary-authority/wiltshire,27/07/2016,5106906810,425.32,ABLE ,101029,BA14,Community Services,MH PCT Section 256,Supported Living - Without SP payments,Third Party Payments,REVENUE
Wiltshire,http://opendatacommunities.org/id/unitary-authority/wiltshire,12/07/2016,5106907534,2022.44,ABLE ,101029,BA14,Community Services,MH Commissioned Cont,Grants Paid to individuals for Tangible Benefits,Supplies and Services,REVENUE
Wiltshire,http://opendatacommunities.org/id/unitary-authority/wiltshire,12/07/2016,5106907536,1227.40,ABLE ,101029,BA14,Community Services,MH Commissioned Cont,Grants Paid to individuals for Tangible Benefits,Supplies and Services,REVENUE
Wiltshire,http://opendatacommunities.org/id/unitary-authority/wiltshire,28/07/2016,5106918738,364.56,ABLE ,101029,BA14,Community Services,MH AOWA North Locali,Supported Living - Without SP payments,Third Party Payments,REVENUE
Wiltshire,http://opendatacommunities.org/id/unitary-authority/wiltshire,28/07/2016,5106918739,273.42,ABLE ,101029,BA14,Community Services,MH AOWA North Locali,Supported Living - Without SP payments,Third Party Payments,REVENUE
Wiltshire,http://opendatacommunities.org/id/unitary-authority/wiltshire,28/07/2016,5106918821,425.32,ABLE ,101029,BA14,Community Services,MH AOWA North Locali,Supported Living - Without SP payments,Third Party Payments,REVENUE
Wiltshire,http://opendatacommunities.org/id/unitary-authority/wiltshire,28/07/2016,5106918822,425.32,ABLE ,101029,BA14,Community Services,MH AOWA North Locali,Supported Living - Without SP payments,Third Party Payments,REVENUE
Wiltshire,http://opendatacommunities.org/id/unitary-authority/wiltshire,28/07/2016,5106918823,425.32,ABLE ,101029,BA14,Community Services,MH AOWA North Locali,Supported Living - Without SP payments,Third Party Payments,REVENUE
Wiltshire,http://opendatacommunities.org/id/unitary-authority/wiltshire,28/07/2016,5106918824,425.32,ABLE ,101029,BA14,Community Services,MH AOWA North Locali,Supported Living - Without SP payments,Third Party Payments,REVENUE
Wiltshire,http://opendatacommunities.org/id/unitary-authority/wiltshire,27/07/2016,5106912444,2772.20,ABLE ,110034,BA14,Community Services,MH AOWA North Locali,Adult Residential Placements - Spot Purchase,Third Party Payments,REVENUE
Wiltshire,http://opendatacommunities.org/id/unitary-authority/wiltshire,27/07/2016,5106912460,2527.04,ABLE ,110034,BA14,Community Services,MH PCT Section 256,Adult Residential Placements - Spot Purchase,Third Party Payments,REVENUE
Wiltshire,http://opendatacommunities.org/id/unitary-authority/wiltshire,27/07/2016,5106912464,2844.12,ABLE ,110034,BA14,Community Services,MH AOWA North Locali,Adult Residential Placements - Spot Purchase,Third Party Payments,REVENUE
Wiltshire,http://opendatacommunities.org/id/unitary-authority/wiltshire,08/07/2016,5106897577,846.00,Academy21 Ltd ,136859,SG1 ,Children & Education,EOTAS Service,Educational Fees,Supplies and Services,REVENUE
Wiltshire,http://opendatacommunities.org/id/unitary-authority/wiltshire,11/07/2016,5106907041,2813.44,Access Care Ltd ,110037,SP10,Community Services,Marlborough,Adult Domiciliary Care - Live in Care,Third Party Payments,REVENUE
Wiltshire,http://opendatacommunities.org/id/unitary-authority/wiltshire,11/07/2016,5106907042,2540.44,Access Care Ltd ,110037,SP10,Community Services,Downton,Adult Domiciliary care - Live in contribution,Income,REVENUE
Wiltshire,http://opendatacommunities.org/id/unitary-authority/wiltshire,27/07/2016,5106916618,2528.40,Access Care Ltd ,110037,SP10,Community Services,South Locality OP,Adult Domiciliary care - Live in contribution,Income,REVENUE
Wiltshire,http://opendatacommunities.org/id/unitary-authority/wiltshire,18/07/2016,5106908875,4000.00,Access Intelligence Media and Communications Limited,125087,EC1M,Resources,InternalCommunicats,Publications / periodicals,Supplies and Services,REVENUE
Wiltshire,http://opendatacommunities.org/id/unitary-authority/wiltshire,12/07/2016,1901753354,1805.00,Ace Cabs ,139613,BA12,Neighbourhood & Planning,SEN Primary,Transport Contracts,Third Party Payments,REVENUE
Wiltshire,http://opendatacommunities.org/id/unitary-authority/wiltshire,12/07/2016,1901753355,509.20,Ace Cabs ,139613,BA12,Neighbourhood & Planning,SEN 16+ FE Colleges,Transport Contracts,Third Party Payments,REVENUE
Wiltshire,http://opendatacommunities.org/id/unitary-authority/wiltshire,12/07/2016,1901753355,1018.40,Ace Cabs ,139613,BA12,Neighbourhood & Planning,SEN Secondary,Transport Contracts,Third Party Payments,REVENUE
Wiltshire,http://opendatacommunities.org/id/unitary-authority/wiltshire,12/07/2016,1901753355,1018.40,Ace Cabs ,139613,BA12,Neighbourhood & Planning,SEN 16+ Secondary,Transport Contracts,Third Party Payments,REVENUE
Wiltshire,http://opendatacommunities.org/id/unitary-authority/wiltshire,12/07/2016,1901753356,288.80,Ace Cabs ,139613,BA12,Neighbourhood & Planning,SEN Post 19,Transport Contracts,Third Party Payments,REVENUE
Wiltshire,http://opendatacommunities.org/id/unitary-authority/wiltshire,12/07/2016,1901753356,927.20,Ace Cabs ,139613,BA12,Neighbourhood & Planning,SEN 16+ Secondary,Transport Contracts,Third Party Payments,REVENUE
Wiltshire,http://opendatacommunities.org/id/unitary-authority/wiltshire,22/07/2016,1901758069,563.92,Ace Taxis Warminster Ace Taxis,131208,BA12,Neighbourhood & Planning,RES 16+ Secondary,Transport Contracts,Third Party Payments,REVENUE
Wiltshire,http://opendatacommunities.org/id/unitary-authority/wiltshire,22/07/2016,1901758070,567.50,Ace Taxis Warminster Ace Taxis,131208,BA12,Community Services,CTPLD Place CIC U65,Transport Contracts,Third Party Payments,REVENUE
Wiltshire,http://opendatacommunities.org/id/unitary-authority/wiltshire,22/07/2016,1901758078,759.43,Ace Taxis Warminster Ace Taxis,131208,BA12,Neighbourhood & Planning,SEN 16+ Secondary,Transport Contracts,Third Party Payments,REVENUE
Wiltshire,http://opendatacommunities.org/id/unitary-authority/wiltshire,22/07/2016,1901758078,759.43,Ace Taxis Warminster Ace Taxis,131208,BA12,Neighbourhood & Planning,SEN 16+ FE Colleges,Transport Contracts,Third Party Payments,REVENUE
Wiltshire,http://opendatacommunities.org/id/unitary-authority/wiltshire,27/07/2016,1901759189,2325.00,Ace Taxis Warminster Ace Taxis,131208,BA12,Children & Education,Safeguarding Ass Nth,Transport Contracts,Third Party Payments,REVENUE
Wiltshire,http://opendatacommunities.org/id/unitary-authority/wiltshire,27/07/2016,1901759200,665.00,Ace Taxis Warminster Ace Taxis,131208,BA12,Children & Education,S&W 0-25 SEND Locali,Transport Contracts,Third Party Payments,REVENUE
Wiltshire,http://opendatacommunities.org/id/unitary-authority/wiltshire,12/07/2016,5106907406,1300.00,Acoustic Consultants ltd ,125807,BS31,Wiltshire Council,Wiltshire Council,Consultants� Fees,Supplies and Services,CAPITAL
Wiltshire,http://opendatacommunities.org/id/unitary-authority/wiltshire,12/07/2016,5106895552,419.95,ACS Business Supplies ,141475,BD16,Community Services,CL&G Comm Govnce,Hardware Purchases IT,Supplies and Services,REVENUE
Wiltshire,http://opendatacommunities.org/id/unitary-authority/wiltshire,28/07/2016,5106908624,1430.87,ACS Business Supplies ,141475,BD16,Resources,Infrastructure,Hardware Purchases IT,Supplies and Services,REVENUE
Wiltshire,http://opendatacommunities.org/id/unitary-authority/wiltshire,25/07/2016,5106911204,4031.82,ACS Business Supplies ,141475,BD16,Resources,InternalCommunicats,Hardware Purchases IT,Supplies and Services,REVENUE
Wiltshire,http://opendatacommunities.org/id/unitary-authority/wiltshire,08/07/2016,5106894992,265.00,Act Now Training Ltd ,113308,WF13,Neighbourhood & Planning,Information Governan,Conference Fees,Supplies and Services,REVENUE
Wiltshire,http://opendatacommunities.org/id/unitary-authority/wiltshire,08/07/2016,5106894993,265.00,Act Now Training Ltd ,113308,WF13,Neighbourhood & Planning,Information Governan,Conference Fees,Supplies and Services,REVENUE
Wiltshire,http://opendatacommunities.org/id/unitary-authority/wiltshire,04/07/2016,5106905917,750.00,Action For Children ,110045,WD18,Children & Education,Adoption Services,Adoption Support,Third Party Payments,REVENUE
Wiltshire,http://opendatacommunities.org/id/unitary-authority/wiltshire,06/07/2016,5106894973,10935.65,Action on Addiction ,125931,SW4 ,Community Services,(8)FamiliesPlus-Othr,Substance Misuse - Payments to Contractors,Third Party Payments,REVENUE
Wiltshire,http://opendatacommunities.org/id/unitary-authority/wiltshire,22/07/2016,5106910750,10000.00,Action on Addiction ,125931,SW4 ,Children & Education,YPSM Commissioning,Substance Misuse - Payments to Contractors,Third Party Payments,REVENUE
Wiltshire,http://opendatacommunities.org/id/unitary-authority/wiltshire,07/07/2016,5106906609,1523.01,Action on Hearing Loss ,112215,EC1Y,Community Services,Chippenham,Adult Day Care - Spot,Third Party Payments,REVENUE
Wiltshire,http://opendatacommunities.org/id/unitary-authority/wiltshire,25/07/2016,5106911346,270.00,Action on Hearing Loss ,112215,EC1Y,Community Services,Disabilities Comm Ct,Grants Paid to individuals for Tangible Benefits,Supplies and Services,REVENUE
Wiltshire,http://opendatacommunities.org/id/unitary-authority/wiltshire,25/07/2016,5106911347,270.00,Action on Hearing Loss ,112215,EC1Y,Children & Education,Safeguarding Ass Est,Grants Paid to individuals for Tangible Benefits,Supplies and Services,REVENUE
Wiltshire,http://opendatacommunities.org/id/unitary-authority/wiltshire,25/07/2016,5106911348,405.00,Action on Hearing Loss ,112215,EC1Y,Resources,HR Strategy & Policy,Grants Paid to individuals for Tangible Benefits,Supplies and Services,REVENUE
Wiltshire,http://opendatacommunities.org/id/unitary-authority/wiltshire,27/07/2016,5106913590,5421.84,Action on Hearing Loss ,112215,EC1Y,Community Services,Malmesbury,Adult Residential Placements - Spot Purchase,Third Party Payments,REVENUE
Wiltshire,http://opendatacommunities.org/id/unitary-authority/wiltshire,27/07/2016,5106914198,6270.44,Action on Hearing Loss ,112215,EC1Y,Community Services,Orchard,Adult Residential Placements - Spot Purchase,Third Party Payments,REVENUE
Wiltshire,http://opendatacommunities.org/id/unitary-authority/wiltshire,27/07/2016,5106914647,3800.00,Action on Hearing Loss ,112215,EC1Y,Community Services,Calne,Adult Residential Placements - Spot Purchase,Third Party Payments,REVENUE
Wiltshire,http://opendatacommunities.org/id/unitary-authority/wiltshire,27/07/2016,5106916551,1523.01,Action on Hearing Loss ,112215,EC1Y,Community Services,Chippenham,Adult Day Care - Spot,Third Party Payments,REVENUE
Wiltshire,http://opendatacommunities.org/id/unitary-authority/wiltshire,29/07/2016,5106919025,1573.78,Action on Hearing Loss ,112215,EC1Y,Community Services,Chippenham,Adult Day Care - Spot,Third Party Payments,REVENUE
Wiltshire,http://opendatacommunities.org/id/unitary-authority/wiltshire,04/07/2016,5106892041,490.00,Active Documents Limited ,124154,TS18,Resources,Applications SuppLOB,Software Upgrades,Supplies and Services,REVENUE
Wiltshire,http://opendatacommunities.org/id/unitary-authority/wiltshire,08/07/2016,5106905353,1904.02,Adams Morey Ltd ,110053,SP2 ,Neighbourhood & Planning,Fleet Operations,Vehicle 3rd Party Repairs,Transport Related,REVENUE
Wiltshire,http://opendatacommunities.org/id/unitary-authority/wiltshire,08/07/2016,5106905355,444.48,Adams Morey Ltd ,110053,SP2 ,Neighbourhood & Planning,Fleet Operations,Vehicle 3rd Party Repairs,Transport Related,REVENUE
Wiltshire,http://opendatacommunities.org/id/unitary-authority/wiltshire,25/07/2016,5106906569,1383.58,Adams Morey Ltd ,110053,SP2 ,Neighbourhood & Planning,Fleet Operations,Vehicle 3rd Party Repairs,Transport Related,REVENUE
Wiltshire,http://opendatacommunities.org/id/unitary-authority/wiltshire,25/07/2016,5106906590,1153.48,Adams Morey Ltd ,110053,SP2 ,Neighbourhood & Planning,Fleet Operations,Vehicle 3rd Party Repairs,Transport Related,REVENUE
Wiltshire,http://opendatacommunities.org/id/unitary-authority/wiltshire,25/07/2016,5106906591,348.50,Adams Morey Ltd ,110053,SP2 ,Neighbourhood & Planning,Fleet Operations,Vehicle 3rd Party Repairs,Transport Related,REVENUE
Wiltshire,http://opendatacommunities.org/id/unitary-authority/wiltshire,25/07/2016,5106906598,386.05,Adams Morey Ltd ,110053,SP2 ,Neighbourhood & Planning,Fleet Operations,Vehicle 3rd Party Repairs,Transport Related,REVENUE
Wiltshire,http://opendatacommunities.org/id/unitary-authority/wiltshire,25/07/2016,5106906610,272.89,Adams Morey Ltd ,110053,SP2 ,Neighbourhood & Planning,Fleet Operations,Vehicle 3rd Party Repairs,Transport Related,REVENUE
Wiltshire,http://opendatacommunities.org/id/unitary-authority/wiltshire,25/07/2016,5106906730,275.90,Adams Morey Ltd ,110053,SP2 ,Neighbourhood & Planning,Fleet Operations,Vehicle 3rd Party Repairs,Transport Related,REVENUE
Wiltshire,http://opendatacommunities.org/id/unitary-authority/wiltshire,25/07/2016,5106906731,2977.27,Adams Morey Ltd ,110053,SP2 ,Neighbourhood & Planning,Fleet Operations,Vehicle 3rd Party Repairs,Transport Related,REVENUE
Wiltshire,http://opendatacommunities.org/id/unitary-authority/wiltshire,25/07/2016,5106906750,622.10,Adams Morey Ltd ,110053,SP2 ,Neighbourhood & Planning,Fleet Operations,Vehicle 3rd Party Repairs,Transport Related,REVENUE
Wiltshire,http://opendatacommunities.org/id/unitary-authority/wiltshire,25/07/2016,5106906751,296.46,Adams Morey Ltd ,110053,SP2 ,Neighbourhood & Planning,Fleet Operations,Vehicle 3rd Party Repairs,Transport Related,REVENUE
Wiltshire,http://opendatacommunities.org/id/unitary-authority/wiltshire,25/07/2016,5106906753,499.07,Adams Morey Ltd ,110053,SP2 ,Neighbourhood & Planning,Fleet Operations,Vehicle 3rd Party Repairs,Transport Related,REVENUE
Wiltshire,http://opendatacommunities.org/id/unitary-authority/wiltshire,25/07/2016,5106906760,287.21,Adams Morey Ltd ,110053,SP2 ,Neighbourhood & Planning,Fleet Operations,Vehicle 3rd Party Repairs,Transport Related,REVENUE
Wiltshire,http://opendatacommunities.org/id/unitary-authority/wiltshire,25/07/2016,5106906763,685.02,Adams Morey Ltd ,110053,SP2 ,Neighbourhood & Planning,Fleet Operations,Vehicle 3rd Party Repairs,Transport Related,REVENUE
Wiltshire,http://opendatacommunities.org/id/unitary-authority/wiltshire,11/07/2016,5106907013,813.49,Adams Morey Ltd ,110053,SP2 ,Neighbourhood & Planning,Fleet Operations,Vehicle Oil & Consumables,Transport Related,REVENUE
Wiltshire,http://opendatacommunities.org/id/unitary-authority/wiltshire,27/07/2016,5106908637,671.80,Adams Morey Ltd ,110053,SP2 ,Neighbourhood & Planning,Fleet Operations,Vehicle 3rd Party Repairs,Transport Related,REVENUE
Wiltshire,http://opendatacommunities.org/id/unitary-authority/wiltshire,27/07/2016,5106908639,571.10,Adams Morey Ltd ,110053,SP2 ,Neighbourhood & Planning,Fleet Operations,Vehicle 3rd Party Repairs,Transport Related,REVENUE
Wiltshire,http://opendatacommunities.org/id/unitary-authority/wiltshire,29/07/2016,5106908659,265.00,Adams Morey Ltd ,110053,SP2 ,Neighbourhood & Planning,Fleet Operations,Vehicle 3rd Party Repairs,Transport Related,REVENUE
Wiltshire,http://opendatacommunities.org/id/unitary-authority/wiltshire,25/07/2016,5106908662,559.20,Adams Morey Ltd ,110053,SP2 ,Neighbourhood & Planning,Fleet Operations,Vehicle 3rd Party Repairs,Transport Related,REVENUE
Wiltshire,http://opendatacommunities.org/id/unitary-authority/wiltshire,27/07/2016,5106914294,1887.20,Admirals Reach BUPA,137917,CM1 ,Community Services,Salisbury,Adult Care Nursing Placements- Spot Purchase,Third Party Payments,REVENUE
Wiltshire,http://opendatacommunities.org/id/unitary-authority/wiltshire,26/07/2016,5106911397,1250.00,Adoption UK ,110057,OX16,Children & Education,Adoption Services,Adoption Support,Third Party Payments,REVENUE
Wiltshire,http://opendatacommunities.org/id/unitary-authority/wiltshire,22/07/2016,1901758017,1192.09,Adrains Engineering Psv ,100848,SN15,Neighbourhood & Planning,Mainstream Secondary,Transport Contracts,Third Party Payments,REVENUE
Wiltshire,http://opendatacommunities.org/id/unitary-authority/wiltshire,22/07/2016,1901758018,608.76,Adrains Engineering Psv ,100848,SN15,Neighbourhood & Planning,Mainstream 16+ Sec,Transport Contracts,Third Party Payments,REVENUE
Wiltshire,http://opendatacommunities.org/id/unitary-authority/wiltshire,22/07/2016,1901758018,2542.07,Adrains Engineering Psv ,100848,SN15,Neighbourhood & Planning,Mainstream Secondary,Transport Contracts,Third Party Payments,REVENUE
Wiltshire,http://opendatacommunities.org/id/unitary-authority/wiltshire,22/07/2016,1901758019,2755.56,Adrains Engineering Psv ,100848,SN15,Neighbourhood & Planning,Mainstream Secondary,Transport Contracts,Third Party Payments,REVENUE
Wiltshire,http://opendatacommunities.org/id/unitary-authority/wiltshire,22/07/2016,1901758020,3968.30,Adrains Engineering Psv ,100848,SN15,Neighbourhood & Planning,Mainstream Secondary,Transport Contracts,Third Party Payments,REVENUE
Wiltshire,http://opendatacommunities.org/id/unitary-authority/wiltshire,22/07/2016,1901758021,3035.09,Adrains Engineering Psv ,100848,SN15,Neighbourhood & Planning,Mainstream Primary,Transport Contracts,Third Party Payments,REVENUE
Wiltshire,http://opendatacommunities.org/id/unitary-authority/wiltshire,22/07/2016,1901758022,2919.35,Adrains Engineering Psv ,100848,SN15,Neighbourhood & Planning,Mainstream Secondary,Transport Contracts,Third Party Payments,REVENUE
Wiltshire,http://opendatacommunities.org/id/unitary-authority/wiltshire,22/07/2016,1901758023,3007.73,Adrains Engineering Psv ,100848,SN15,Neighbourhood & Planning,Mainstream Secondary,Transport Contracts,Third Party Payments,REVENUE
Wiltshire,http://opendatacommunities.org/id/unitary-authority/wiltshire,22/07/2016,1901758024,3333.33,Adrains Engineering Psv ,100848,SN15,Neighbourhood & Planning,Mainstream Primary,Transport Contracts,Third Party Payments,REVENUE
Wiltshire,http://opendatacommunities.org/id/unitary-authority/wiltshire,22/07/2016,1901758024,4596.67,Adrains Engineering Psv ,100848,SN15,Neighbourhood & Planning,Public Transport,Transport Contracts,Third Party Payments,REVENUE
Wiltshire,http://opendatacommunities.org/id/unitary-authority/wiltshire,22/07/2016,1901758027,3333.33,Adrains Engineering Psv ,100848,SN15,Neighbourhood & Planning,Mainstream Secondary,Transport Contracts,Third Party Payments,REVENUE
Wiltshire,http://opendatacommunities.org/id/unitary-authority/wiltshire,22/07/2016,1901758027,3428.42,Adrains Engineering Psv ,100848,SN15,Neighbourhood & Planning,Public Transport,Transport Contracts,Third Party Payments,REVENUE
Wiltshire,http://opendatacommunities.org/id/unitary-authority/wiltshire,26/07/2016,1901758965,381.30,Adrains Engineering Psv ,100848,SN15,Neighbourhood & Planning,Concessionary Fares,Compensation for Concessionary fares,Third Party Payments,REVENUE
Wiltshire,http://opendatacommunities.org/id/unitary-authority/wiltshire,18/07/2016,1901755247,310.80,Adrian's Taxi ,138861,SN10,Neighbourhood & Planning,Mainstream Secondary,Transport Contracts,Third Party Payments,REVENUE
Wiltshire,http://opendatacommunities.org/id/unitary-authority/wiltshire,18/07/2016,1901755247,725.20,Adrian's Taxi ,138861,SN10,Neighbourhood & Planning,Mainstream Primary,Transport Contracts,Third Party Payments,REVENUE
Wiltshire,http://opendatacommunities.org/id/unitary-authority/wiltshire,20/07/2016,1901755462,5523.29,Advance Housing  and  Support Ltd ,110060,OX28,Neighbourhood & Planning,Strategy & Enabling,Payments to Contractors - Other,Third Party Payments,REVENUE
Wiltshire,http://opendatacommunities.org/id/unitary-authority/wiltshire,22/07/2016,1901758044,1702.00,Ady Cars ,136208,SP11,Children & Education,Safeguarding Ass Sth,Transport Contracts,Third Party Payments,REVENUE
Wiltshire,http://opendatacommunities.org/id/unitary-authority/wiltshire,07/07/2016,5106899314,1575.00,AECOM Professional Services LLP ,127871,AL1 ,Wiltshire Council,Wiltshire Council,Consultants� Fees,Supplies and Services,CAPITAL
Wiltshire,http://opendatacommunities.org/id/unitary-authority/wiltshire,13/07/2016,5106908441,700.00,AECOM Professional Services LLP ,127871,AL1 ,Wiltshire Council,Wiltshire Council,Consultants� Fees,Supplies and Services,CAPITAL
Wiltshire,http://opendatacommunities.org/id/unitary-authority/wiltshire,28/07/2016,5106908544,2000.00,AECOM Professional Services LLP ,127871,AL1 ,Wiltshire Council,Wiltshire Council,Buildings Minor Alterations,Premises Related,CAPITAL
Wiltshire,http://opendatacommunities.org/id/unitary-authority/wiltshire,06/07/2016,5106906236,1700.02,AginCare Live In Care Services Ltd ,110071,DT5 ,Community Services,Malmesbury,Adult Domiciliary Care - Live in Care,Third Party Payments,REVENUE
Wiltshire,http://opendatacommunities.org/id/unitary-authority/wiltshire,20/07/2016,5106910458,1700.02,AginCare Live In Care Services Ltd ,110071,DT5 ,Community Services,Malmesbury,Adult Domiciliary Care - Live in Care,Third Party Payments,REVENUE
Wiltshire,http://opendatacommunities.org/id/unitary-authority/wiltshire,14/07/2016,5106908526,546.00,Agincare Ltd ,110069,DT5 ,Community Services,Chippenham,Adult Domiciliary Care - Spot,Third Party Payments,REVENUE
Wiltshire,http://opendatacommunities.org/id/unitary-authority/wiltshire,14/07/2016,5106908528,793.92,Agincare Ltd ,110069,DT5 ,Community Services,MH AOWA North Locali,Supported Living - Without SP payments,Third Party Payments,REVENUE
Wiltshire,http://opendatacommunities.org/id/unitary-authority/wiltshire,20/07/2016,5106910455,923.47,Agincare Ltd ,110069,DT5 ,Community Services,Chippenham,Adult Domiciliary Care - Spot Contribution,Income,REVENUE
Wiltshire,http://opendatacommunities.org/id/unitary-authority/wiltshire,20/07/2016,5106910457,278.50,Agincare Ltd ,110069,DT5 ,Community Services,Chippenham,Adult Domiciliary Care - Spot,Third Party Payments,REVENUE
Wiltshire,http://opendatacommunities.org/id/unitary-authority/wiltshire,26/07/2016,5106907372,350.00,Aid Training  and  Operations Ltd ,110075,BA12,Children & Education,ExtPDTCourse,Consultants� Fees,Supplies and Services,REVENUE
Wiltshire,http://opendatacommunities.org/id/unitary-authority/wiltshire,12/07/2016,1901753353,1571.70,Akcess Ltd ,101402,SN2 ,Neighbourhood & Planning,SEN Post 19,Transport Contracts,Third Party Payments,REVENUE
Wiltshire,http://opendatacommunities.org/id/unitary-authority/wiltshire,12/07/2016,1901753360,329.76,Akcess Ltd ,101402,SN2 ,Neighbourhood & Planning,SEN Primary,Transport Contracts,Third Party Payments,REVENUE
Wiltshire,http://opendatacommunities.org/id/unitary-authority/wiltshire,12/07/2016,1901753360,659.58,Akcess Ltd ,101402,SN2 ,Neighbourhood & Planning,SEN Secondary,Transport Contracts,Third Party Payments,REVENUE
Wiltshire,http://opendatacommunities.org/id/unitary-authority/wiltshire,12/07/2016,1901753360,1319.16,Akcess Ltd ,101402,SN2 ,Neighbourhood & Planning,Mainstream Secondary,Transport Contracts,Third Party Payments,REVENUE
Wiltshire,http://opendatacommunities.org/id/unitary-authority/wiltshire,12/07/2016,1901753368,1916.15,Akcess Ltd ,101402,SN2 ,Neighbourhood & Planning,Mainstream Primary,Transport Contracts,Third Party Payments,REVENUE
Wiltshire,http://opendatacommunities.org/id/unitary-authority/wiltshire,12/07/2016,1901753369,1217.22,Akcess Ltd ,101402,SN2 ,Neighbourhood & Planning,SEN 16+ FE Colleges,Transport Contracts,Third Party Payments,REVENUE
Wiltshire,http://opendatacommunities.org/id/unitary-authority/wiltshire,12/07/2016,1901753369,2434.44,Akcess Ltd ,101402,SN2 ,Neighbourhood & Planning,SEN Secondary,Transport Contracts,Third Party Payments,REVENUE
Wiltshire,http://opendatacommunities.org/id/unitary-authority/wiltshire,12/07/2016,1901753370,457.34,Akcess Ltd ,101402,SN2 ,Neighbourhood & Planning,Mainstream Secondary,Transport Contracts,Third Party Payments,REVENUE
Wiltshire,http://opendatacommunities.org/id/unitary-authority/wiltshire,12/07/2016,1901753370,1997.85,Akcess Ltd ,101402,SN2 ,Neighbourhood & Planning,SEN Secondary,Transport Contracts,Third Party Payments,REVENUE
Wiltshire,http://opendatacommunities.org/id/unitary-authority/wiltshire,12/07/2016,1901753371,1007.00,Akcess Ltd ,101402,SN2 ,Neighbourhood & Planning,Mainstream Secondary,Transport Contracts,Third Party Payments,REVENUE
Wiltshire,http://opendatacommunities.org/id/unitary-authority/wiltshire,12/07/2016,1901753372,1186.13,Akcess Ltd ,101402,SN2 ,Neighbourhood & Planning,SEN Secondary,Transport Contracts,Third Party Payments,REVENUE
Wiltshire,http://opendatacommunities.org/id/unitary-authority/wiltshire,12/07/2016,1901753372,1186.16,Akcess Ltd ,101402,SN2 ,Neighbourhood & Planning,SEN Primary,Transport Contracts,Third Party Payments,REVENUE
Wiltshire,http://opendatacommunities.org/id/unitary-authority/wiltshire,12/07/2016,1901753373,631.75,Akcess Ltd ,101402,SN2 ,Neighbourhood & Planning,SEN Primary,Transport Contracts,Third Party Payments,REVENUE
Wiltshire,http://opendatacommunities.org/id/unitary-authority/wiltshire,12/07/2016,1901753373,631.75,Akcess Ltd ,101402,SN2 ,Neighbourhood & Planning,SEN 16+ Secondary,Transport Contracts,Third Party Payments,REVENUE
Wiltshire,http://opendatacommunities.org/id/unitary-authority/wiltshire,12/07/2016,1901753373,1263.50,Akcess Ltd ,101402,SN2 ,Neighbourhood & Planning,SEN Secondary,Transport Contracts,Third Party Payments,REVENUE
Wiltshire,http://opendatacommunities.org/id/unitary-authority/wiltshire,12/07/2016,1901753374,731.50,Akcess Ltd ,101402,SN2 ,Neighbourhood & Planning,SEN 16+ FE Colleges,Transport Contracts,Third Party Payments,REVENUE
Wiltshire,http://opendatacommunities.org/id/unitary-authority/wiltshire,12/07/2016,1901753374,864.50,Akcess Ltd ,101402,SN2 ,Neighbourhood & Planning,SEN Primary,Transport Contracts,Third Party Payments,REVENUE
Wiltshire,http://opendatacommunities.org/id/unitary-authority/wiltshire,12/07/2016,1901753374,1463.00,Akcess Ltd ,101402,SN2 ,Neighbourhood & Planning,SEN Secondary,Transport Contracts,Third Party Payments,REVENUE
Wiltshire,http://opendatacommunities.org/id/unitary-authority/wiltshire,12/07/2016,1901753375,2464.30,Akcess Ltd ,101402,SN2 ,Neighbourhood & Planning,SEN Primary,Transport Contracts,Third Party Payments,REVENUE
Wiltshire,http://opendatacommunities.org/id/unitary-authority/wiltshire,12/07/2016,1901753376,1007.00,Akcess Ltd ,101402,SN2 ,Neighbourhood & Planning,Mainstream Secondary,Transport Contracts,Third Party Payments,REVENUE
Wiltshire,http://opendatacommunities.org/id/unitary-authority/wiltshire,12/07/2016,1901753377,1482.00,Akcess Ltd ,101402,SN2 ,Neighbourhood & Planning,Mainstream Primary,Transport Contracts,Third Party Payments,REVENUE
Wiltshire,http://opendatacommunities.org/id/unitary-authority/wiltshire,12/07/2016,1901753378,757.54,Akcess Ltd ,101402,SN2 ,Neighbourhood & Planning,SEN 16+ FE Colleges,Transport Contracts,Third Party Payments,REVENUE
Wiltshire,http://opendatacommunities.org/id/unitary-authority/wiltshire,12/07/2016,1901753378,1834.06,Akcess Ltd ,101402,SN2 ,Neighbourhood & Planning,SEN 16+ Secondary,Transport Contracts,Third Party Payments,REVENUE
Wiltshire,http://opendatacommunities.org/id/unitary-authority/wiltshire,12/07/2016,1901753379,1700.50,Akcess Ltd ,101402,SN2 ,Neighbourhood & Planning,Mainstream Primary,Transport Contracts,Third Party Payments,REVENUE
Wiltshire,http://opendatacommunities.org/id/unitary-authority/wiltshire,12/07/2016,1901753380,650.22,Akcess Ltd ,101402,SN2 ,Neighbourhood & Planning,Mainstream Secondary,Transport Contracts,Third Party Payments,REVENUE
Wiltshire,http://opendatacommunities.org/id/unitary-authority/wiltshire,12/07/2016,1901753381,831.25,Akcess Ltd ,101402,SN2 ,Neighbourhood & Planning,Mainstream Secondary,Transport Contracts,Third Party Payments,REVENUE
Wiltshire,http://opendatacommunities.org/id/unitary-authority/wiltshire,12/07/2016,1901753381,831.25,Akcess Ltd ,101402,SN2 ,Neighbourhood & Planning,SEN Primary,Transport Contracts,Third Party Payments,REVENUE
Wiltshire,http://opendatacommunities.org/id/unitary-authority/wiltshire,12/07/2016,1901753382,1682.45,Akcess Ltd ,101402,SN2 ,Neighbourhood & Planning,Mainstream Secondary,Transport Contracts,Third Party Payments,REVENUE
Wiltshire,http://opendatacommunities.org/id/unitary-authority/wiltshire,12/07/2016,1901753383,1022.25,Akcess Ltd ,101402,SN2 ,Neighbourhood & Planning,Mainstream Primary,Transport Contracts,Third Party Payments,REVENUE
Wiltshire,http://opendatacommunities.org/id/unitary-authority/wiltshire,12/07/2016,1901753384,1022.25,Akcess Ltd ,101402,SN2 ,Neighbourhood & Planning,Mainstream Primary,Transport Contracts,Third Party Payments,REVENUE
Wiltshire,http://opendatacommunities.org/id/unitary-authority/wiltshire,12/07/2016,1901753385,2052.80,Akcess Ltd ,101402,SN2 ,Neighbourhood & Planning,Mainstream Secondary,Transport Contracts,Third Party Payments,REVENUE
Wiltshire,http://opendatacommunities.org/id/unitary-authority/wiltshire,12/07/2016,1901753386,1849.97,Akcess Ltd ,101402,SN2 ,Neighbourhood & Planning,Mainstream Primary,Transport Contracts,Third Party Payments,REVENUE
Wiltshire,http://opendatacommunities.org/id/unitary-authority/wiltshire,12/07/2016,1901753387,1967.41,Akcess Ltd ,101402,SN2 ,Neighbourhood & Planning,Mainstream Secondary,Transport Contracts,Third Party Payments,REVENUE
Wiltshire,http://opendatacommunities.org/id/unitary-authority/wiltshire,12/07/2016,1901753388,254.02,Akcess Ltd ,101402,SN2 ,Neighbourhood & Planning,SEN Secondary,Transport Contracts,Third Party Payments,REVENUE
Wiltshire,http://opendatacommunities.org/id/unitary-authority/wiltshire,12/07/2016,1901753388,634.95,Akcess Ltd ,101402,SN2 ,Neighbourhood & Planning,Mainstream 16+ Sec,Transport Contracts,Third Party Payments,REVENUE
Wiltshire,http://opendatacommunities.org/id/unitary-authority/wiltshire,12/07/2016,1901753388,2540.20,Akcess Ltd ,101402,SN2 ,Neighbourhood & Planning,Mainstream Secondary,Transport Contracts,Third Party Payments,REVENUE
Wiltshire,http://opendatacommunities.org/id/unitary-authority/wiltshire,12/07/2016,1901753389,1564.33,Akcess Ltd ,101402,SN2 ,Neighbourhood & Planning,Mainstream Secondary,Transport Contracts,Third Party Payments,REVENUE
Wiltshire,http://opendatacommunities.org/id/unitary-authority/wiltshire,12/07/2016,1901753390,1421.83,Akcess Ltd ,101402,SN2 ,Neighbourhood & Planning,Mainstream Secondary,Transport Contracts,Third Party Payments,REVENUE
Wiltshire,http://opendatacommunities.org/id/unitary-authority/wiltshire,12/07/2016,1901753391,1833.17,Akcess Ltd ,101402,SN2 ,Neighbourhood & Planning,Mainstream Primary,Transport Contracts,Third Party Payments,REVENUE
Wiltshire,http://opendatacommunities.org/id/unitary-authority/wiltshire,12/07/2016,1901753392,933.33,Akcess Ltd ,101402,SN2 ,Neighbourhood & Planning,Mainstream Primary,Transport Contracts,Third Party Payments,REVENUE
Wiltshire,http://opendatacommunities.org/id/unitary-authority/wiltshire,12/07/2016,1901753392,1733.34,Akcess Ltd ,101402,SN2 ,Neighbourhood & Planning,Mainstream Secondary,Transport Contracts,Third Party Payments,REVENUE
Wiltshire,http://opendatacommunities.org/id/unitary-authority/wiltshire,12/07/2016,1901753393,2166.67,Akcess Ltd ,101402,SN2 ,Neighbourhood & Planning,Mainstream Primary,Transport Contracts,Third Party Payments,REVENUE
Wiltshire,http://opendatacommunities.org/id/unitary-authority/wiltshire,12/07/2016,1901753394,457.41,Akcess Ltd ,101402,SN2 ,Community Services,OVA East Locality,Transport Contracts,Third Party Payments,REVENUE
Wiltshire,http://opendatacommunities.org/id/unitary-authority/wiltshire,12/07/2016,1901753394,514.59,Akcess Ltd ,101402,SN2 ,Community Services,OVA North Locality,Transport Contracts,Third Party Payments,REVENUE
Wiltshire,http://opendatacommunities.org/id/unitary-authority/wiltshire,12/07/2016,1901753395,1786.63,Akcess Ltd ,101402,SN2 ,Neighbourhood & Planning,Mainstream Primary,Transport Contracts,Third Party Payments,REVENUE
Wiltshire,http://opendatacommunities.org/id/unitary-authority/wiltshire,12/07/2016,1901753396,1472.50,Akcess Ltd ,101402,SN2 ,Neighbourhood & Planning,Mainstream Secondary,Transport Contracts,Third Party Payments,REVENUE
Wiltshire,http://opendatacommunities.org/id/unitary-authority/wiltshire,12/07/2016,1901753397,424.00,Akcess Ltd ,101402,SN2 ,Neighbourhood & Planning,Mainstream Secondary,Transport Contracts,Third Party Payments,REVENUE
Wiltshire,http://opendatacommunities.org/id/unitary-authority/wiltshire,12/07/2016,1901753397,1484.00,Akcess Ltd ,101402,SN2 ,Neighbourhood & Planning,Mainstream Primary,Transport Contracts,Third Party Payments,REVENUE
Wiltshire,http://opendatacommunities.org/id/unitary-authority/wiltshire,25/07/2016,1901758421,1415.50,Akcess Ltd ,101402,SN2 ,Neighbourhood & Planning,SEN Secondary,Transport Contracts,Third Party Payments,REVENUE
Wiltshire,http://opendatacommunities.org/id/unitary-authority/wiltshire,20/07/2016,1901755448,1328.35,Alabare Christian Care Centre ,100837,SP2 ,Neighbourhood & Planning,Strategy & Enabling,Payments to Contractors - Other,Third Party Payments,REVENUE
Wiltshire,http://opendatacommunities.org/id/unitary-authority/wiltshire,20/07/2016,1901755450,1820.54,Alabare Christian Care Centre ,100837,SP2 ,Neighbourhood & Planning,Strategy & Enabling,Payments to Contractors - Other,Third Party Payments,REVENUE
Wiltshire,http://opendatacommunities.org/id/unitary-authority/wiltshire,20/07/2016,1901755455,2526.90,Alabare Christian Care Centre ,100837,SP2 ,Neighbourhood & Planning,Strategy & Enabling,Payments to Contractors - Other,Third Party Payments,REVENUE
Wiltshire,http://opendatacommunities.org/id/unitary-authority/wiltshire,20/07/2016,1901755458,3230.29,Alabare Christian Care Centre ,100837,SP2 ,Neighbourhood & Planning,Strategy & Enabling,Payments to Contractors - Other,Third Party Payments,REVENUE
Wiltshire,http://opendatacommunities.org/id/unitary-authority/wiltshire,20/07/2016,1901755459,3514.19,Alabare Christian Care Centre ,100837,SP2 ,Neighbourhood & Planning,Strategy & Enabling,Payments to Contractors - Other,Third Party Payments,REVENUE
Wiltshire,http://opendatacommunities.org/id/unitary-authority/wiltshire,20/07/2016,1901755466,8550.95,Alabare Christian Care Centre ,100837,SP2 ,Neighbourhood & Planning,Strategy & Enabling,Payments to Contractors - Other,Third Party Payments,REVENUE
Wiltshire,http://opendatacommunities.org/id/unitary-authority/wiltshire,20/07/2016,1901755471,22610.27,Alabare Christian Care Centre ,100837,SP2 ,Neighbourhood & Planning,Strategy & Enabling,Payments to Contractors - Other,Third Party Payments,REVENUE
Wiltshire,http://opendatacommunities.org/id/unitary-authority/wiltshire,04/07/2016,5106905991,1363.01,Alabare Christian Care Centre ,100837,SP2 ,Children & Education,Albare Contract,Adult / Child Care Agency Placement,Third Party Payments,REVENUE
Wiltshire,http://opendatacommunities.org/id/unitary-authority/wiltshire,04/07/2016,5106905992,2874.35,Alabare Christian Care Centre ,100837,SP2 ,Children & Education,Albare Contract,Adult / Child Care Agency Placement,Third Party Payments,REVENUE
Wiltshire,http://opendatacommunities.org/id/unitary-authority/wiltshire,04/07/2016,5106905993,510.40,Alabare Christian Care Centre ,100837,SP2 ,Children & Education,Albare Contract,Adult / Child Care Agency Placement,Third Party Payments,REVENUE
Wiltshire,http://opendatacommunities.org/id/unitary-authority/wiltshire,04/07/2016,5106905994,1197.08,Alabare Christian Care Centre ,100837,SP2 ,Children & Education,Albare Contract,Adult / Child Care Agency Placement,Third Party Payments,REVENUE
Wiltshire,http://opendatacommunities.org/id/unitary-authority/wiltshire,04/07/2016,5106905996,2874.35,Alabare Christian Care Centre ,100837,SP2 ,Children & Education,Albare Contract,Adult / Child Care Agency Placement,Third Party Payments,REVENUE
Wiltshire,http://opendatacommunities.org/id/unitary-authority/wiltshire,04/07/2016,5106905997,289.50,Alabare Christian Care Centre ,100837,SP2 ,Children & Education,LAC & 16+ South,Adult / Child Care Agency Placement,Third Party Payments,REVENUE
Wiltshire,http://opendatacommunities.org/id/unitary-authority/wiltshire,04/07/2016,5106905998,1846.01,Alabare Christian Care Centre ,100837,SP2 ,Children & Education,Albare Contract,Adult / Child Care Agency Placement,Third Party Payments,REVENUE
Wiltshire,http://opendatacommunities.org/id/unitary-authority/wiltshire,04/07/2016,5106906000,6219.89,Alabare Christian Care Centre ,100837,SP2 ,Children & Education,Albare Contract,Adult / Child Care Agency Placement,Third Party Payments,REVENUE
Wiltshire,http://opendatacommunities.org/id/unitary-authority/wiltshire,04/07/2016,5106906001,1363.01,Alabare Christian Care Centre ,100837,SP2 ,Children & Education,Albare Contract,Adult / Child Care Agency Placement,Third Party Payments,REVENUE
Wiltshire,http://opendatacommunities.org/id/unitary-authority/wiltshire,04/07/2016,5106906002,3636.60,Alabare Christian Care Centre ,100837,SP2 ,Children & Education,Albare Contract,Adult / Child Care Agency Placement,Third Party Payments,REVENUE
Wiltshire,http://opendatacommunities.org/id/unitary-authority/wiltshire,04/07/2016,5106906003,4577.17,Alabare Christian Care Centre ,100837,SP2 ,Children & Education,Albare Contract,Adult / Child Care Agency Placement,Third Party Payments,REVENUE
Wiltshire,http://opendatacommunities.org/id/unitary-authority/wiltshire,04/07/2016,5106906004,594.30,Alabare Christian Care Centre ,100837,SP2 ,Children & Education,Safeguarding Ass Wst,Adult / Child Care Agency Placement,Third Party Payments,REVENUE
Wiltshire,http://opendatacommunities.org/id/unitary-authority/wiltshire,04/07/2016,5106906006,1363.01,Alabare Christian Care Centre ,100837,SP2 ,Children & Education,Albare Contract,Adult / Child Care Agency Placement,Third Party Payments,REVENUE
Wiltshire,http://opendatacommunities.org/id/unitary-authority/wiltshire,04/07/2016,5106906008,2874.35,Alabare Christian Care Centre ,100837,SP2 ,Children & Education,Albare Contract,Adult / Child Care Agency Placement,Third Party Payments,REVENUE
Wiltshire,http://opendatacommunities.org/id/unitary-authority/wiltshire,04/07/2016,5106906009,2521.26,Alabare Christian Care Centre ,100837,SP2 ,Children & Education,Albare Contract,Adult / Child Care Agency Placement,Third Party Payments,REVENUE
Wiltshire,http://opendatacommunities.org/id/unitary-authority/wiltshire,04/07/2016,5106906011,1592.47,Alabare Christian Care Centre ,100837,SP2 ,Children & Education,Albare Contract,Adult / Child Care Agency Placement,Third Party Payments,REVENUE
Wiltshire,http://opendatacommunities.org/id/unitary-authority/wiltshire,04/07/2016,5106906012,1644.85,Alabare Christian Care Centre ,100837,SP2 ,Children & Education,Albare Contract,Adult / Child Care Agency Placement,Third Party Payments,REVENUE
Wiltshire,http://opendatacommunities.org/id/unitary-authority/wiltshire,04/07/2016,5106906014,330.00,Alabare Christian Care Centre ,100837,SP2 ,Community Services,CTPLD Place CIC U65,Supported Living - Without SP payments,Third Party Payments,REVENUE
Wiltshire,http://opendatacommunities.org/id/unitary-authority/wiltshire,04/07/2016,5106906017,610.35,Alabare Christian Care Centre ,100837,SP2 ,Children & Education,Albare Contract,Adult / Child Care Agency Placement,Third Party Payments,REVENUE
Wiltshire,http://opendatacommunities.org/id/unitary-authority/wiltshire,04/07/2016,5106906018,787.62,Alabare Christian Care Centre ,100837,SP2 ,Children & Education,Albare Contract,Adult / Child Care Agency Placement,Third Party Payments,REVENUE
Wiltshire,http://opendatacommunities.org/id/unitary-authority/wiltshire,27/07/2016,5106906445,2496.00,Alabare Christian Care Centre ,100837,SP2 ,Community Services,OVA South Locality,Supported Living - Without SP payments,Third Party Payments,REVENUE
Wiltshire,http://opendatacommunities.org/id/unitary-authority/wiltshire,07/07/2016,5106906670,556.00,Alabare Christian Care Centre ,100837,SP2 ,Community Services,MH AOWA South Locali,Adult Day Care - Spot,Third Party Payments,REVENUE
Wiltshire,http://opendatacommunities.org/id/unitary-authority/wiltshire,27/07/2016,5106906785,924.00,Alabare Christian Care Centre ,100837,SP2 ,Community Services,CTPLD Place CIC U65,Supported Living - Without SP payments,Third Party Payments,REVENUE
Wiltshire,http://opendatacommunities.org/id/unitary-authority/wiltshire,27/07/2016,5106906786,781.00,Alabare Christian Care Centre ,100837,SP2 ,Community Services,CTPLD Place CIC U65,Supported Living - Without SP payments,Third Party Payments,REVENUE
Wiltshire,http://opendatacommunities.org/id/unitary-authority/wiltshire,27/07/2016,5106906788,1914.00,Alabare Christian Care Centre ,100837,SP2 ,Community Services,CTPLD Place CIC U65,Supported Living - Without SP payments,Third Party Payments,REVENUE
Wiltshire,http://opendatacommunities.org/id/unitary-authority/wiltshire,27/07/2016,5106906790,462.00,Alabare Christian Care Centre ,100837,SP2 ,Community Services,CTPLD Place CIC U65,Supported Living - Without SP payments,Third Party Payments,REVENUE
Wiltshire,http://opendatacommunities.org/id/unitary-authority/wiltshire,27/07/2016,5106906793,3151.52,Alabare Christian Care Centre ,100837,SP2 ,Community Services,CTPLD Place CIC U65,Supported Living - Without SP payments,Third Party Payments,REVENUE
Wiltshire,http://opendatacommunities.org/id/unitary-authority/wiltshire,27/07/2016,5106906801,473.20,Alabare Christian Care Centre ,100837,SP2 ,Community Services,CTPLD Place CIC U65,Supported Living - Without SP payments,Third Party Payments,REVENUE
Wiltshire,http://opendatacommunities.org/id/unitary-authority/wiltshire,27/07/2016,5106906812,583.00,Alabare Christian Care Centre ,100837,SP2 ,Community Services,CTPLD Place CIC U65,Supported Living - Without SP payments,Third Party Payments,REVENUE
Wiltshire,http://opendatacommunities.org/id/unitary-authority/wiltshire,27/07/2016,5106906814,715.00,Alabare Christian Care Centre ,100837,SP2 ,Community Services,CTPLD Place CIC U65,Supported Living - Without SP payments,Third Party Payments,REVENUE
Wiltshire,http://opendatacommunities.org/id/unitary-authority/wiltshire,27/07/2016,5106906816,352.00,Alabare Christian Care Centre ,100837,SP2 ,Community Services,CTPLD Place CIC U65,Supported Living - Without SP payments,Third Party Payments,REVENUE
Wiltshire,http://opendatacommunities.org/id/unitary-authority/wiltshire,27/07/2016,5106906817,1886.60,Alabare Christian Care Centre ,100837,SP2 ,Community Services,CTPLD Place CIC U65,Supported Living - Without SP payments,Third Party Payments,REVENUE
Wiltshire,http://opendatacommunities.org/id/unitary-authority/wiltshire,27/07/2016,5106906818,632.52,Alabare Christian Care Centre ,100837,SP2 ,Community Services,CTPLD Place CIC U65,Supported Living - Without SP payments,Third Party Payments,REVENUE
Wiltshire,http://opendatacommunities.org/id/unitary-authority/wiltshire,27/07/2016,5106906819,1667.16,Alabare Christian Care Centre ,100837,SP2 ,Community Services,CTPLD Place CIC U65,Supported Living - Without SP payments,Third Party Payments,REVENUE
Wiltshire,http://opendatacommunities.org/id/unitary-authority/wiltshire,27/07/2016,5106906826,2690.64,Alabare Christian Care Centre ,100837,SP2 ,Community Services,CTPLD Place CIC U65,Supported Living - Without SP payments,Third Party Payments,REVENUE
Wiltshire,http://opendatacommunities.org/id/unitary-authority/wiltshire,27/07/2016,5106906828,1320.00,Alabare Christian Care Centre ,100837,SP2 ,Community Services,CTPLD Place CIC U65,Supported Living - Without SP payments,Third Party Payments,REVENUE
Wiltshire,http://opendatacommunities.org/id/unitary-authority/wiltshire,27/07/2016,5106906830,2772.00,Alabare Christian Care Centre ,100837,SP2 ,Community Services,CTPLD Place CIC U65,Supported Living - Without SP payments,Third Party Payments,REVENUE
Wiltshire,http://opendatacommunities.org/id/unitary-authority/wiltshire,27/07/2016,5106906836,4061.40,Alabare Christian Care Centre ,100837,SP2 ,Community Services,CTPLD Place CIC U65,Supported Living - Without SP payments,Third Party Payments,REVENUE
Wiltshire,http://opendatacommunities.org/id/unitary-authority/wiltshire,27/07/2016,5106906850,3399.00,Alabare Christian Care Centre ,100837,SP2 ,Community Services,CTPLD Place CIC U65,Supported Living - Without SP payments,Third Party Payments,REVENUE
Wiltshire,http://opendatacommunities.org/id/unitary-authority/wiltshire,27/07/2016,5106906852,2674.12,Alabare Christian Care Centre ,100837,SP2 ,Community Services,CTPLD Place CIC U65,Supported Living - Without SP payments,Third Party Payments,REVENUE
Wiltshire,http://opendatacommunities.org/id/unitary-authority/wiltshire,27/07/2016,5106906854,2727.40,Alabare Christian Care Centre ,100837,SP2 ,Community Services,CTPLD Place CIC U65,Supported Living - Without SP payments,Third Party Payments,REVENUE
Wiltshire,http://opendatacommunities.org/id/unitary-authority/wiltshire,27/07/2016,5106906855,1751.44,Alabare Christian Care Centre ,100837,SP2 ,Community Services,CTPLD Place CIC U65,Supported Living - Without SP payments,Third Party Payments,REVENUE
Wiltshire,http://opendatacommunities.org/id/unitary-authority/wiltshire,27/07/2016,5106906857,1586.76,Alabare Christian Care Centre ,100837,SP2 ,Community Services,Endless/St.A,Supported Living - Without SP payments,Third Party Payments,REVENUE
Wiltshire,http://opendatacommunities.org/id/unitary-authority/wiltshire,27/07/2016,5106906860,1848.68,Alabare Christian Care Centre ,100837,SP2 ,Community Services,CTPLD Place CIC U65,Supported Living - Without SP payments,Third Party Payments,REVENUE
Wiltshire,http://opendatacommunities.org/id/unitary-authority/wiltshire,27/07/2016,5106906862,2651.56,Alabare Christian Care Centre ,100837,SP2 ,Community Services,CTPLD Place CIC U65,Supported Living - Without SP payments,Third Party Payments,REVENUE
Wiltshire,http://opendatacommunities.org/id/unitary-authority/wiltshire,27/07/2016,5106906879,1671.36,Alabare Christian Care Centre ,100837,SP2 ,Community Services,CTPLD Place CIC U65,Supported Living - Without SP payments,Third Party Payments,REVENUE
Wiltshire,http://opendatacommunities.org/id/unitary-authority/wiltshire,27/07/2016,5106906882,3113.00,Alabare Christian Care Centre ,100837,SP2 ,Community Services,CTPLD Place CIC U65,Supported Living - Without SP payments,Third Party Payments,REVENUE
Wiltshire,http://opendatacommunities.org/id/unitary-authority/wiltshire,15/07/2016,5106908770,1232.24,Alabare Christian Care Centre ,100837,SP2 ,Children & Education,Albare Contract,Adult / Child Care Agency Placement,Third Party Payments,REVENUE
Wiltshire,http://opendatacommunities.org/id/unitary-authority/wiltshire,15/07/2016,5106908771,2809.26,Alabare Christian Care Centre ,100837,SP2 ,Children & Education,Albare Contract,Adult / Child Care Agency Placement,Third Party Payments,REVENUE
Wiltshire,http://opendatacommunities.org/id/unitary-authority/wiltshire,15/07/2016,5106908772,1146.81,Alabare Christian Care Centre ,100837,SP2 ,Children & Education,Albare Contract,Adult / Child Care Agency Placement,Third Party Payments,REVENUE
Wiltshire,http://opendatacommunities.org/id/unitary-authority/wiltshire,15/07/2016,5106908774,2727.44,Alabare Christian Care Centre ,100837,SP2 ,Children & Education,Albare Contract,Adult / Child Care Agency Placement,Third Party Payments,REVENUE
Wiltshire,http://opendatacommunities.org/id/unitary-authority/wiltshire,15/07/2016,5106908778,1364.49,Alabare Christian Care Centre ,100837,SP2 ,Children & Education,Albare Contract,Adult / Child Care Agency Placement,Third Party Payments,REVENUE
Wiltshire,http://opendatacommunities.org/id/unitary-authority/wiltshire,15/07/2016,5106908779,1790.51,Alabare Christian Care Centre ,100837,SP2 ,Children & Education,Albare Contract,Adult / Child Care Agency Placement,Third Party Payments,REVENUE
Wiltshire,http://opendatacommunities.org/id/unitary-authority/wiltshire,15/07/2016,5106908780,672.52,Alabare Christian Care Centre ,100837,SP2 ,Children & Education,LAC & 16+ South,Adult / Child Care Agency Placement,Third Party Payments,REVENUE
Wiltshire,http://opendatacommunities.org/id/unitary-authority/wiltshire,15/07/2016,5106908781,1232.24,Alabare Christian Care Centre ,100837,SP2 ,Children & Education,Albare Contract,Adult / Child Care Agency Placement,Third Party Payments,REVENUE
Wiltshire,http://opendatacommunities.org/id/unitary-authority/wiltshire,15/07/2016,5106908782,1914.00,Alabare Christian Care Centre ,100837,SP2 ,Children & Education,LAC & 16+ South,Adult / Child Care Agency Placement,Third Party Payments,REVENUE
Wiltshire,http://opendatacommunities.org/id/unitary-authority/wiltshire,15/07/2016,5106908783,5060.29,Alabare Christian Care Centre ,100837,SP2 ,Children & Education,Albare Contract,Adult / Child Care Agency Placement,Third Party Payments,REVENUE
Wiltshire,http://opendatacommunities.org/id/unitary-authority/wiltshire,15/07/2016,5106908785,313.60,Alabare Christian Care Centre ,100837,SP2 ,Children & Education,Safeguarding Ass Wst,Adult / Child Care Agency Placement,Third Party Payments,REVENUE
Wiltshire,http://opendatacommunities.org/id/unitary-authority/wiltshire,15/07/2016,5106908787,1232.24,Alabare Christian Care Centre ,100837,SP2 ,Children & Education,Albare Contract,Adult / Child Care Agency Placement,Third Party Payments,REVENUE
Wiltshire,http://opendatacommunities.org/id/unitary-authority/wiltshire,15/07/2016,5106908788,2727.44,Alabare Christian Care Centre ,100837,SP2 ,Children & Education,Albare Contract,Adult / Child Care Agency Placement,Third Party Payments,REVENUE
Wiltshire,http://opendatacommunities.org/id/unitary-authority/wiltshire,15/07/2016,5106908790,1042.53,Alabare Christian Care Centre ,100837,SP2 ,Children & Education,Albare Contract,Adult / Child Care Agency Placement,Third Party Payments,REVENUE
Wiltshire,http://opendatacommunities.org/id/unitary-authority/wiltshire,15/07/2016,5106908791,1570.84,Alabare Christian Care Centre ,100837,SP2 ,Children & Education,Albare Contract,Adult / Child Care Agency Placement,Third Party Payments,REVENUE
Wiltshire,http://opendatacommunities.org/id/unitary-authority/wiltshire,15/07/2016,5106908792,1541.10,Alabare Christian Care Centre ,100837,SP2 ,Children & Education,Albare Contract,Adult / Child Care Agency Placement,Third Party Payments,REVENUE
Wiltshire,http://opendatacommunities.org/id/unitary-authority/wiltshire,15/07/2016,5106908793,1504.98,Alabare Christian Care Centre ,100837,SP2 ,Children & Education,Albare Contract,Adult / Child Care Agency Placement,Third Party Payments,REVENUE
Wiltshire,http://opendatacommunities.org/id/unitary-authority/wiltshire,15/07/2016,5106908806,3662.10,Alabare Christian Care Centre ,100837,SP2 ,Children & Education,Albare Contract,Adult / Child Care Agency Placement,Third Party Payments,REVENUE
Wiltshire,http://opendatacommunities.org/id/unitary-authority/wiltshire,15/07/2016,5106908807,3241.42,Alabare Christian Care Centre ,100837,SP2 ,Children & Education,Albare Contract,Adult / Child Care Agency Placement,Third Party Payments,REVENUE
Wiltshire,http://opendatacommunities.org/id/unitary-authority/wiltshire,15/07/2016,5106908845,1950.78,Alabare Christian Care Centre ,100837,SP2 ,Children & Education,Safeguarding Ass Nth,Adult / Child Care Agency Placement,Third Party Payments,REVENUE
Wiltshire,http://opendatacommunities.org/id/unitary-authority/wiltshire,15/07/2016,5106908846,3327.67,Alabare Christian Care Centre ,100837,SP2 ,Children & Education,Albare Contract,Adult / Child Care Agency Placement,Third Party Payments,REVENUE
Wiltshire,http://opendatacommunities.org/id/unitary-authority/wiltshire,20/07/2016,5106910424,342.00,Alabare Christian Care Centre ,100837,SP2 ,Community Services,MH OP South Locality,Adult Day Care - Spot,Third Party Payments,REVENUE
Wiltshire,http://opendatacommunities.org/id/unitary-authority/wiltshire,20/07/2016,5106910425,304.00,Alabare Christian Care Centre ,100837,SP2 ,Community Services,MH AOWA South Locali,Adult Day Care - Spot,Third Party Payments,REVENUE
Wiltshire,http://opendatacommunities.org/id/unitary-authority/wiltshire,20/07/2016,5106910429,544.00,Alabare Christian Care Centre ,100837,SP2 ,Community Services,MH AOWA South Locali,Adult Day Care - Spot,Third Party Payments,REVENUE
Wiltshire,http://opendatacommunities.org/id/unitary-authority/wiltshire,27/07/2016,5106918064,3030.52,Alabare Christian Care Centre ,100837,SP2 ,Community Services,CTPLD Place CIC U65,Supported Living - Without SP payments,Third Party Payments,REVENUE
Wiltshire,http://opendatacommunities.org/id/unitary-authority/wiltshire,27/07/2016,5106918066,3030.52,Alabare Christian Care Centre ,100837,SP2 ,Community Services,CTPLD Place CIC U65,Supported Living - Without SP payments,Third Party Payments,REVENUE
Wiltshire,http://opendatacommunities.org/id/unitary-authority/wiltshire,01/07/2016,5106905717,2707.70,Aldbourne Nursing Home ,110090,SN8 ,Community Services,Home Loans,Adult Care Loans,Capital charges and Expenditure,REVENUE
Wiltshire,http://opendatacommunities.org/id/unitary-authority/wiltshire,11/07/2016,5106907305,375.00,Aldbourne Nursing Home ,110090,SN8 ,Community Services,Marlborough,Adult Residential Placements - 12 Week,Third Party Payments,REVENUE
Wiltshire,http://opendatacommunities.org/id/unitary-authority/wiltshire,11/07/2016,5106907308,3500.00,Aldbourne Nursing Home ,110090,SN8 ,Community Services,Marlborough,Adult Residential Placements - 12 Week,Third Party Payments,REVENUE
Wiltshire,http://opendatacommunities.org/id/unitary-authority/wiltshire,11/07/2016,5106907312,3500.00,Aldbourne Nursing Home ,110090,SN8 ,Community Services,Marlborough,Adult Residential Placements - 12 Week,Third Party Payments,REVENUE
Wiltshire,http://opendatacommunities.org/id/unitary-authority/wiltshire,22/07/2016,5106910861,594.21,Aldbourne Nursing Home ,110090,SN8 ,Community Services,Marlborough,Adult Care Funded Nursing Care - Loal Auth Clients,Third Party Payments,REVENUE
Wiltshire,http://opendatacommunities.org/id/unitary-authority/wiltshire,22/07/2016,5106911071,2828.54,Aldbourne Nursing Home ,110090,SN8 ,Community Services,Marlborough,Adult Care Nursing Placements - 12 Week,Third Party Payments,REVENUE
Wiltshire,http://opendatacommunities.org/id/unitary-authority/wiltshire,22/07/2016,5106911072,491.04,Aldbourne Nursing Home ,110090,SN8 ,Community Services,Marlborough,Adult Care Funded Nursing Care - Loal Auth Clients,Third Party Payments,REVENUE
Wiltshire,http://opendatacommunities.org/id/unitary-authority/wiltshire,27/07/2016,5106912673,2289.40,Aldbourne Nursing Home ,110090,SN8 ,Community Services,MH OP North Locality,Adult Care Nursing Placements- Spot Purchase,Third Party Payments,REVENUE
Wiltshire,http://opendatacommunities.org/id/unitary-authority/wiltshire,27/07/2016,5106912674,448.00,Aldbourne Nursing Home ,110090,SN8 ,Community Services,MH OP North Locality,Adult Care Funded Nursing Care - Loal Auth Clients,Third Party Payments,REVENUE
Wiltshire,http://opendatacommunities.org/id/unitary-authority/wiltshire,27/07/2016,5106912999,2952.00,Aldbourne Nursing Home ,110090,SN8 ,Community Services,Home Loans,Adult Care Loans,Capital charges and Expenditure,REVENUE
Wiltshire,http://opendatacommunities.org/id/unitary-authority/wiltshire,27/07/2016,5106913018,3052.00,Aldbourne Nursing Home ,110090,SN8 ,Community Services,Home Loans,Adult Care Loans,Capital charges and Expenditure,REVENUE
Wiltshire,http://opendatacommunities.org/id/unitary-authority/wiltshire,27/07/2016,5106913310,3052.00,Aldbourne Nursing Home ,110090,SN8 ,Community Services,Marlborough,Adult Care Nursing Placements- Spot Purchase,Third Party Payments,REVENUE
Wiltshire,http://opendatacommunities.org/id/unitary-authority/wiltshire,27/07/2016,5106913311,625.00,Aldbourne Nursing Home ,110090,SN8 ,Community Services,Marlborough,Adult Care Funded Nursing Care - Loal Auth Clients,Third Party Payments,REVENUE
Wiltshire,http://opendatacommunities.org/id/unitary-authority/wiltshire,27/07/2016,5106913312,594.21,Aldbourne Nursing Home ,110090,SN8 ,Community Services,Marlborough,Adult Care Funded Nursing Care - Loal Auth Clients,Third Party Payments,REVENUE
Wiltshire,http://opendatacommunities.org/id/unitary-authority/wiltshire,27/07/2016,5106913461,2076.36,Aldbourne Nursing Home ,110090,SN8 ,Community Services,Marlborough,Adult Care Nursing Placements- Spot Purchase,Third Party Payments,REVENUE
Wiltshire,http://opendatacommunities.org/id/unitary-authority/wiltshire,27/07/2016,5106913462,625.00,Aldbourne Nursing Home ,110090,SN8 ,Community Services,Marlborough,Adult Care Funded Nursing Care - Loal Auth Clients,Third Party Payments,REVENUE
Wiltshire,http://opendatacommunities.org/id/unitary-authority/wiltshire,27/07/2016,5106913464,594.21,Aldbourne Nursing Home ,110090,SN8 ,Community Services,Marlborough,Adult Care Funded Nursing Care - Loal Auth Clients,Third Party Payments,REVENUE
Wiltshire,http://opendatacommunities.org/id/unitary-authority/wiltshire,27/07/2016,5106913465,2552.00,Aldbourne Nursing Home ,110090,SN8 ,Community Services,Marlborough,Adult Care Nursing Placements- Spot Purchase,Third Party Payments,REVENUE
Wiltshire,http://opendatacommunities.org/id/unitary-authority/wiltshire,27/07/2016,5106913466,625.00,Aldbourne Nursing Home ,110090,SN8 ,Community Services,Marlborough,Adult Care Funded Nursing Care - Loal Auth Clients,Third Party Payments,REVENUE
Wiltshire,http://opendatacommunities.org/id/unitary-authority/wiltshire,27/07/2016,5106913469,594.21,Aldbourne Nursing Home ,110090,SN8 ,Community Services,Marlborough,Adult Care Funded Nursing Care - Loal Auth Clients,Third Party Payments,REVENUE
Wiltshire,http://opendatacommunities.org/id/unitary-authority/wiltshire,27/07/2016,5106913805,2040.84,Aldbourne Nursing Home ,110090,SN8 ,Community Services,Marlborough,Adult Care Nursing Placements- Spot Purchase,Third Party Payments,REVENUE
Wiltshire,http://opendatacommunities.org/id/unitary-authority/wiltshire,27/07/2016,5106913806,625.00,Aldbourne Nursing Home ,110090,SN8 ,Community Services,Marlborough,Adult Care Funded Nursing Care - Loal Auth Clients,Third Party Payments,REVENUE
Wiltshire,http://opendatacommunities.org/id/unitary-authority/wiltshire,27/07/2016,5106916003,2562.12,Aldbourne Nursing Home ,110090,SN8 ,Community Services,Marlborough,Adult Care Nursing Placements- Spot Purchase,Third Party Payments,REVENUE
Wiltshire,http://opendatacommunities.org/id/unitary-authority/wiltshire,27/07/2016,5106916004,448.00,Aldbourne Nursing Home ,110090,SN8 ,Community Services,Marlborough,Adult Care Funded Nursing Care - Loal Auth Clients,Third Party Payments,REVENUE
Wiltshire,http://opendatacommunities.org/id/unitary-authority/wiltshire,27/07/2016,5106916391,3125.00,Aldbourne Nursing Home ,110090,SN8 ,Community Services,Marlborough,Adult Residential Placements - 12 Week,Third Party Payments,REVENUE
Wiltshire,http://opendatacommunities.org/id/unitary-authority/wiltshire,27/07/2016,5106916454,3600.00,Aldbourne Nursing Home ,110090,SN8 ,Community Services,Marlborough,Adult Care Nursing Placements - 12 Week,Third Party Payments,REVENUE
Wiltshire,http://opendatacommunities.org/id/unitary-authority/wiltshire,27/07/2016,5106916455,625.00,Aldbourne Nursing Home ,110090,SN8 ,Community Services,Marlborough,Adult Care Funded Nursing Care - Loal Auth Clients,Third Party Payments,REVENUE
Wiltshire,http://opendatacommunities.org/id/unitary-authority/wiltshire,13/07/2016,1901753820,4510.88,Alder King ,100899,BS8 ,Wiltshire Council,Wiltshire Council,Cost of Asset Disposal,Balance Sheet Accounts,REVENUE
Wiltshire,http://opendatacommunities.org/id/unitary-authority/wiltshire,01/07/2016,5106898040,5705.00,Alder King ,100899,BS8 ,Resources,CastledownBusinessPa,Premises Rental / Hire Charges,Premises Related,REVENUE
Wiltshire,http://opendatacommunities.org/id/unitary-authority/wiltshire,12/07/2016,1901753366,760.00,Alexander's ,129540,BA12,Neighbourhood & Planning,Mainstream Primary,Transport Contracts,Third Party Payments,REVENUE
Wiltshire,http://opendatacommunities.org/id/unitary-authority/wiltshire,27/07/2016,5106912912,5764.60,Alexandra Homes (Bristol) Ltd ,131787,BS15,Community Services,MH AOWA North Locali,Adult Residential Placements - Spot Purchase,Third Party Payments,REVENUE
Wiltshire,http://opendatacommunities.org/id/unitary-authority/wiltshire,01/07/2016,5106905799,685.74,Alliance Home Care ,110986,SN15,Community Services,MH AOWA North Locali,Adult Residential Placements - Spot Purchase,Third Party Payments,REVENUE
Wiltshire,http://opendatacommunities.org/id/unitary-authority/wiltshire,01/07/2016,5106905800,3200.00,Alliance Home Care ,110986,SN15,Community Services,MH AOWA North Locali,Adult Residential Placements - Spot Purchase,Third Party Payments,REVENUE
Wiltshire,http://opendatacommunities.org/id/unitary-authority/wiltshire,27/07/2016,5106912978,2108.92,Alliance Home Care ,110986,SN15,Community Services,MH OP North Locality,Adult Residential Placements - Spot Purchase,Third Party Payments,REVENUE
Wiltshire,http://opendatacommunities.org/id/unitary-authority/wiltshire,27/07/2016,5106913339,3651.12,Alliance Home Care ,110986,SN15,Community Services,MH AOWA North Locali,Adult Residential Placements - Spot Purchase,Third Party Payments,REVENUE
Wiltshire,http://opendatacommunities.org/id/unitary-authority/wiltshire,27/07/2016,5106913731,3749.52,Alliance Home Care ,110986,SN15,Community Services,MH OP North Locality,Adult Residential Placements - Spot Purchase,Third Party Payments,REVENUE
Wiltshire,http://opendatacommunities.org/id/unitary-authority/wiltshire,27/07/2016,5106915894,5328.00,Alliance Home Care ,110986,SN15,Community Services,CTPLD Place CIC U65,Adult Residential Placements - Spot Purchase,Third Party Payments,REVENUE
Wiltshire,http://opendatacommunities.org/id/unitary-authority/wiltshire,27/07/2016,5106916283,3200.00,Alliance Home Care ,110986,SN15,Community Services,MH AOWA North Locali,Adult Residential Placements - Spot Purchase,Third Party Payments,REVENUE
Wiltshire,http://opendatacommunities.org/id/unitary-authority/wiltshire,05/07/2016,5106906193,263.86,Allied Healthcare  UK  Ltd ,110113,ST18,Children & Education,CDT S&W,Children's Residential / Domiciliary Care,Third Party Payments,REVENUE
Wiltshire,http://opendatacommunities.org/id/unitary-authority/wiltshire,05/07/2016,5106906195,303.81,Allied Healthcare  UK  Ltd ,110113,ST18,Children & Education,CDT S&W,Children's Residential / Domiciliary Care,Third Party Payments,REVENUE
Wiltshire,http://opendatacommunities.org/id/unitary-authority/wiltshire,19/07/2016,5106910349,301.15,Allied Healthcare  UK  Ltd ,110113,ST18,Children & Education,CDT S&W,Children's Residential / Domiciliary Care,Third Party Payments,REVENUE
Wiltshire,http://opendatacommunities.org/id/unitary-authority/wiltshire,19/07/2016,5106910353,301.15,Allied Healthcare  UK  Ltd ,110113,ST18,Children & Education,CDT S&W,Children's Residential / Domiciliary Care,Third Party Payments,REVENUE
Wiltshire,http://opendatacommunities.org/id/unitary-authority/wiltshire,07/07/2016,5106906673,1703.50,Allied Healthcare Group Allied Healthcare Group,113066,SP2 ,Community Services,Endless/St.A,Adult Domiciliary Care - Spot Contribution,Income,REVENUE
Wiltshire,http://opendatacommunities.org/id/unitary-authority/wiltshire,07/07/2016,5106906676,944.79,Allied Healthcare Group Allied Healthcare Group,113066,SP2 ,Community Services,MH AOWA South Locali,Supported Living - Without SP payments,Third Party Payments,REVENUE
Wiltshire,http://opendatacommunities.org/id/unitary-authority/wiltshire,07/07/2016,5106906688,289.70,Allied Healthcare Group Allied Healthcare Group,113066,SP2 ,Community Services,MH AOWA South Locali,Adult Domiciliary Care - Spot Contribution,Income,REVENUE
Wiltshire,http://opendatacommunities.org/id/unitary-authority/wiltshire,15/07/2016,5106906969,3989.92,Allied Healthcare Group Allied Healthcare Group,113066,SP2 ,Community Services,CTPLD Place CIC U65,Supported Living - Without SP payments,Third Party Payments,REVENUE
Wiltshire,http://opendatacommunities.org/id/unitary-authority/wiltshire,15/07/2016,5106906970,1467.21,Allied Healthcare Group Allied Healthcare Group,113066,SP2 ,Community Services,CTPLD Place CIC U65,Supported Living - Without SP payments,Third Party Payments,REVENUE
Wiltshire,http://opendatacommunities.org/id/unitary-authority/wiltshire,11/07/2016,5106906973,901.61,Allied Healthcare Group Allied Healthcare Group,113066,SP2 ,Community Services,Southbroom,Adult Domiciliary Care - Spot,Third Party Payments,REVENUE
Wiltshire,http://opendatacommunities.org/id/unitary-authority/wiltshire,13/07/2016,5106907722,6719.71,Allied Healthcare Group Allied Healthcare Group,113066,SP2 ,Community Services,CTPLD Place CIC U65,Supported Living - Without SP payments,Third Party Payments,REVENUE
Wiltshire,http://opendatacommunities.org/id/unitary-authority/wiltshire,13/07/2016,5106907723,712.49,Allied Healthcare Group Allied Healthcare Group,113066,SP2 ,Community Services,CTPLD Place CIC U65,Supported Living - Without SP payments,Third Party Payments,REVENUE
Wiltshire,http://opendatacommunities.org/id/unitary-authority/wiltshire,26/07/2016,5106916515,1093.05,Allied Healthcare Group Allied Healthcare Group,113066,SP2 ,Community Services,Southbroom,Adult Domiciliary Care - Spot,Third Party Payments,REVENUE
Wiltshire,http://opendatacommunities.org/id/unitary-authority/wiltshire,28/07/2016,5106918924,913.85,Allied Healthcare Group Allied Healthcare Group,113066,SP2 ,Community Services,MH AOWA South Locali,Adult Domiciliary Care - Mileage,Third Party Payments,REVENUE
Wiltshire,http://opendatacommunities.org/id/unitary-authority/wiltshire,28/07/2016,5106918934,1699.84,Allied Healthcare Group Allied Healthcare Group,113066,SP2 ,Community Services,Endless/St.A,Adult Domiciliary Care - Spot Contribution,Income,REVENUE
Wiltshire,http://opendatacommunities.org/id/unitary-authority/wiltshire,28/07/2016,5106918935,450.92,Allied Healthcare Group Allied Healthcare Group,113066,SP2 ,Community Services,Orchard,Supported Living - Without SP payments,Third Party Payments,REVENUE
Wiltshire,http://opendatacommunities.org/id/unitary-authority/wiltshire,20/07/2016,5106906931,410.00,ALLSPARES  AUTO  LTD ,110116,CF33,Neighbourhood & Planning,Fleet Operations,Vehicle Parts,Transport Related,REVENUE
Wiltshire,http://opendatacommunities.org/id/unitary-authority/wiltshire,19/07/2016,5106908887,255.00,ALLSPARES  AUTO  LTD ,110116,CF33,Neighbourhood & Planning,Fleet Operations,Vehicle Parts,Transport Related,REVENUE
Wiltshire,http://opendatacommunities.org/id/unitary-authority/wiltshire,19/07/2016,5106908888,410.00,ALLSPARES  AUTO  LTD ,110116,CF33,Neighbourhood & Planning,Fleet Operations,Vehicle Parts,Transport Related,REVENUE
Wiltshire,http://opendatacommunities.org/id/unitary-authority/wiltshire,05/07/2016,5106891889,621.09,Alpha Chemicals ,138904,SO31,Neighbourhood & Planning,Devizes,Cleaning Materials - Buildings,Premises Related,REVENUE
Wiltshire,http://opendatacommunities.org/id/unitary-authority/wiltshire,05/07/2016,5106894228,447.85,Alpha Chemicals ,138904,SO31,Neighbourhood & Planning,Five Rivers,Building Fixtures and Fittings,Premises Related,REVENUE
Wiltshire,http://opendatacommunities.org/id/unitary-authority/wiltshire,15/07/2016,5106897747,308.24,Alpha Chemicals ,138904,SO31,Neighbourhood & Planning,Five Rivers,Building Fixtures and Fittings,Premises Related,REVENUE
Wiltshire,http://opendatacommunities.org/id/unitary-authority/wiltshire,06/07/2016,5106906331,285.00,Alpha Chemicals ,138904,SO31,Neighbourhood & Planning,Springfield Leisr Cn,Cleaning Materials - Buildings,Premises Related,REVENUE
Wiltshire,http://opendatacommunities.org/id/unitary-authority/wiltshire,19/07/2016,5106909037,329.40,Alpha Chemicals ,138904,SO31,Neighbourhood & Planning,Five Rivers,Building Fixtures and Fittings,Premises Related,REVENUE
Wiltshire,http://opendatacommunities.org/id/unitary-authority/wiltshire,05/07/2016,1901744603,387.60,Alpha Taxis ,100124,BA14,Neighbourhood & Planning,Mainstream Secondary,Transport Contracts,Third Party Payments,REVENUE
Wiltshire,http://opendatacommunities.org/id/unitary-authority/wiltshire,05/07/2016,1901744604,973.55,Alpha Taxis ,100124,BA14,Neighbourhood & Planning,SEN Primary,Transport Contracts,Third Party Payments,REVENUE
Wiltshire,http://opendatacommunities.org/id/unitary-authority/wiltshire,05/07/2016,1901744605,987.00,Alpha Taxis ,100124,BA14,Neighbourhood & Planning,SEN Secondary,Transport Contracts,Third Party Payments,REVENUE
Wiltshire,http://opendatacommunities.org/id/unitary-authority/wiltshire,05/07/2016,1901744606,1276.80,Alpha Taxis ,100124,BA14,Neighbourhood & Planning,SEN Primary,Transport Contracts,Third Party Payments,REVENUE
Wiltshire,http://opendatacommunities.org/id/unitary-authority/wiltshire,05/07/2016,1901744607,792.00,Alpha Taxis ,100124,BA14,Neighbourhood & Planning,SEN Primary,Transport Contracts,Third Party Payments,REVENUE
Wiltshire,http://opendatacommunities.org/id/unitary-authority/wiltshire,05/07/2016,1901744612,909.70,Alpha Taxis ,100124,BA14,Neighbourhood & Planning,Mainstream Secondary,Transport Contracts,Third Party Payments,REVENUE
Wiltshire,http://opendatacommunities.org/id/unitary-authority/wiltshire,05/07/2016,1901744615,419.98,Alpha Taxis ,100124,BA14,Neighbourhood & Planning,Mainstream Primary,Transport Contracts,Third Party Payments,REVENUE
Wiltshire,http://opendatacommunities.org/id/unitary-authority/wiltshire,05/07/2016,1901744616,435.60,Alpha Taxis ,100124,BA14,Neighbourhood & Planning,Mainstream Primary,Transport Contracts,Third Party Payments,REVENUE
Wiltshire,http://opendatacommunities.org/id/unitary-authority/wiltshire,05/07/2016,1901744617,252.40,Alpha Taxis ,100124,BA14,Neighbourhood & Planning,Mainstream Secondary,Transport Contracts,Third Party Payments,REVENUE
Wiltshire,http://opendatacommunities.org/id/unitary-authority/wiltshire,05/07/2016,1901744618,424.22,Alpha Taxis ,100124,BA14,Neighbourhood & Planning,Mainstream Primary,Transport Contracts,Third Party Payments,REVENUE
Wiltshire,http://opendatacommunities.org/id/unitary-authority/wiltshire,05/07/2016,1901744620,332.55,Alpha Taxis ,100124,BA14,Community Services,CTPLD Place CIC U65,Transport Contracts,Third Party Payments,REVENUE
Wiltshire,http://opendatacommunities.org/id/unitary-authority/wiltshire,05/07/2016,1901744621,256.00,Alpha Taxis ,100124,BA14,Children & Education,LAC & 16+ South,Transport Contracts,Third Party Payments,REVENUE
Wiltshire,http://opendatacommunities.org/id/unitary-authority/wiltshire,05/07/2016,1901744622,1036.45,Alpha Taxis ,100124,BA14,Neighbourhood & Planning,Mainstream Secondary,Transport Contracts,Third Party Payments,REVENUE
Wiltshire,http://opendatacommunities.org/id/unitary-authority/wiltshire,05/07/2016,1901744623,324.00,Alpha Taxis ,100124,BA14,Neighbourhood & Planning,Mainstream Secondary,Transport Contracts,Third Party Payments,REVENUE
Wiltshire,http://opendatacommunities.org/id/unitary-authority/wiltshire,05/07/2016,1901744624,364.75,Alpha Taxis ,100124,BA14,Neighbourhood & Planning,Mainstream 16+ FE,Transport Contracts,Third Party Payments,REVENUE
Wiltshire,http://opendatacommunities.org/id/unitary-authority/wiltshire,18/07/2016,1901755348,252.30,Alpha Taxis ,100124,BA14,Neighbourhood & Planning,Mainstream Secondary,Transport Contracts,Third Party Payments,REVENUE
Wiltshire,http://opendatacommunities.org/id/unitary-authority/wiltshire,18/07/2016,1901755348,710.00,Alpha Taxis ,100124,BA14,Neighbourhood & Planning,SEN Primary,Transport Contracts,Third Party Payments,REVENUE
Wiltshire,http://opendatacommunities.org/id/unitary-authority/wiltshire,18/07/2016,1901755348,1807.00,Alpha Taxis ,100124,BA14,Children & Education,Safeguarding Ass Nth,Transport Contracts,Third Party Payments,REVENUE
Wiltshire,http://opendatacommunities.org/id/unitary-authority/wiltshire,18/07/2016,1901755348,2202.00,Alpha Taxis ,100124,BA14,Children & Education,Safeguarding Ass Sth,Transport Contracts,Third Party Payments,REVENUE
Wiltshire,http://opendatacommunities.org/id/unitary-authority/wiltshire,18/07/2016,1901755348,2480.00,Alpha Taxis ,100124,BA14,Neighbourhood & Planning,SEN Secondary,Transport Contracts,Third Party Payments,REVENUE
Wiltshire,http://opendatacommunities.org/id/unitary-authority/wiltshire,29/07/2016,5106919026,330.00,Alzheimer's Society ,110125,SP1 ,Community Services,Downton,Adult Domiciliary Care - Spot,Third Party Payments,REVENUE
Wiltshire,http://opendatacommunities.org/id/unitary-authority/wiltshire,29/07/2016,5106919037,264.00,Alzheimer's Society ,110125,SP1 ,Community Services,South Locality OP,Adult Domiciliary Care - Spot,Third Party Payments,REVENUE
Wiltshire,http://opendatacommunities.org/id/unitary-authority/wiltshire,29/07/2016,5106919042,330.00,Alzheimer's Society ,110125,SP1 ,Community Services,Endless/St.A,Adult Domiciliary Care - Spot,Third Party Payments,REVENUE
Wiltshire,http://opendatacommunities.org/id/unitary-authority/wiltshire,01/07/2016,5106905632,325.95,Alzheimers Support ,113451,BA14,Community Services,Lansdown,Adult Domiciliary Care - Spot,Third Party Payments,REVENUE
Wiltshire,http://opendatacommunities.org/id/unitary-authority/wiltshire,01/07/2016,5106905638,317.52,Alzheimers Support ,113451,BA14,Community Services,Marlborough,Adult Domiciliary Care - Mileage,Third Party Payments,REVENUE
Wiltshire,http://opendatacommunities.org/id/unitary-authority/wiltshire,06/07/2016,5106906250,893.43,Alzheimers Support ,113451,BA14,Community Services,OVA West Locality,Adult Domiciliary Care - Mileage,Third Party Payments,REVENUE
Wiltshire,http://opendatacommunities.org/id/unitary-authority/wiltshire,06/07/2016,5106906256,840.38,Alzheimers Support ,113451,BA14,Community Services,OVA West Locality,Adult Domiciliary Care - Mileage,Third Party Payments,REVENUE
Wiltshire,http://opendatacommunities.org/id/unitary-authority/wiltshire,27/07/2016,5106906443,3600.00,Amber Residential Care Homes Ltd ,141558,OX4 ,Community Services,MH AOWA North Locali,Supported Living - Without SP payments,Third Party Payments,REVENUE
Wiltshire,http://opendatacommunities.org/id/unitary-authority/wiltshire,27/07/2016,5106913233,17057.08,Amberwood Cambian Group ,138521,BH14,Community Services,CTPLD Place CIC U65,Adult Residential Placements - Spot Purchase,Third Party Payments,REVENUE
Wiltshire,http://opendatacommunities.org/id/unitary-authority/wiltshire,19/07/2016,5106909060,4560.00,Ameo Professional Services LLP ,137429,B80 ,Resources,InternalCommunicats,Consultants� Fees,Supplies and Services,REVENUE
Wiltshire,http://opendatacommunities.org/id/unitary-authority/wiltshire,26/07/2016,5106911425,4860.00,Ameo Professional Services LLP ,137429,B80 ,Neighbourhood & Planning,Swindon & Wilts LEP,Other Professional Fees,Supplies and Services,REVENUE
Wiltshire,http://opendatacommunities.org/id/unitary-authority/wiltshire,18/07/2016,5106908944,3661.10,Amicus Foster Care Limited ,126050,BS2 ,Children & Education,Ext Placement & IFA,Adult / Child Care Agency Placement,Third Party Payments,REVENUE
Wiltshire,http://opendatacommunities.org/id/unitary-authority/wiltshire,18/07/2016,5106908945,3342.11,Amicus Foster Care Limited ,126050,BS2 ,Children & Education,Ext Placement & IFA,Adult / Child Care Agency Placement,Third Party Payments,REVENUE
Wiltshire,http://opendatacommunities.org/id/unitary-authority/wiltshire,18/07/2016,5106908946,4627.99,Amicus Foster Care Limited ,126050,BS2 ,Children & Education,Ext Placement & IFA,Adult / Child Care Agency Placement,Third Party Payments,REVENUE
Wiltshire,http://opendatacommunities.org/id/unitary-authority/wiltshire,18/07/2016,5106908947,3624.21,Amicus Foster Care Limited ,126050,BS2 ,Children & Education,Ext Placement & IFA,Adult / Child Care Agency Placement,Third Party Payments,REVENUE
Wiltshire,http://opendatacommunities.org/id/unitary-authority/wiltshire,18/07/2016,5106908948,3146.50,Amicus Foster Care Limited ,126050,BS2 ,Children & Education,Ext Placement & IFA,Adult / Child Care Agency Placement,Third Party Payments,REVENUE
Wiltshire,http://opendatacommunities.org/id/unitary-authority/wiltshire,18/07/2016,5106908950,3406.90,Amicus Foster Care Limited ,126050,BS2 ,Children & Education,Ext Placement & IFA,Adult / Child Care Agency Placement,Third Party Payments,REVENUE
Wiltshire,http://opendatacommunities.org/id/unitary-authority/wiltshire,21/07/2016,5106910715,3146.50,Amicus Foster Care Limited ,126050,BS2 ,Children & Education,Ext Placement & IFA,Adult / Child Care Agency Placement,Third Party Payments,REVENUE
Wiltshire,http://opendatacommunities.org/id/unitary-authority/wiltshire,27/07/2016,1901756448,342.85,AMS Care Wiltshire ,130764,SN4 ,Community Services,Adult Care Gross Loa,Adult Nursing Place- Spot Purchase Contr,Income,REVENUE
Wiltshire,http://opendatacommunities.org/id/unitary-authority/wiltshire,27/07/2016,5106912554,2559.68,AMS Care Wiltshire ,130764,SN4 ,Community Services,Cricklade,Adult Care Nursing Placements- Block Contract,Third Party Payments,REVENUE
Wiltshire,http://opendatacommunities.org/id/unitary-authority/wiltshire,27/07/2016,5106912555,448.00,AMS Care Wiltshire ,130764,SN4 ,Community Services,Cricklade,Adult Care Funded Nursing Care - Loal Auth Clients,Third Party Payments,REVENUE
Wiltshire,http://opendatacommunities.org/id/unitary-authority/wiltshire,27/07/2016,5106912596,2559.68,AMS Care Wiltshire ,130764,SN4 ,Community Services,Cricklade,Adult Care Nursing Placements- Block Contract,Third Party Payments,REVENUE
Wiltshire,http://opendatacommunities.org/id/unitary-authority/wiltshire,27/07/2016,5106912597,448.00,AMS Care Wiltshire ,130764,SN4 ,Community Services,Cricklade,Adult Care Funded Nursing Care - Loal Auth Clients,Third Party Payments,REVENUE
Wiltshire,http://opendatacommunities.org/id/unitary-authority/wiltshire,27/07/2016,5106912680,2559.68,AMS Care Wiltshire ,130764,SN4 ,Community Services,Cricklade,Adult Care Nursing Placements- Block Contract,Third Party Payments,REVENUE
Wiltshire,http://opendatacommunities.org/id/unitary-authority/wiltshire,27/07/2016,5106912681,448.00,AMS Care Wiltshire ,130764,SN4 ,Community Services,Cricklade,Adult Care Funded Nursing Care - Loal Auth Clients,Third Party Payments,REVENUE
Wiltshire,http://opendatacommunities.org/id/unitary-authority/wiltshire,27/07/2016,5106912705,2559.68,AMS Care Wiltshire ,130764,SN4 ,Community Services,Cricklade,Adult Care Nursing Placements- Block Contract,Third Party Payments,REVENUE
Wiltshire,http://opendatacommunities.org/id/unitary-authority/wiltshire,27/07/2016,5106912706,448.00,AMS Care Wiltshire ,130764,SN4 ,Community Services,Cricklade,Adult Care Funded Nursing Care - Loal Auth Clients,Third Party Payments,REVENUE
Wiltshire,http://opendatacommunities.org/id/unitary-authority/wiltshire,27/07/2016,5106912736,2353.36,AMS Care Wiltshire ,130764,SN4 ,Community Services,Cricklade,Adult Care Nursing Placements- Block Contract,Third Party Payments,REVENUE
Wiltshire,http://opendatacommunities.org/id/unitary-authority/wiltshire,27/07/2016,5106912737,448.00,AMS Care Wiltshire ,130764,SN4 ,Community Services,Cricklade,Adult Care Funded Nursing Care - Loal Auth Clients,Third Party Payments,REVENUE
Wiltshire,http://opendatacommunities.org/id/unitary-authority/wiltshire,27/07/2016,5106912802,2559.68,AMS Care Wiltshire ,130764,SN4 ,Community Services,Cricklade,Adult Care Nursing Placements- Block Contract,Third Party Payments,REVENUE
Wiltshire,http://opendatacommunities.org/id/unitary-authority/wiltshire,27/07/2016,5106912803,448.00,AMS Care Wiltshire ,130764,SN4 ,Community Services,Cricklade,Adult Care Funded Nursing Care - Loal Auth Clients,Third Party Payments,REVENUE
Wiltshire,http://opendatacommunities.org/id/unitary-authority/wiltshire,27/07/2016,5106912805,2353.36,AMS Care Wiltshire ,130764,SN4 ,Community Services,Cricklade,Adult Care Nursing Placements- Block Contract,Third Party Payments,REVENUE
Wiltshire,http://opendatacommunities.org/id/unitary-authority/wiltshire,27/07/2016,5106912806,448.00,AMS Care Wiltshire ,130764,SN4 ,Community Services,Cricklade,Adult Care Funded Nursing Care - Loal Auth Clients,Third Party Payments,REVENUE
Wiltshire,http://opendatacommunities.org/id/unitary-authority/wiltshire,27/07/2016,5106913009,2353.36,AMS Care Wiltshire ,130764,SN4 ,Community Services,Cricklade,Adult Care Nursing Placements- Block Contract,Third Party Payments,REVENUE
Wiltshire,http://opendatacommunities.org/id/unitary-authority/wiltshire,27/07/2016,5106913010,448.00,AMS Care Wiltshire ,130764,SN4 ,Community Services,Cricklade,Adult Care Funded Nursing Care - Loal Auth Clients,Third Party Payments,REVENUE
Wiltshire,http://opendatacommunities.org/id/unitary-authority/wiltshire,27/07/2016,5106913218,2344.12,AMS Care Wiltshire ,130764,SN4 ,Community Services,Adult Care Gross Loa,Adult Care Loans,Capital charges and Expenditure,REVENUE
Wiltshire,http://opendatacommunities.org/id/unitary-authority/wiltshire,27/07/2016,5106913422,2559.68,AMS Care Wiltshire ,130764,SN4 ,Community Services,Cricklade,Adult Care Nursing Placements- Block Contract,Third Party Payments,REVENUE
Wiltshire,http://opendatacommunities.org/id/unitary-authority/wiltshire,27/07/2016,5106913423,448.00,AMS Care Wiltshire ,130764,SN4 ,Community Services,Cricklade,Adult Care Funded Nursing Care - Loal Auth Clients,Third Party Payments,REVENUE
Wiltshire,http://opendatacommunities.org/id/unitary-authority/wiltshire,27/07/2016,5106913428,2353.36,AMS Care Wiltshire ,130764,SN4 ,Community Services,Cricklade,Adult Care Nursing Placements- Block Contract,Third Party Payments,REVENUE
Wiltshire,http://opendatacommunities.org/id/unitary-authority/wiltshire,27/07/2016,5106913429,448.00,AMS Care Wiltshire ,130764,SN4 ,Community Services,Cricklade,Adult Care Funded Nursing Care - Loal Auth Clients,Third Party Payments,REVENUE
Wiltshire,http://opendatacommunities.org/id/unitary-authority/wiltshire,27/07/2016,5106913433,2559.68,AMS Care Wiltshire ,130764,SN4 ,Community Services,Cricklade,Adult Care Nursing Placements- Block Contract,Third Party Payments,REVENUE
Wiltshire,http://opendatacommunities.org/id/unitary-authority/wiltshire,27/07/2016,5106913434,448.00,AMS Care Wiltshire ,130764,SN4 ,Community Services,Cricklade,Adult Care Funded Nursing Care - Loal Auth Clients,Third Party Payments,REVENUE
Wiltshire,http://opendatacommunities.org/id/unitary-authority/wiltshire,27/07/2016,5106913442,2559.68,AMS Care Wiltshire ,130764,SN4 ,Community Services,Cricklade,Adult Care Nursing Placements- Block Contract,Third Party Payments,REVENUE
Wiltshire,http://opendatacommunities.org/id/unitary-authority/wiltshire,27/07/2016,5106913443,448.00,AMS Care Wiltshire ,130764,SN4 ,Community Services,Cricklade,Adult Care Funded Nursing Care - Loal Auth Clients,Third Party Payments,REVENUE
Wiltshire,http://opendatacommunities.org/id/unitary-authority/wiltshire,27/07/2016,5106913472,2549.60,AMS Care Wiltshire ,130764,SN4 ,Community Services,Adult Care Gross Loa,Adult Care Loans,Capital charges and Expenditure,REVENUE
Wiltshire,http://opendatacommunities.org/id/unitary-authority/wiltshire,27/07/2016,5106913500,2559.68,AMS Care Wiltshire ,130764,SN4 ,Community Services,Cricklade,Adult Care Nursing Placements- Spot Purchase,Third Party Payments,REVENUE
Wiltshire,http://opendatacommunities.org/id/unitary-authority/wiltshire,27/07/2016,5106913501,448.00,AMS Care Wiltshire ,130764,SN4 ,Community Services,Cricklade,Adult Care Funded Nursing Care - Loal Auth Clients,Third Party Payments,REVENUE
Wiltshire,http://opendatacommunities.org/id/unitary-authority/wiltshire,27/07/2016,5106913529,2559.68,AMS Care Wiltshire ,130764,SN4 ,Community Services,Cricklade,Adult Care Nursing Placements- Block Contract,Third Party Payments,REVENUE
Wiltshire,http://opendatacommunities.org/id/unitary-authority/wiltshire,27/07/2016,5106913530,448.00,AMS Care Wiltshire ,130764,SN4 ,Community Services,Cricklade,Adult Care Funded Nursing Care - Loal Auth Clients,Third Party Payments,REVENUE
Wiltshire,http://opendatacommunities.org/id/unitary-authority/wiltshire,27/07/2016,5106913937,2353.36,AMS Care Wiltshire ,130764,SN4 ,Community Services,Cricklade,Adult Care Nursing Placements- Block Contract,Third Party Payments,REVENUE
Wiltshire,http://opendatacommunities.org/id/unitary-authority/wiltshire,27/07/2016,5106913938,448.00,AMS Care Wiltshire ,130764,SN4 ,Community Services,Cricklade,Adult Care Funded Nursing Care - Loal Auth Clients,Third Party Payments,REVENUE
Wiltshire,http://opendatacommunities.org/id/unitary-authority/wiltshire,27/07/2016,5106914246,2353.36,AMS Care Wiltshire ,130764,SN4 ,Community Services,Cricklade,Adult Care Nursing Placements- Block Contract,Third Party Payments,REVENUE
Wiltshire,http://opendatacommunities.org/id/unitary-authority/wiltshire,27/07/2016,5106914247,448.00,AMS Care Wiltshire ,130764,SN4 ,Community Services,Cricklade,Adult Care Funded Nursing Care - Loal Auth Clients,Third Party Payments,REVENUE
Wiltshire,http://opendatacommunities.org/id/unitary-authority/wiltshire,27/07/2016,5106914360,2353.36,AMS Care Wiltshire ,130764,SN4 ,Community Services,Cricklade,Adult Care Nursing Placements- Block Contract,Third Party Payments,REVENUE
Wiltshire,http://opendatacommunities.org/id/unitary-authority/wiltshire,27/07/2016,5106914361,448.00,AMS Care Wiltshire ,130764,SN4 ,Community Services,Cricklade,Adult Care Funded Nursing Care - Loal Auth Clients,Third Party Payments,REVENUE
Wiltshire,http://opendatacommunities.org/id/unitary-authority/wiltshire,27/07/2016,5106914375,2559.68,AMS Care Wiltshire ,130764,SN4 ,Community Services,Cricklade,Adult Care Nursing Placements- Block Contract,Third Party Payments,REVENUE
Wiltshire,http://opendatacommunities.org/id/unitary-authority/wiltshire,27/07/2016,5106914376,448.00,AMS Care Wiltshire ,130764,SN4 ,Community Services,Cricklade,Adult Care Funded Nursing Care - Loal Auth Clients,Third Party Payments,REVENUE
Wiltshire,http://opendatacommunities.org/id/unitary-authority/wiltshire,27/07/2016,5106914449,2353.36,AMS Care Wiltshire ,130764,SN4 ,Community Services,Cricklade,Adult Care Nursing Placements- Block Contract,Third Party Payments,REVENUE
Wiltshire,http://opendatacommunities.org/id/unitary-authority/wiltshire,27/07/2016,5106914450,448.00,AMS Care Wiltshire ,130764,SN4 ,Community Services,Cricklade,Adult Care Funded Nursing Care - Loal Auth Clients,Third Party Payments,REVENUE
Wiltshire,http://opendatacommunities.org/id/unitary-authority/wiltshire,27/07/2016,5106914457,2353.36,AMS Care Wiltshire ,130764,SN4 ,Community Services,Cricklade,Adult Care Nursing Placements- Block Contract,Third Party Payments,REVENUE
Wiltshire,http://opendatacommunities.org/id/unitary-authority/wiltshire,27/07/2016,5106914458,448.00,AMS Care Wiltshire ,130764,SN4 ,Community Services,Cricklade,Adult Care Funded Nursing Care - Loal Auth Clients,Third Party Payments,REVENUE
Wiltshire,http://opendatacommunities.org/id/unitary-authority/wiltshire,27/07/2016,5106914460,2353.36,AMS Care Wiltshire ,130764,SN4 ,Community Services,MH OP North Locality,Adult Care Nursing Placements- Block Contract,Third Party Payments,REVENUE
Wiltshire,http://opendatacommunities.org/id/unitary-authority/wiltshire,27/07/2016,5106914461,448.00,AMS Care Wiltshire ,130764,SN4 ,Community Services,MH OP North Locality,Adult Care Funded Nursing Care - Loal Auth Clients,Third Party Payments,REVENUE
Wiltshire,http://opendatacommunities.org/id/unitary-authority/wiltshire,27/07/2016,5106914476,2353.36,AMS Care Wiltshire ,130764,SN4 ,Community Services,Cricklade,Adult Care Nursing Placements- Block Contract,Third Party Payments,REVENUE
Wiltshire,http://opendatacommunities.org/id/unitary-authority/wiltshire,27/07/2016,5106914477,448.00,AMS Care Wiltshire ,130764,SN4 ,Community Services,Cricklade,Adult Care Funded Nursing Care - Loal Auth Clients,Third Party Payments,REVENUE
Wiltshire,http://opendatacommunities.org/id/unitary-authority/wiltshire,27/07/2016,5106914497,2353.36,AMS Care Wiltshire ,130764,SN4 ,Community Services,Cricklade,Adult Care Nursing Placements- Block Contract,Third Party Payments,REVENUE
Wiltshire,http://opendatacommunities.org/id/unitary-authority/wiltshire,27/07/2016,5106914498,448.00,AMS Care Wiltshire ,130764,SN4 ,Community Services,Cricklade,Adult Care Funded Nursing Care - Loal Auth Clients,Third Party Payments,REVENUE
Wiltshire,http://opendatacommunities.org/id/unitary-authority/wiltshire,27/07/2016,5106914513,2353.36,AMS Care Wiltshire ,130764,SN4 ,Community Services,Cricklade,Adult Care Nursing Placements- Block Contract,Third Party Payments,REVENUE
Wiltshire,http://opendatacommunities.org/id/unitary-authority/wiltshire,27/07/2016,5106914514,448.00,AMS Care Wiltshire ,130764,SN4 ,Community Services,Cricklade,Adult Care Funded Nursing Care - Loal Auth Clients,Third Party Payments,REVENUE
Wiltshire,http://opendatacommunities.org/id/unitary-authority/wiltshire,27/07/2016,5106914626,2559.68,AMS Care Wiltshire ,130764,SN4 ,Community Services,Cricklade,Adult Care Nursing Placements- Block Contract,Third Party Payments,REVENUE
Wiltshire,http://opendatacommunities.org/id/unitary-authority/wiltshire,27/07/2016,5106914627,448.00,AMS Care Wiltshire ,130764,SN4 ,Community Services,Cricklade,Adult Care Funded Nursing Care - Loal Auth Clients,Third Party Payments,REVENUE
Wiltshire,http://opendatacommunities.org/id/unitary-authority/wiltshire,27/07/2016,5106915620,2559.68,AMS Care Wiltshire ,130764,SN4 ,Community Services,Adult Care Gross Loa,Adult Care Loans,Capital charges and Expenditure,REVENUE
Wiltshire,http://opendatacommunities.org/id/unitary-authority/wiltshire,27/07/2016,5106915785,2559.68,AMS Care Wiltshire ,130764,SN4 ,Community Services,Cricklade,Adult Care Nursing Placements- Block Contract,Third Party Payments,REVENUE
Wiltshire,http://opendatacommunities.org/id/unitary-authority/wiltshire,27/07/2016,5106915786,448.00,AMS Care Wiltshire ,130764,SN4 ,Community Services,Cricklade,Adult Care Funded Nursing Care - Loal Auth Clients,Third Party Payments,REVENUE
Wiltshire,http://opendatacommunities.org/id/unitary-authority/wiltshire,27/07/2016,5106916193,2559.68,AMS Care Wiltshire ,130764,SN4 ,Community Services,Cricklade,Adult Care Nursing Placements- Spot Purchase,Third Party Payments,REVENUE
Wiltshire,http://opendatacommunities.org/id/unitary-authority/wiltshire,27/07/2016,5106916194,448.00,AMS Care Wiltshire ,130764,SN4 ,Community Services,Cricklade,Adult Care Funded Nursing Care - Loal Auth Clients,Third Party Payments,REVENUE
Wiltshire,http://opendatacommunities.org/id/unitary-authority/wiltshire,27/07/2016,5106916234,2559.68,AMS Care Wiltshire ,130764,SN4 ,Community Services,Cricklade,Adult Care Nursing Placements- Block Contract,Third Party Payments,REVENUE
Wiltshire,http://opendatacommunities.org/id/unitary-authority/wiltshire,27/07/2016,5106916235,448.00,AMS Care Wiltshire ,130764,SN4 ,Community Services,Cricklade,Adult Care Funded Nursing Care - Loal Auth Clients,Third Party Payments,REVENUE
Wiltshire,http://opendatacommunities.org/id/unitary-authority/wiltshire,27/07/2016,5106916237,2559.68,AMS Care Wiltshire ,130764,SN4 ,Community Services,Cricklade,Adult Care Nursing Placements- Block Contract,Third Party Payments,REVENUE
Wiltshire,http://opendatacommunities.org/id/unitary-authority/wiltshire,27/07/2016,5106916238,448.00,AMS Care Wiltshire ,130764,SN4 ,Community Services,Cricklade,Adult Care Funded Nursing Care - Loal Auth Clients,Third Party Payments,REVENUE
Wiltshire,http://opendatacommunities.org/id/unitary-authority/wiltshire,27/07/2016,5106916247,2353.36,AMS Care Wiltshire ,130764,SN4 ,Community Services,Cricklade,Adult Care Nursing Placements- Spot Purchase,Third Party Payments,REVENUE
Wiltshire,http://opendatacommunities.org/id/unitary-authority/wiltshire,27/07/2016,5106916248,448.00,AMS Care Wiltshire ,130764,SN4 ,Community Services,Cricklade,Adult Care Funded Nursing Care - Loal Auth Clients,Third Party Payments,REVENUE
Wiltshire,http://opendatacommunities.org/id/unitary-authority/wiltshire,27/07/2016,5106916263,2559.68,AMS Care Wiltshire ,130764,SN4 ,Community Services,Cricklade,Adult Care Nursing Placements- Block Contract,Third Party Payments,REVENUE
Wiltshire,http://opendatacommunities.org/id/unitary-authority/wiltshire,27/07/2016,5106916264,448.00,AMS Care Wiltshire ,130764,SN4 ,Community Services,Cricklade,Adult Care Funded Nursing Care - Loal Auth Clients,Third Party Payments,REVENUE
Wiltshire,http://opendatacommunities.org/id/unitary-authority/wiltshire,27/07/2016,5106916266,2559.68,AMS Care Wiltshire ,130764,SN4 ,Community Services,Cricklade,Adult Care Nursing Placements- Block Contract,Third Party Payments,REVENUE
Wiltshire,http://opendatacommunities.org/id/unitary-authority/wiltshire,27/07/2016,5106916267,448.00,AMS Care Wiltshire ,130764,SN4 ,Community Services,Cricklade,Adult Care Funded Nursing Care - Loal Auth Clients,Third Party Payments,REVENUE
Wiltshire,http://opendatacommunities.org/id/unitary-authority/wiltshire,27/07/2016,5106916469,2064.31,AMS Care Wiltshire ,130764,SN4 ,Community Services,BCF-Intermediate Cr,Adult Nursing Respite - Spot,Third Party Payments,REVENUE
Wiltshire,http://opendatacommunities.org/id/unitary-authority/wiltshire,27/07/2016,5106916470,1214.30,AMS Care Wiltshire ,130764,SN4 ,Community Services,BCF-Intermediate Cr,Adult Nursing Respite - Spot,Third Party Payments,REVENUE
Wiltshire,http://opendatacommunities.org/id/unitary-authority/wiltshire,27/07/2016,5106916472,3400.00,AMS Care Wiltshire ,130764,SN4 ,Community Services,BCF-Intermediate Cr,Adult Nursing Respite - Spot,Third Party Payments,REVENUE
Wiltshire,http://opendatacommunities.org/id/unitary-authority/wiltshire,27/07/2016,5106916473,3400.00,AMS Care Wiltshire ,130764,SN4 ,Community Services,BCF-Intermediate Cr,Adult Nursing Respite - Spot,Third Party Payments,REVENUE
Wiltshire,http://opendatacommunities.org/id/unitary-authority/wiltshire,27/07/2016,5106916474,3400.00,AMS Care Wiltshire ,130764,SN4 ,Community Services,BCF-Intermediate Cr,Adult Nursing Respite - Spot,Third Party Payments,REVENUE
Wiltshire,http://opendatacommunities.org/id/unitary-authority/wiltshire,27/07/2016,5106916475,3400.00,AMS Care Wiltshire ,130764,SN4 ,Community Services,BCF-Intermediate Cr,Adult Nursing Respite - Spot,Third Party Payments,REVENUE
Wiltshire,http://opendatacommunities.org/id/unitary-authority/wiltshire,27/07/2016,5106913539,4140.00,Anchor Greenacres ,142571,SM7 ,Community Services,Home Loans,Adult Care Loans,Capital charges and Expenditure,REVENUE
Wiltshire,http://opendatacommunities.org/id/unitary-authority/wiltshire,27/07/2016,5106914171,3269.32,Andover Nursing Home ,110142,SP10,Community Services,Avon,Adult Care Nursing Placements- Spot Purchase,Third Party Payments,REVENUE
Wiltshire,http://opendatacommunities.org/id/unitary-authority/wiltshire,11/07/2016,1901753241,687.42,Andy Taxis Limited ,100874,SP4 ,Neighbourhood & Planning,Mainstream Primary,Transport Contracts,Third Party Payments,REVENUE
Wiltshire,http://opendatacommunities.org/id/unitary-authority/wiltshire,11/07/2016,1901753241,1218.09,Andy Taxis Limited ,100874,SP4 ,Neighbourhood & Planning,Mainstream Secondary,Transport Contracts,Third Party Payments,REVENUE
Wiltshire,http://opendatacommunities.org/id/unitary-authority/wiltshire,07/07/2016,1901752477,1111.11,Andybus  and  Coach Ltd ,100132,SN16,Neighbourhood & Planning,Mainstream Primary,Transport Contracts,Third Party Payments,REVENUE
Wiltshire,http://opendatacommunities.org/id/unitary-authority/wiltshire,07/07/2016,1901752477,17253.34,Andybus  and  Coach Ltd ,100132,SN16,Neighbourhood & Planning,Mainstream Secondary,Transport Contracts,Third Party Payments,REVENUE
Wiltshire,http://opendatacommunities.org/id/unitary-authority/wiltshire,07/07/2016,1901752480,3087.34,Andybus  and  Coach Ltd ,100132,SN16,Neighbourhood & Planning,Mainstream Secondary,Transport Contracts,Third Party Payments,REVENUE
Wiltshire,http://opendatacommunities.org/id/unitary-authority/wiltshire,07/07/2016,1901752481,2981.12,Andybus  and  Coach Ltd ,100132,SN16,Neighbourhood & Planning,Mainstream Secondary,Transport Contracts,Third Party Payments,REVENUE
Wiltshire,http://opendatacommunities.org/id/unitary-authority/wiltshire,07/07/2016,1901752482,441.91,Andybus  and  Coach Ltd ,100132,SN16,Neighbourhood & Planning,Mainstream 16+ Sec,Transport Contracts,Third Party Payments,REVENUE
Wiltshire,http://opendatacommunities.org/id/unitary-authority/wiltshire,07/07/2016,1901752482,2804.34,Andybus  and  Coach Ltd ,100132,SN16,Neighbourhood & Planning,Mainstream Secondary,Transport Contracts,Third Party Payments,REVENUE
Wiltshire,http://opendatacommunities.org/id/unitary-authority/wiltshire,07/07/2016,1901752483,262.92,Andybus  and  Coach Ltd ,100132,SN16,Neighbourhood & Planning,Mainstream 16+ Sec,Transport Contracts,Third Party Payments,REVENUE
Wiltshire,http://opendatacommunities.org/id/unitary-authority/wiltshire,07/07/2016,1901752483,3023.76,Andybus  and  Coach Ltd ,100132,SN16,Neighbourhood & Planning,Mainstream Secondary,Transport Contracts,Third Party Payments,REVENUE
Wiltshire,http://opendatacommunities.org/id/unitary-authority/wiltshire,08/07/2016,1901752730,456.00,Andy's Big White Taxi ,142824,SP4 ,Neighbourhood & Planning,SEN Primary,Transport Contracts,Third Party Payments,REVENUE
Wiltshire,http://opendatacommunities.org/id/unitary-authority/wiltshire,13/07/2016,1901753636,2551.39,Aon Limited ,113554,LE1 ,Neighbourhood & Planning,Admin Hsg Management,Tenants� Contents Insurance,Premises Related,REVENUE
Wiltshire,http://opendatacommunities.org/id/unitary-authority/wiltshire,13/07/2016,1901753805,2637.64,Aon Limited ,113554,LE1 ,Neighbourhood & Planning,Admin Hsg Management,Tenants� Contents Insurance,Premises Related,REVENUE
Wiltshire,http://opendatacommunities.org/id/unitary-authority/wiltshire,14/07/2016,1901754097,2720.59,Aon Limited ,113554,LE1 ,Neighbourhood & Planning,Admin Hsg Management,Tenants� Contents Insurance,Premises Related,REVENUE
Wiltshire,http://opendatacommunities.org/id/unitary-authority/wiltshire,14/07/2016,1901754190,3379.68,Aon Limited ,113554,LE1 ,Neighbourhood & Planning,Admin Hsg Management,Tenants� Contents Insurance,Premises Related,REVENUE
Wiltshire,http://opendatacommunities.org/id/unitary-authority/wiltshire,14/07/2016,1901754191,2680.15,Aon Limited ,113554,LE1 ,Neighbourhood & Planning,Admin Hsg Management,Tenants� Contents Insurance,Premises Related,REVENUE
Wiltshire,http://opendatacommunities.org/id/unitary-authority/wiltshire,14/07/2016,1901754192,3373.72,Aon Limited ,113554,LE1 ,Neighbourhood & Planning,Admin Hsg Management,Tenants� Contents Insurance,Premises Related,REVENUE
Wiltshire,http://opendatacommunities.org/id/unitary-authority/wiltshire,21/07/2016,5106910586,2730.00,APA Consultants Ltd ,113361,SN10,Neighbourhood & Planning,DevConCent,Consultants� Fees,Supplies and Services,REVENUE
Wiltshire,http://opendatacommunities.org/id/unitary-authority/wiltshire,11/07/2016,1901753225,384.57,APL Travel Limited ,100596,SN4 ,Neighbourhood & Planning,Public Transport,Transport Contracts,Third Party Payments,REVENUE
Wiltshire,http://opendatacommunities.org/id/unitary-authority/wiltshire,11/07/2016,1901753226,478.56,APL Travel Limited ,100596,SN4 ,Neighbourhood & Planning,Public Transport,Transport Contracts,Third Party Payments,REVENUE
Wiltshire,http://opendatacommunities.org/id/unitary-authority/wiltshire,11/07/2016,1901753227,3736.67,APL Travel Limited ,100596,SN4 ,Neighbourhood & Planning,Mainstream Secondary,Transport Contracts,Third Party Payments,REVENUE
Wiltshire,http://opendatacommunities.org/id/unitary-authority/wiltshire,11/07/2016,1901753228,2974.00,APL Travel Limited ,100596,SN4 ,Neighbourhood & Planning,Public Transport,Transport Contracts,Third Party Payments,REVENUE
Wiltshire,http://opendatacommunities.org/id/unitary-authority/wiltshire,11/07/2016,1901753229,3900.00,APL Travel Limited ,100596,SN4 ,Neighbourhood & Planning,Public Transport,Transport Contracts,Third Party Payments,REVENUE
Wiltshire,http://opendatacommunities.org/id/unitary-authority/wiltshire,11/07/2016,1901753231,1837.16,APL Travel Limited ,100596,SN4 ,Neighbourhood & Planning,Mainstream Secondary,Transport Contracts,Third Party Payments,REVENUE
Wiltshire,http://opendatacommunities.org/id/unitary-authority/wiltshire,11/07/2016,1901753231,6082.04,APL Travel Limited ,100596,SN4 ,Neighbourhood & Planning,Public Transport,Transport Contracts,Third Party Payments,REVENUE
Wiltshire,http://opendatacommunities.org/id/unitary-authority/wiltshire,11/07/2016,1901753232,1045.00,APL Travel Limited ,100596,SN4 ,Neighbourhood & Planning,Mainstream Primary,Transport Contracts,Third Party Payments,REVENUE
Wiltshire,http://opendatacommunities.org/id/unitary-authority/wiltshire,25/07/2016,1901758460,830.03,APL Travel Limited ,100596,SN4 ,Neighbourhood & Planning,Mainstream Primary,Transport Contracts,Third Party Payments,REVENUE
Wiltshire,http://opendatacommunities.org/id/unitary-authority/wiltshire,25/07/2016,1901758460,943.61,APL Travel Limited ,100596,SN4 ,Neighbourhood & Planning,Mainstream 16+ FE,Transport Contracts,Third Party Payments,REVENUE
Wiltshire,http://opendatacommunities.org/id/unitary-authority/wiltshire,25/07/2016,1901758460,5312.17,APL Travel Limited ,100596,SN4 ,Neighbourhood & Planning,Mainstream Secondary,Transport Contracts,Third Party Payments,REVENUE
Wiltshire,http://opendatacommunities.org/id/unitary-authority/wiltshire,25/07/2016,1901758460,10596.77,APL Travel Limited ,100596,SN4 ,Neighbourhood & Planning,Connect 2 Wiltshire,Transport Contracts,Third Party Payments,REVENUE
Wiltshire,http://opendatacommunities.org/id/unitary-authority/wiltshire,26/07/2016,1901758935,3000.00,APL Travel Limited ,100596,SN4 ,Neighbourhood & Planning,Concessionary Fares,Compensation for Concessionary fares,Third Party Payments,REVENUE
Wiltshire,http://opendatacommunities.org/id/unitary-authority/wiltshire,27/07/2016,5106913003,3600.00,Arbory Residential Home ,113587,SP11,Community Services,MH OP South Locality,Adult Residential Placements - Spot Purchase,Third Party Payments,REVENUE
Wiltshire,http://opendatacommunities.org/id/unitary-authority/wiltshire,27/07/2016,5106913614,2626.00,Arbory Residential Home ,113587,SP11,Community Services,MH OP North Locality,Adult Residential Placements - Spot Purchase,Third Party Payments,REVENUE
Wiltshire,http://opendatacommunities.org/id/unitary-authority/wiltshire,27/07/2016,5106914745,3400.00,Arbory Residential Home ,113587,SP11,Community Services,MH AOWA South Locali,Adult Residential Placements - Spot Purchase,Third Party Payments,REVENUE
Wiltshire,http://opendatacommunities.org/id/unitary-authority/wiltshire,01/07/2016,5106905750,4496.52,ARC HD Services Ltd ,135806,SO50,Children & Education,Ext Placement & IFA,Adult / Child Care Agency Placement,Third Party Payments,REVENUE
Wiltshire,http://opendatacommunities.org/id/unitary-authority/wiltshire,18/07/2016,5106908952,4496.52,ARC HD Services Ltd ,135806,SO50,Children & Education,Ext Placement & IFA,Adult / Child Care Agency Placement,Third Party Payments,REVENUE
Wiltshire,http://opendatacommunities.org/id/unitary-authority/wiltshire,21/07/2016,5106910721,4496.52,ARC HD Services Ltd ,135806,SO50,Children & Education,Ext Placement & IFA,Adult / Child Care Agency Placement,Third Party Payments,REVENUE
Wiltshire,http://opendatacommunities.org/id/unitary-authority/wiltshire,21/07/2016,5106910722,4496.52,ARC HD Services Ltd ,135806,SO50,Children & Education,Ext Placement & IFA,Adult / Child Care Agency Placement,Third Party Payments,REVENUE
Wiltshire,http://opendatacommunities.org/id/unitary-authority/wiltshire,25/07/2016,5106911329,4496.52,ARC HD Services Ltd ,135806,SO50,Children & Education,Ext Placement & IFA,Adult / Child Care Agency Placement,Third Party Payments,REVENUE
Wiltshire,http://opendatacommunities.org/id/unitary-authority/wiltshire,27/07/2016,5106912840,2094.92,Arch Care Services Ltd ,110169,BS21,Community Services,MH AOWA North Locali,Adult Residential Placements - Spot Purchase,Third Party Payments,REVENUE
Wiltshire,http://opendatacommunities.org/id/unitary-authority/wiltshire,27/07/2016,5106866577,477.40,Arco Limited ,130295,HU1 ,Neighbourhood & Planning,DLO,Equipment Purchase,Supplies and Services,REVENUE
Wiltshire,http://opendatacommunities.org/id/unitary-authority/wiltshire,28/07/2016,5106908445,342.97,Arco Limited ,130295,HU1 ,Neighbourhood & Planning,DLO,Equipment Purchase,Supplies and Services,REVENUE
Wiltshire,http://opendatacommunities.org/id/unitary-authority/wiltshire,27/07/2016,5106916182,2752.00,Arliemoor Care Homes ,110174,EX22,Community Services,MH AOWA South Locali,Adult Residential Placements - Spot Purchase,Third Party Payments,REVENUE
Wiltshire,http://opendatacommunities.org/id/unitary-authority/wiltshire,19/07/2016,1901755484,630.00,Arrow Private Hire ,100574,SN8 ,Neighbourhood & Planning,Mainstream Secondary,Transport Contracts,Third Party Payments,REVENUE
Wiltshire,http://opendatacommunities.org/id/unitary-authority/wiltshire,27/07/2016,5106913770,2745.12,Ashbourne Court Care Home ,133906,SP10,Community Services,Orchard,Adult Care Nursing Placements- Spot Purchase,Third Party Payments,REVENUE
Wiltshire,http://opendatacommunities.org/id/unitary-authority/wiltshire,27/07/2016,5106915487,2297.12,Ashbourne Court Care Home ,133906,SP10,Community Services,Orchard,Adult Care Nursing Placements- Spot Purchase,Third Party Payments,REVENUE
Wiltshire,http://opendatacommunities.org/id/unitary-authority/wiltshire,27/07/2016,5106912771,2300.88,Ashbury Lodge ,113635,SN3 ,Community Services,MH OP North Locality,Adult Residential Placements - Spot Purchase,Third Party Payments,REVENUE
Wiltshire,http://opendatacommunities.org/id/unitary-authority/wiltshire,07/07/2016,5106906516,1600.00,Ashfords Solicitors ,113641,EX1 ,Wiltshire Council,Wiltshire Council,Legal Fees,Supplies and Services,CAPITAL
Wiltshire,http://opendatacommunities.org/id/unitary-authority/wiltshire,04/07/2016,1901741662,4500.00,Ashley Leisure Service Ltd ,130510,TA23,Resources,Marlb Leisure Ctr,Preventative Property Maintenance,Premises Related,REVENUE
Wiltshire,http://opendatacommunities.org/id/unitary-authority/wiltshire,27/07/2016,5106915990,3816.00,Ashness Care ,143773,N15 ,Community Services,MH AOWA North Locali,Adult Residential Placements - Spot Purchase,Third Party Payments,REVENUE
Wiltshire,http://opendatacommunities.org/id/unitary-authority/wiltshire,27/07/2016,5106913008,1520.00,Ashton Lodge Care Home ,142543,ME16,Community Services,Cricklade,Adult Residential Placements - Spot Purchase,Third Party Payments,REVENUE
Wiltshire,http://opendatacommunities.org/id/unitary-authority/wiltshire,27/07/2016,5106914447,1841.76,Ashton Manor Nursing Home ,139060,GU10,Community Services,Salisbury,Adult Care Nursing Placements- Spot Purchase,Third Party Payments,REVENUE
Wiltshire,http://opendatacommunities.org/id/unitary-authority/wiltshire,11/07/2016,1901753209,1720.45,Aspire Taxis ,101274,SP2 ,Neighbourhood & Planning,SEN Secondary,Transport Contracts,Third Party Payments,REVENUE
Wiltshire,http://opendatacommunities.org/id/unitary-authority/wiltshire,11/07/2016,1901753210,1332.00,Aspire Taxis ,101274,SP2 ,Neighbourhood & Planning,SEN Secondary,Transport Contracts,Third Party Payments,REVENUE
Wiltshire,http://opendatacommunities.org/id/unitary-authority/wiltshire,11/07/2016,1901753211,762.28,Aspire Taxis ,101274,SP2 ,Neighbourhood & Planning,Mainstream Primary,Transport Contracts,Third Party Payments,REVENUE
Wiltshire,http://opendatacommunities.org/id/unitary-authority/wiltshire,11/07/2016,1901753212,358.20,Aspire Taxis ,101274,SP2 ,Neighbourhood & Planning,Mainstream Primary,Transport Contracts,Third Party Payments,REVENUE
Wiltshire,http://opendatacommunities.org/id/unitary-authority/wiltshire,11/07/2016,1901753214,1040.00,Aspire Taxis ,101274,SP2 ,Neighbourhood & Planning,SEN 16+ FE Colleges,Transport Contracts,Third Party Payments,REVENUE
Wiltshire,http://opendatacommunities.org/id/unitary-authority/wiltshire,11/07/2016,1901753215,820.00,Aspire Taxis ,101274,SP2 ,Neighbourhood & Planning,SEN Primary,Transport Contracts,Third Party Payments,REVENUE
Wiltshire,http://opendatacommunities.org/id/unitary-authority/wiltshire,11/07/2016,1901753215,3280.00,Aspire Taxis ,101274,SP2 ,Neighbourhood & Planning,SEN Secondary,Transport Contracts,Third Party Payments,REVENUE
Wiltshire,http://opendatacommunities.org/id/unitary-authority/wiltshire,11/07/2016,1901753216,372.00,Aspire Taxis ,101274,SP2 ,Neighbourhood & Planning,SEN Primary,Transport Contracts,Third Party Payments,REVENUE
Wiltshire,http://opendatacommunities.org/id/unitary-authority/wiltshire,11/07/2016,1901753216,744.00,Aspire Taxis ,101274,SP2 ,Neighbourhood & Planning,Mainstream Primary,Transport Contracts,Third Party Payments,REVENUE
Wiltshire,http://opendatacommunities.org/id/unitary-authority/wiltshire,11/07/2016,1901753217,2085.00,Aspire Taxis ,101274,SP2 ,Neighbourhood & Planning,Mainstream Secondary,Transport Contracts,Third Party Payments,REVENUE
Wiltshire,http://opendatacommunities.org/id/unitary-authority/wiltshire,11/07/2016,1901753218,427.50,Aspire Taxis ,101274,SP2 ,Neighbourhood & Planning,Mainstream Primary,Transport Contracts,Third Party Payments,REVENUE
Wiltshire,http://opendatacommunities.org/id/unitary-authority/wiltshire,11/07/2016,1901753218,427.50,Aspire Taxis ,101274,SP2 ,Neighbourhood & Planning,SEN Primary,Transport Contracts,Third Party Payments,REVENUE
Wiltshire,http://opendatacommunities.org/id/unitary-authority/wiltshire,11/07/2016,1901753219,603.00,Aspire Taxis ,101274,SP2 ,Neighbourhood & Planning,SEN 16+ Secondary,Transport Contracts,Third Party Payments,REVENUE
Wiltshire,http://opendatacommunities.org/id/unitary-authority/wiltshire,11/07/2016,1901753220,495.00,Aspire Taxis ,101274,SP2 ,Children & Education,EOTAS Service,Transport Contracts,Third Party Payments,REVENUE
Wiltshire,http://opendatacommunities.org/id/unitary-authority/wiltshire,11/07/2016,1901753220,540.00,Aspire Taxis ,101274,SP2 ,Neighbourhood & Planning,SEN 16+ Secondary,Transport Contracts,Third Party Payments,REVENUE
Wiltshire,http://opendatacommunities.org/id/unitary-authority/wiltshire,11/07/2016,1901753221,810.00,Aspire Taxis ,101274,SP2 ,Neighbourhood & Planning,SEN Primary,Transport Contracts,Third Party Payments,REVENUE
Wiltshire,http://opendatacommunities.org/id/unitary-authority/wiltshire,11/07/2016,1901753222,874.00,Aspire Taxis ,101274,SP2 ,Neighbourhood & Planning,SEN 16+ Secondary,Transport Contracts,Third Party Payments,REVENUE
Wiltshire,http://opendatacommunities.org/id/unitary-authority/wiltshire,11/07/2016,1901753223,1900.00,Aspire Taxis ,101274,SP2 ,Neighbourhood & Planning,SEN Primary,Transport Contracts,Third Party Payments,REVENUE
Wiltshire,http://opendatacommunities.org/id/unitary-authority/wiltshire,11/07/2016,1901753224,351.00,Aspire Taxis ,101274,SP2 ,Community Services,CTPLD Place CIC U65,Transport Contracts,Third Party Payments,REVENUE
Wiltshire,http://opendatacommunities.org/id/unitary-authority/wiltshire,11/07/2016,1901753230,1045.00,Aspire Taxis ,101274,SP2 ,Community Services,CTPLD Place CIC U65,Transport Contracts,Third Party Payments,REVENUE
Wiltshire,http://opendatacommunities.org/id/unitary-authority/wiltshire,11/07/2016,1901753233,630.00,Aspire Taxis ,101274,SP2 ,Neighbourhood & Planning,Mainstream Primary,Transport Contracts,Third Party Payments,REVENUE
Wiltshire,http://opendatacommunities.org/id/unitary-authority/wiltshire,11/07/2016,1901753234,551.00,Aspire Taxis ,101274,SP2 ,Neighbourhood & Planning,Mainstream Primary,Transport Contracts,Third Party Payments,REVENUE
Wiltshire,http://opendatacommunities.org/id/unitary-authority/wiltshire,11/07/2016,1901753235,942.00,Aspire Taxis ,101274,SP2 ,Neighbourhood & Planning,Mainstream Primary,Transport Contracts,Third Party Payments,REVENUE
Wiltshire,http://opendatacommunities.org/id/unitary-authority/wiltshire,11/07/2016,1901753236,836.00,Aspire Taxis ,101274,SP2 ,Neighbourhood & Planning,Mainstream Primary,Transport Contracts,Third Party Payments,REVENUE
Wiltshire,http://opendatacommunities.org/id/unitary-authority/wiltshire,11/07/2016,1901753237,627.00,Aspire Taxis ,101274,SP2 ,Neighbourhood & Planning,Mainstream Secondary,Transport Contracts,Third Party Payments,REVENUE
Wiltshire,http://opendatacommunities.org/id/unitary-authority/wiltshire,11/07/2016,1901753238,1260.00,Aspire Taxis ,101274,SP2 ,Community Services,CTPLD Place CIC U65,Transport Contracts,Third Party Payments,REVENUE
Wiltshire,http://opendatacommunities.org/id/unitary-authority/wiltshire,29/07/2016,1901759894,263.00,Aspire Taxis ,101274,SP2 ,Children & Education,Safeguarding Ass Sth,Transport Contracts,Third Party Payments,REVENUE
Wiltshire,http://opendatacommunities.org/id/unitary-authority/wiltshire,29/07/2016,1901759894,270.00,Aspire Taxis ,101274,SP2 ,Children & Education,EOTAS Service,Transport Contracts,Third Party Payments,REVENUE
Wiltshire,http://opendatacommunities.org/id/unitary-authority/wiltshire,29/07/2016,1901759894,1320.00,Aspire Taxis ,101274,SP2 ,Neighbourhood & Planning,Mainstream Primary,Transport Contracts,Third Party Payments,REVENUE
Wiltshire,http://opendatacommunities.org/id/unitary-authority/wiltshire,29/07/2016,1901759894,1484.00,Aspire Taxis ,101274,SP2 ,Neighbourhood & Planning,SEN Secondary,Transport Contracts,Third Party Payments,REVENUE
Wiltshire,http://opendatacommunities.org/id/unitary-authority/wiltshire,22/07/2016,1901758093,1703.26,Aster ,135687,SN10,Community Services,The Pathways Flat,Premises Rental / Hire Charges,Premises Related,REVENUE
Wiltshire,http://opendatacommunities.org/id/unitary-authority/wiltshire,05/07/2016,1901741690,612.50,Aster Living ,112275,SN10,Wiltshire Council,Wiltshire Council,Other Professional Fees,Supplies and Services,CAPITAL
Wiltshire,http://opendatacommunities.org/id/unitary-authority/wiltshire,05/07/2016,1901741732,423.95,Aster Living ,112275,SN10,Wiltshire Council,Wiltshire Council,Other Professional Fees,Supplies and Services,CAPITAL
Wiltshire,http://opendatacommunities.org/id/unitary-authority/wiltshire,05/07/2016,1901741733,587.00,Aster Living ,112275,SN10,Wiltshire Council,Wiltshire Council,Other Professional Fees,Supplies and Services,CAPITAL
Wiltshire,http://opendatacommunities.org/id/unitary-authority/wiltshire,01/07/2016,1901741922,372.50,Aster Living ,112275,SN10,Wiltshire Council,Wiltshire Council,Other Professional Fees,Supplies and Services,CAPITAL
Wiltshire,http://opendatacommunities.org/id/unitary-authority/wiltshire,01/07/2016,1901741923,500.00,Aster Living ,112275,SN10,Wiltshire Council,Wiltshire Council,Other Professional Fees,Supplies and Services,CAPITAL
Wiltshire,http://opendatacommunities.org/id/unitary-authority/wiltshire,01/07/2016,1901741925,500.00,Aster Living ,112275,SN10,Wiltshire Council,Wiltshire Council,Other Professional Fees,Supplies and Services,CAPITAL
Wiltshire,http://opendatacommunities.org/id/unitary-authority/wiltshire,05/07/2016,1901742268,500.00,Aster Living ,112275,SN10,Wiltshire Council,Wiltshire Council,Other Professional Fees,Supplies and Services,CAPITAL
Wiltshire,http://opendatacommunities.org/id/unitary-authority/wiltshire,12/07/2016,1901742556,441.00,Aster Living ,112275,SN10,Wiltshire Council,Wiltshire Council,Other Professional Fees,Supplies and Services,CAPITAL
Wiltshire,http://opendatacommunities.org/id/unitary-authority/wiltshire,11/07/2016,1901742575,864.00,Aster Living ,112275,SN10,Wiltshire Council,Wiltshire Council,Other Professional Fees,Supplies and Services,CAPITAL
Wiltshire,http://opendatacommunities.org/id/unitary-authority/wiltshire,11/07/2016,1901742589,568.00,Aster Living ,112275,SN10,Wiltshire Council,Wiltshire Council,Other Professional Fees,Supplies and Services,CAPITAL
Wiltshire,http://opendatacommunities.org/id/unitary-authority/wiltshire,11/07/2016,1901742602,500.00,Aster Living ,112275,SN10,Wiltshire Council,Wiltshire Council,Other Professional Fees,Supplies and Services,CAPITAL
Wiltshire,http://opendatacommunities.org/id/unitary-authority/wiltshire,11/07/2016,1901743068,1162.30,Aster Living ,112275,SN10,Wiltshire Council,Wiltshire Council,Other Professional Fees,Supplies and Services,CAPITAL
Wiltshire,http://opendatacommunities.org/id/unitary-authority/wiltshire,01/07/2016,1901743811,500.00,Aster Living ,112275,SN10,Wiltshire Council,Wiltshire Council,Other Professional Fees,Supplies and Services,CAPITAL
Wiltshire,http://opendatacommunities.org/id/unitary-authority/wiltshire,11/07/2016,1901743873,500.00,Aster Living ,112275,SN10,Wiltshire Council,Wiltshire Council,Other Professional Fees,Supplies and Services,CAPITAL
Wiltshire,http://opendatacommunities.org/id/unitary-authority/wiltshire,12/07/2016,1901743879,500.00,Aster Living ,112275,SN10,Wiltshire Council,Wiltshire Council,Other Professional Fees,Supplies and Services,CAPITAL
Wiltshire,http://opendatacommunities.org/id/unitary-authority/wiltshire,19/07/2016,1901744225,500.00,Aster Living ,112275,SN10,Wiltshire Council,Wiltshire Council,Other Professional Fees,Supplies and Services,CAPITAL
Wiltshire,http://opendatacommunities.org/id/unitary-authority/wiltshire,11/07/2016,1901744840,500.00,Aster Living ,112275,SN10,Wiltshire Council,Wiltshire Council,Other Professional Fees,Supplies and Services,CAPITAL
Wiltshire,http://opendatacommunities.org/id/unitary-authority/wiltshire,12/07/2016,1901745915,893.00,Aster Living ,112275,SN10,Wiltshire Council,Wiltshire Council,Other Professional Fees,Supplies and Services,CAPITAL
Wiltshire,http://opendatacommunities.org/id/unitary-authority/wiltshire,19/07/2016,1901752424,500.00,Aster Living ,112275,SN10,Wiltshire Council,Wiltshire Council,Other Professional Fees,Supplies and Services,CAPITAL
Wiltshire,http://opendatacommunities.org/id/unitary-authority/wiltshire,25/07/2016,1901753819,500.00,Aster Living ,112275,SN10,Wiltshire Council,Wiltshire Council,Other Professional Fees,Supplies and Services,CAPITAL
Wiltshire,http://opendatacommunities.org/id/unitary-authority/wiltshire,25/07/2016,1901753935,553.00,Aster Living ,112275,SN10,Wiltshire Council,Wiltshire Council,Other Professional Fees,Supplies and Services,CAPITAL
Wiltshire,http://opendatacommunities.org/id/unitary-authority/wiltshire,26/07/2016,1901755053,500.00,Aster Living ,112275,SN10,Wiltshire Council,Wiltshire Council,Other Professional Fees,Supplies and Services,CAPITAL
Wiltshire,http://opendatacommunities.org/id/unitary-authority/wiltshire,26/07/2016,1901755054,650.00,Aster Living ,112275,SN10,Wiltshire Council,Wiltshire Council,Other Professional Fees,Supplies and Services,CAPITAL
Wiltshire,http://opendatacommunities.org/id/unitary-authority/wiltshire,25/07/2016,1901755055,500.00,Aster Living ,112275,SN10,Wiltshire Council,Wiltshire Council,Other Professional Fees,Supplies and Services,CAPITAL
Wiltshire,http://opendatacommunities.org/id/unitary-authority/wiltshire,26/07/2016,1901755057,500.00,Aster Living ,112275,SN10,Wiltshire Council,Wiltshire Council,Other Professional Fees,Supplies and Services,CAPITAL
Wiltshire,http://opendatacommunities.org/id/unitary-authority/wiltshire,15/07/2016,1901755062,341.20,Aster Living ,112275,SN10,Wiltshire Council,Wiltshire Council,Other Professional Fees,Supplies and Services,CAPITAL
Wiltshire,http://opendatacommunities.org/id/unitary-authority/wiltshire,26/07/2016,1901755223,1960.30,Aster Living ,112275,SN10,Wiltshire Council,Wiltshire Council,Other Professional Fees,Supplies and Services,CAPITAL
Wiltshire,http://opendatacommunities.org/id/unitary-authority/wiltshire,19/07/2016,1901755377,500.00,Aster Living ,112275,SN10,Wiltshire Council,Wiltshire Council,Other Professional Fees,Supplies and Services,CAPITAL
Wiltshire,http://opendatacommunities.org/id/unitary-authority/wiltshire,25/07/2016,1901755421,500.00,Aster Living ,112275,SN10,Wiltshire Council,Wiltshire Council,Other Professional Fees,Supplies and Services,CAPITAL
Wiltshire,http://opendatacommunities.org/id/unitary-authority/wiltshire,25/07/2016,1901756458,500.00,Aster Living ,112275,SN10,Wiltshire Council,Wiltshire Council,Other Professional Fees,Supplies and Services,CAPITAL
Wiltshire,http://opendatacommunities.org/id/unitary-authority/wiltshire,28/07/2016,5106918923,329.00,Astor-bannerman Medical Limited ,113694,GL54,Neighbourhood & Planning,Devizes,Equipment Maintenance,Supplies and Services,REVENUE
Wiltshire,http://opendatacommunities.org/id/unitary-authority/wiltshire,22/07/2016,5106910774,1000.00,Atamis Limited ,139765,CF10,Resources,CorporateProcurement,Software Upgrades,Supplies and Services,REVENUE
Wiltshire,http://opendatacommunities.org/id/unitary-authority/wiltshire,13/07/2016,1901753632,281.22,Atkins Ltd ,110197,KT18,Wiltshire Council,Wiltshire Council,Highways Term - Consultant,Third Party Payments,CAPITAL
Wiltshire,http://opendatacommunities.org/id/unitary-authority/wiltshire,13/07/2016,1901753632,295.82,Atkins Ltd ,110197,KT18,Wiltshire Council,Wiltshire Council,Highways Term - Consultant,Third Party Payments,CAPITAL
Wiltshire,http://opendatacommunities.org/id/unitary-authority/wiltshire,13/07/2016,1901753632,365.93,Atkins Ltd ,110197,KT18,Wiltshire Council,Wiltshire Council,Highways Term - Consultant,Third Party Payments,CAPITAL
Wiltshire,http://opendatacommunities.org/id/unitary-authority/wiltshire,13/07/2016,1901753632,969.14,Atkins Ltd ,110197,KT18,Wiltshire Council,Wiltshire Council,Highways Term - Consultant,Third Party Payments,CAPITAL
Wiltshire,http://opendatacommunities.org/id/unitary-authority/wiltshire,13/07/2016,1901753632,1096.86,Atkins Ltd ,110197,KT18,Wiltshire Council,Wiltshire Council,Highways Term - Consultant,Third Party Payments,CAPITAL
Wiltshire,http://opendatacommunities.org/id/unitary-authority/wiltshire,13/07/2016,1901753632,1224.07,Atkins Ltd ,110197,KT18,Wiltshire Council,Wiltshire Council,Highways Term - Consultant,Third Party Payments,CAPITAL
Wiltshire,http://opendatacommunities.org/id/unitary-authority/wiltshire,13/07/2016,1901753632,1393.50,Atkins Ltd ,110197,KT18,Wiltshire Council,Wiltshire Council,Highways Term - Consultant,Third Party Payments,CAPITAL
Wiltshire,http://opendatacommunities.org/id/unitary-authority/wiltshire,13/07/2016,1901753632,1398.63,Atkins Ltd ,110197,KT18,Wiltshire Council,Wiltshire Council,Highways Term - Consultant,Third Party Payments,CAPITAL
Wiltshire,http://opendatacommunities.org/id/unitary-authority/wiltshire,13/07/2016,1901753632,1423.84,Atkins Ltd ,110197,KT18,Wiltshire Council,Wiltshire Council,Highways Term - Consultant,Third Party Payments,CAPITAL
Wiltshire,http://opendatacommunities.org/id/unitary-authority/wiltshire,13/07/2016,1901753632,1513.90,Atkins Ltd ,110197,KT18,Wiltshire Council,Wiltshire Council,Highways Term - Consultant,Third Party Payments,CAPITAL
Wiltshire,http://opendatacommunities.org/id/unitary-authority/wiltshire,13/07/2016,1901753632,1538.68,Atkins Ltd ,110197,KT18,Wiltshire Council,Wiltshire Council,Highways Term - Consultant,Third Party Payments,CAPITAL
Wiltshire,http://opendatacommunities.org/id/unitary-authority/wiltshire,13/07/2016,1901753632,1907.00,Atkins Ltd ,110197,KT18,Neighbourhood & Planning,Chippenham Sites All,Highways Term - Consultant,Third Party Payments,REVENUE
Wiltshire,http://opendatacommunities.org/id/unitary-authority/wiltshire,13/07/2016,1901753632,2000.00,Atkins Ltd ,110197,KT18,Wiltshire Council,Wiltshire Council,Highways Term - Consultant,Third Party Payments,CAPITAL
Wiltshire,http://opendatacommunities.org/id/unitary-authority/wiltshire,13/07/2016,1901753632,2114.47,Atkins Ltd ,110197,KT18,Wiltshire Council,Wiltshire Council,Highways Term - Consultant,Third Party Payments,CAPITAL
Wiltshire,http://opendatacommunities.org/id/unitary-authority/wiltshire,13/07/2016,1901753632,2369.84,Atkins Ltd ,110197,KT18,Wiltshire Council,Wiltshire Council,Highways Term - Consultant,Third Party Payments,CAPITAL
Wiltshire,http://opendatacommunities.org/id/unitary-authority/wiltshire,13/07/2016,1901753632,2467.08,Atkins Ltd ,110197,KT18,Wiltshire Council,Wiltshire Council,Highways Term - Consultant,Third Party Payments,CAPITAL
Wiltshire,http://opendatacommunities.org/id/unitary-authority/wiltshire,13/07/2016,1901753632,3141.44,Atkins Ltd ,110197,KT18,Wiltshire Council,Wiltshire Council,Highways Term - Consultant,Third Party Payments,CAPITAL
Wiltshire,http://opendatacommunities.org/id/unitary-authority/wiltshire,13/07/2016,1901753632,3162.20,Atkins Ltd ,110197,KT18,Wiltshire Council,Wiltshire Council,Highways Term - Consultant,Third Party Payments,CAPITAL
Wiltshire,http://opendatacommunities.org/id/unitary-authority/wiltshire,13/07/2016,1901753632,3781.17,Atkins Ltd ,110197,KT18,Wiltshire Council,Wiltshire Council,Highways Term - Consultant,Third Party Payments,CAPITAL
Wiltshire,http://opendatacommunities.org/id/unitary-authority/wiltshire,13/07/2016,1901753632,4287.02,Atkins Ltd ,110197,KT18,Neighbourhood & Planning,Transport Policy,Highways Term - Consultant,Third Party Payments,REVENUE
Wiltshire,http://opendatacommunities.org/id/unitary-authority/wiltshire,13/07/2016,1901753632,4348.32,Atkins Ltd ,110197,KT18,Wiltshire Council,Wiltshire Council,Highways Term - Consultant,Third Party Payments,CAPITAL
Wiltshire,http://opendatacommunities.org/id/unitary-authority/wiltshire,13/07/2016,1901753632,5464.60,Atkins Ltd ,110197,KT18,Wiltshire Council,Wiltshire Council,Highways Term - Consultant,Third Party Payments,CAPITAL
Wiltshire,http://opendatacommunities.org/id/unitary-authority/wiltshire,13/07/2016,1901753632,5560.00,Atkins Ltd ,110197,KT18,Wiltshire Council,Wiltshire Council,Highways Term - Consultant,Third Party Payments,CAPITAL
Wiltshire,http://opendatacommunities.org/id/unitary-authority/wiltshire,13/07/2016,1901753632,5880.40,Atkins Ltd ,110197,KT18,Wiltshire Council,Wiltshire Council,Highways Term - Consultant,Third Party Payments,CAPITAL
Wiltshire,http://opendatacommunities.org/id/unitary-authority/wiltshire,13/07/2016,1901753632,6315.38,Atkins Ltd ,110197,KT18,Wiltshire Council,Wiltshire Council,Highways Term - Consultant,Third Party Payments,CAPITAL
Wiltshire,http://opendatacommunities.org/id/unitary-authority/wiltshire,13/07/2016,1901753632,7576.88,Atkins Ltd ,110197,KT18,Neighbourhood & Planning,Network Manager Team,Highways Term - Consultant,Third Party Payments,REVENUE
Wiltshire,http://opendatacommunities.org/id/unitary-authority/wiltshire,13/07/2016,1901753632,7670.35,Atkins Ltd ,110197,KT18,Wiltshire Council,Wiltshire Council,Highways Term - Consultant,Third Party Payments,CAPITAL
Wiltshire,http://opendatacommunities.org/id/unitary-authority/wiltshire,13/07/2016,1901753632,7811.67,Atkins Ltd ,110197,KT18,Wiltshire Council,Wiltshire Council,Highways Term - Consultant,Third Party Payments,CAPITAL
Wiltshire,http://opendatacommunities.org/id/unitary-authority/wiltshire,13/07/2016,1901753632,8165.56,Atkins Ltd ,110197,KT18,Wiltshire Council,Wiltshire Council,Highways Term - Consultant,Third Party Payments,CAPITAL
Wiltshire,http://opendatacommunities.org/id/unitary-authority/wiltshire,13/07/2016,1901753632,10329.21,Atkins Ltd ,110197,KT18,Neighbourhood & Planning,Bridge Routine Mtc,Highways Term - Consultant,Third Party Payments,REVENUE
Wiltshire,http://opendatacommunities.org/id/unitary-authority/wiltshire,13/07/2016,1901753632,14114.20,Atkins Ltd ,110197,KT18,Neighbourhood & Planning,Highways Devt Contrl,Highways Term - Consultant,Third Party Payments,REVENUE
Wiltshire,http://opendatacommunities.org/id/unitary-authority/wiltshire,13/07/2016,1901753632,14553.33,Atkins Ltd ,110197,KT18,Neighbourhood & Planning,Highw Hedges & Trees,Highways Term - Consultant,Third Party Payments,REVENUE
Wiltshire,http://opendatacommunities.org/id/unitary-authority/wiltshire,13/07/2016,1901753632,18532.34,Atkins Ltd ,110197,KT18,Neighbourhood & Planning,Traffic Signal Mtc,Highways Term - Consultant,Third Party Payments,REVENUE
Wiltshire,http://opendatacommunities.org/id/unitary-authority/wiltshire,13/07/2016,1901753632,19303.27,Atkins Ltd ,110197,KT18,Wiltshire Council,Wiltshire Council,Highways Term - Consultant,Third Party Payments,CAPITAL
Wiltshire,http://opendatacommunities.org/id/unitary-authority/wiltshire,13/07/2016,1901753632,39780.33,Atkins Ltd ,110197,KT18,Neighbourhood & Planning,Street Lighting-Mtce,Highways Term - Consultant,Third Party Payments,REVENUE
Wiltshire,http://opendatacommunities.org/id/unitary-authority/wiltshire,13/07/2016,1901753632,49329.20,Atkins Ltd ,110197,KT18,Wiltshire Council,Wiltshire Council,Highways Term - Consultant,Third Party Payments,CAPITAL
Wiltshire,http://opendatacommunities.org/id/unitary-authority/wiltshire,13/07/2016,1901753632,77520.95,Atkins Ltd ,110197,KT18,Wiltshire Council,Wiltshire Council,Highways Term - Consultant,Third Party Payments,CAPITAL
Wiltshire,http://opendatacommunities.org/id/unitary-authority/wiltshire,13/07/2016,1901753632,126288.46,Atkins Ltd ,110197,KT18,Wiltshire Council,Wiltshire Council,Highways Term - Consultant,Third Party Payments,CAPITAL
Wiltshire,http://opendatacommunities.org/id/unitary-authority/wiltshire,07/07/2016,5106906557,17730.78,ATS Euromaster Limited ,110201,DN4 ,Neighbourhood & Planning,Fleet Operations,Vehicle Parts,Transport Related,REVENUE
Wiltshire,http://opendatacommunities.org/id/unitary-authority/wiltshire,25/07/2016,5106911380,20980.08,ATS Euromaster Limited ,110201,DN4 ,Neighbourhood & Planning,Fleet Operations,Vehicle Parts,Transport Related,REVENUE
Wiltshire,http://opendatacommunities.org/id/unitary-authority/wiltshire,21/07/2016,1901757708,307.20,Audley Care White Horse ,121958,SN8 ,Community Services,HTLAH - Neighbourhoo,Interim Support Plan - HTLAH,Third Party Payments,REVENUE
Wiltshire,http://opendatacommunities.org/id/unitary-authority/wiltshire,21/07/2016,1901757710,1033.45,Audley Care White Horse ,121958,SN8 ,Community Services,HTLAH - Neighbourhoo,Interim Support Plan - HTLAH,Third Party Payments,REVENUE
Wiltshire,http://opendatacommunities.org/id/unitary-authority/wiltshire,21/07/2016,1901757711,457.20,Audley Care White Horse ,121958,SN8 ,Community Services,HTLAH - Neighbourhoo,Interim Support Plan - HTLAH,Third Party Payments,REVENUE
Wiltshire,http://opendatacommunities.org/id/unitary-authority/wiltshire,21/07/2016,1901757713,2613.97,Audley Care White Horse ,121958,SN8 ,Community Services,HTLAH - Neighbourhoo,Interim Support Plan - HTLAH,Third Party Payments,REVENUE
Wiltshire,http://opendatacommunities.org/id/unitary-authority/wiltshire,21/07/2016,1901757714,7337.00,Audley Care White Horse ,121958,SN8 ,Community Services,HTLAH - Neighbourhoo,Interim Support Plan - HTLAH,Third Party Payments,REVENUE
Wiltshire,http://opendatacommunities.org/id/unitary-authority/wiltshire,21/07/2016,1901757716,1175.20,Audley Care White Horse ,121958,SN8 ,Community Services,HTLAH - Neighbourhoo,Interim Support Plan - HTLAH,Third Party Payments,REVENUE
Wiltshire,http://opendatacommunities.org/id/unitary-authority/wiltshire,21/07/2016,1901757718,360.25,Audley Care White Horse ,121958,SN8 ,Community Services,HTLAH - Neighbourhoo,Interim Support Plan - HTLAH,Third Party Payments,REVENUE
Wiltshire,http://opendatacommunities.org/id/unitary-authority/wiltshire,21/07/2016,1901757719,2919.44,Audley Care White Horse ,121958,SN8 ,Community Services,HTLAH - Neighbourhoo,Interim Support Plan - HTLAH,Third Party Payments,REVENUE
Wiltshire,http://opendatacommunities.org/id/unitary-authority/wiltshire,21/07/2016,1901757720,493.70,Audley Care White Horse ,121958,SN8 ,Community Services,HTLAH - Neighbourhoo,Interim Support Plan - HTLAH,Third Party Payments,REVENUE
Wiltshire,http://opendatacommunities.org/id/unitary-authority/wiltshire,21/07/2016,1901757721,2195.31,Audley Care White Horse ,121958,SN8 ,Community Services,HTLAH - Neighbourhoo,Interim Support Plan - HTLAH,Third Party Payments,REVENUE
Wiltshire,http://opendatacommunities.org/id/unitary-authority/wiltshire,21/07/2016,1901757722,376.80,Audley Care White Horse ,121958,SN8 ,Community Services,HTLAH - Neighbourhoo,Interim Support Plan - HTLAH,Third Party Payments,REVENUE
Wiltshire,http://opendatacommunities.org/id/unitary-authority/wiltshire,21/07/2016,1901757723,434.20,Audley Care White Horse ,121958,SN8 ,Community Services,HTLAH - Neighbourhoo,Interim Support Plan - HTLAH,Third Party Payments,REVENUE
Wiltshire,http://opendatacommunities.org/id/unitary-authority/wiltshire,06/07/2016,5106906176,1228.85,Audley Care White Horse ,121958,SN8 ,Community Services,Marlborough,Adult Domiciliary Care - Spot Contribution,Income,REVENUE
Wiltshire,http://opendatacommunities.org/id/unitary-authority/wiltshire,06/07/2016,5106906233,1419.90,Audley Care White Horse ,121958,SN8 ,Community Services,MH OP North Locality,Adult Domiciliary Care - Spot,Third Party Payments,REVENUE
Wiltshire,http://opendatacommunities.org/id/unitary-authority/wiltshire,06/07/2016,5106906237,339.30,Audley Care White Horse ,121958,SN8 ,Community Services,Marlborough,Adult Domiciliary Care - Spot,Third Party Payments,REVENUE
Wiltshire,http://opendatacommunities.org/id/unitary-authority/wiltshire,06/07/2016,5106906301,485.55,Audley Care White Horse ,121958,SN8 ,Community Services,Malmesbury,Adult Domiciliary Care - Spot,Third Party Payments,REVENUE
Wiltshire,http://opendatacommunities.org/id/unitary-authority/wiltshire,06/07/2016,5106906302,347.16,Audley Care White Horse ,121958,SN8 ,Community Services,Marlborough,Adult Domiciliary Care - Spot,Third Party Payments,REVENUE
Wiltshire,http://opendatacommunities.org/id/unitary-authority/wiltshire,06/07/2016,5106906303,1534.60,Audley Care White Horse ,121958,SN8 ,Community Services,East Locality OP,Adult Domiciliary Care - Spot,Third Party Payments,REVENUE
Wiltshire,http://opendatacommunities.org/id/unitary-authority/wiltshire,06/07/2016,5106906306,3047.66,Audley Care White Horse ,121958,SN8 ,Community Services,Cricklade,Adult Domiciliary Care - Spot,Third Party Payments,REVENUE
Wiltshire,http://opendatacommunities.org/id/unitary-authority/wiltshire,06/07/2016,5106906307,1155.00,Audley Care White Horse ,121958,SN8 ,Community Services,Cricklade,Adult Domiciliary Care - Spot,Third Party Payments,REVENUE
Wiltshire,http://opendatacommunities.org/id/unitary-authority/wiltshire,06/07/2016,5106906312,725.00,Audley Care White Horse ,121958,SN8 ,Community Services,Malmesbury,Adult Domiciliary Care - Spot,Third Party Payments,REVENUE
Wiltshire,http://opendatacommunities.org/id/unitary-authority/wiltshire,06/07/2016,5106906314,1197.15,Audley Care White Horse ,121958,SN8 ,Community Services,Cricklade,Adult Domiciliary Care - Spot,Third Party Payments,REVENUE
Wiltshire,http://opendatacommunities.org/id/unitary-authority/wiltshire,06/07/2016,5106906316,2891.40,Audley Care White Horse ,121958,SN8 ,Community Services,Cricklade,Adult Domiciliary Care - Spot,Third Party Payments,REVENUE
Wiltshire,http://opendatacommunities.org/id/unitary-authority/wiltshire,11/07/2016,5106906988,1649.20,Audley Care White Horse ,121958,SN8 ,Community Services,North Locality OP,Adult Domiciliary Care - Spot,Third Party Payments,REVENUE
Wiltshire,http://opendatacommunities.org/id/unitary-authority/wiltshire,11/07/2016,5106906989,2146.90,Audley Care White Horse ,121958,SN8 ,Community Services,North Locality OP,Adult Domiciliary Care - Spot,Third Party Payments,REVENUE
Wiltshire,http://opendatacommunities.org/id/unitary-authority/wiltshire,13/07/2016,5106907650,980.55,Audley Care White Horse ,121958,SN8 ,Community Services,Marlborough,Adult Domiciliary Care - Spot,Third Party Payments,REVENUE
Wiltshire,http://opendatacommunities.org/id/unitary-authority/wiltshire,27/07/2016,5106913917,6660.00,Autism Care Wiltshire ,136507,SN25,Community Services,CTPLD Place CIC U65,Adult Residential Placements - Spot Purchase,Third Party Payments,REVENUE
Wiltshire,http://opendatacommunities.org/id/unitary-authority/wiltshire,27/07/2016,5106913274,5882.68,Autism Specialised care Homes ,110205,BS10,Community Services,CTPLD Place CIC U65,Adult Residential Placements - Spot Purchase,Third Party Payments,REVENUE
Wiltshire,http://opendatacommunities.org/id/unitary-authority/wiltshire,28/07/2016,5106913221,6086.08,Autism Wessex ,112911,BH23,Community Services,CTPLD Place CIC U65,Adult Residential Placements - Spot Purchase,Third Party Payments,REVENUE
Wiltshire,http://opendatacommunities.org/id/unitary-authority/wiltshire,27/07/2016,5106912530,7180.12,Autism West Midlands ,110206,WR9 ,Community Services,CTPLD Place CIC U65,Adult Residential Placements - Spot Purchase,Third Party Payments,REVENUE
Wiltshire,http://opendatacommunities.org/id/unitary-authority/wiltshire,25/07/2016,5106911164,464.65,Autonomy Care Limited ,126128,SN10,Community Services,CTPLD Place CIC U65,Supported Living Contribution,Income,REVENUE
Wiltshire,http://opendatacommunities.org/id/unitary-authority/wiltshire,25/07/2016,1901758418,1190.00,Avenue Surgery ,110214,BA12,Neighbourhood & Planning,Smoking-Mgt & Commss,Public Health Commissioning,Supplies and Services,REVENUE
Wiltshire,http://opendatacommunities.org/id/unitary-authority/wiltshire,11/07/2016,5106907051,1788.21,Avery Healthcare Cepen Lodge ,126733,DL1 ,Community Services,MH OP North Locality,Adult Residential Placements - Spot Purchase,Third Party Payments,REVENUE
Wiltshire,http://opendatacommunities.org/id/unitary-authority/wiltshire,11/07/2016,5106907071,279.96,Avery Healthcare Cepen Lodge ,126733,DL1 ,Community Services,MH OP North Locality,Adult Residential Placements - Spot Purchase,Third Party Payments,REVENUE
Wiltshire,http://opendatacommunities.org/id/unitary-authority/wiltshire,27/07/2016,5106912453,2369.72,Avery Healthcare Cepen Lodge ,126733,DL1 ,Community Services,MH AOWA North Locali,Adult Residential Placements - Spot Purchase,Third Party Payments,REVENUE
Wiltshire,http://opendatacommunities.org/id/unitary-authority/wiltshire,27/07/2016,5106912545,2369.72,Avery Healthcare Cepen Lodge ,126733,DL1 ,Community Services,Chippenham,Adult Residential Placements - Spot Purchase,Third Party Payments,REVENUE
Wiltshire,http://opendatacommunities.org/id/unitary-authority/wiltshire,27/07/2016,5106912784,2369.72,Avery Healthcare Cepen Lodge ,126733,DL1 ,Community Services,Chippenham,Adult Residential Placements - Spot Purchase,Third Party Payments,REVENUE
Wiltshire,http://opendatacommunities.org/id/unitary-authority/wiltshire,27/07/2016,5106912793,2369.72,Avery Healthcare Cepen Lodge ,126733,DL1 ,Community Services,MH OP North Locality,Adult Residential Placements - Spot Purchase,Third Party Payments,REVENUE
Wiltshire,http://opendatacommunities.org/id/unitary-authority/wiltshire,27/07/2016,5106912900,2369.72,Avery Healthcare Cepen Lodge ,126733,DL1 ,Community Services,Adult Care Gross Loa,Adult Care Loans,Capital charges and Expenditure,REVENUE
Wiltshire,http://opendatacommunities.org/id/unitary-authority/wiltshire,27/07/2016,5106913108,2369.72,Avery Healthcare Cepen Lodge ,126733,DL1 ,Community Services,Chippenham,Adult Residential Placements - Spot Purchase,Third Party Payments,REVENUE
Wiltshire,http://opendatacommunities.org/id/unitary-authority/wiltshire,27/07/2016,5106913251,2369.72,Avery Healthcare Cepen Lodge ,126733,DL1 ,Community Services,MH OP North Locality,Adult Residential Placements - Spot Purchase,Third Party Payments,REVENUE
Wiltshire,http://opendatacommunities.org/id/unitary-authority/wiltshire,27/07/2016,5106913289,2369.72,Avery Healthcare Cepen Lodge ,126733,DL1 ,Community Services,Chippenham,Adult Residential Placements - Spot Purchase,Third Party Payments,REVENUE
Wiltshire,http://opendatacommunities.org/id/unitary-authority/wiltshire,27/07/2016,5106913445,2369.72,Avery Healthcare Cepen Lodge ,126733,DL1 ,Community Services,Chippenham,Adult Residential Placements - Spot Purchase,Third Party Payments,REVENUE
Wiltshire,http://opendatacommunities.org/id/unitary-authority/wiltshire,27/07/2016,5106913447,2369.72,Avery Healthcare Cepen Lodge ,126733,DL1 ,Community Services,MH AOWA North Locali,Adult Residential Placements - Spot Purchase,Third Party Payments,REVENUE
Wiltshire,http://opendatacommunities.org/id/unitary-authority/wiltshire,27/07/2016,5106913449,2369.72,Avery Healthcare Cepen Lodge ,126733,DL1 ,Community Services,Chippenham,Adult Residential Placements - Spot Purchase,Third Party Payments,REVENUE
Wiltshire,http://opendatacommunities.org/id/unitary-authority/wiltshire,27/07/2016,5106913451,2369.72,Avery Healthcare Cepen Lodge ,126733,DL1 ,Community Services,Chippenham,Adult Residential Placements - Spot Purchase,Third Party Payments,REVENUE
Wiltshire,http://opendatacommunities.org/id/unitary-authority/wiltshire,27/07/2016,5106913453,2369.72,Avery Healthcare Cepen Lodge ,126733,DL1 ,Community Services,Chippenham,Adult Residential Placements - Spot Purchase,Third Party Payments,REVENUE
Wiltshire,http://opendatacommunities.org/id/unitary-authority/wiltshire,27/07/2016,5106913485,2369.72,Avery Healthcare Cepen Lodge ,126733,DL1 ,Community Services,MH OP North Locality,Adult Residential Placements - Spot Purchase,Third Party Payments,REVENUE
Wiltshire,http://opendatacommunities.org/id/unitary-authority/wiltshire,11/07/2016,5106907143,561.79,Avery Healthcare Ltd- Langford Sali ,112676,NN4 ,Community Services,Endless/St.A,Adult Residential Placements - Spot Purchase,Third Party Payments,REVENUE
Wiltshire,http://opendatacommunities.org/id/unitary-authority/wiltshire,27/07/2016,5106912589,2800.00,Avery Healthcare Ltd- Langford Sali ,112676,NN4 ,Community Services,Downton,Adult Residential Placements - Spot Purchase,Third Party Payments,REVENUE
Wiltshire,http://opendatacommunities.org/id/unitary-authority/wiltshire,27/07/2016,5106912818,2513.60,Avery Healthcare Ltd- Langford Sali ,112676,NN4 ,Community Services,Downton,Adult Care Nursing Placements- Spot Purchase,Third Party Payments,REVENUE
Wiltshire,http://opendatacommunities.org/id/unitary-authority/wiltshire,27/07/2016,5106912819,448.00,Avery Healthcare Ltd- Langford Sali ,112676,NN4 ,Community Services,Downton,Adult Care Funded Nursing Care - Loal Auth Clients,Third Party Payments,REVENUE
Wiltshire,http://opendatacommunities.org/id/unitary-authority/wiltshire,27/07/2016,5106913189,3352.00,Avery Healthcare Ltd- Langford Sali ,112676,NN4 ,Community Services,Home Loans,Adult Care Loans,Capital charges and Expenditure,REVENUE
Wiltshire,http://opendatacommunities.org/id/unitary-authority/wiltshire,27/07/2016,5106913735,2621.16,Avery Healthcare Ltd- Langford Sali ,112676,NN4 ,Community Services,Downton,Adult Care Nursing Placements- Spot Purchase,Third Party Payments,REVENUE
Wiltshire,http://opendatacommunities.org/id/unitary-authority/wiltshire,27/07/2016,5106913736,448.00,Avery Healthcare Ltd- Langford Sali ,112676,NN4 ,Community Services,Downton,Adult Care Funded Nursing Care - Loal Auth Clients,Third Party Payments,REVENUE
Wiltshire,http://opendatacommunities.org/id/unitary-authority/wiltshire,27/07/2016,5106913855,3319.44,Avery Healthcare Ltd- Langford Sali ,112676,NN4 ,Community Services,Downton,Adult Residential Placements - Spot Purchase,Third Party Payments,REVENUE
Wiltshire,http://opendatacommunities.org/id/unitary-authority/wiltshire,27/07/2016,5106913956,2590.84,Avery Healthcare Ltd- Langford Sali ,112676,NN4 ,Community Services,Downton,Adult Care Nursing Placements- Spot Purchase,Third Party Payments,REVENUE
Wiltshire,http://opendatacommunities.org/id/unitary-authority/wiltshire,27/07/2016,5106913957,448.00,Avery Healthcare Ltd- Langford Sali ,112676,NN4 ,Community Services,Downton,Adult Care Funded Nursing Care - Loal Auth Clients,Third Party Payments,REVENUE
Wiltshire,http://opendatacommunities.org/id/unitary-authority/wiltshire,27/07/2016,5106914217,2315.20,Avery Healthcare Ltd- Langford Sali ,112676,NN4 ,Community Services,Downton,Adult Care Nursing Placements- Spot Purchase,Third Party Payments,REVENUE
Wiltshire,http://opendatacommunities.org/id/unitary-authority/wiltshire,27/07/2016,5106914218,448.00,Avery Healthcare Ltd- Langford Sali ,112676,NN4 ,Community Services,Downton,Adult Care Funded Nursing Care - Loal Auth Clients,Third Party Payments,REVENUE
Wiltshire,http://opendatacommunities.org/id/unitary-authority/wiltshire,27/07/2016,5106916293,2247.16,Avery Healthcare Ltd- Langford Sali ,112676,NN4 ,Community Services,Endless/St.A,Adult Residential Placements - Spot Purchase,Third Party Payments,REVENUE
Wiltshire,http://opendatacommunities.org/id/unitary-authority/wiltshire,12/07/2016,1901753306,914.34,Avon Care Homes Ltd - Sutton Veny H ,112612,BA5 ,Community Services,BCF-Intermediate Cr,Adult Nursing Placements - transitional beds,Third Party Payments,REVENUE
Wiltshire,http://opendatacommunities.org/id/unitary-authority/wiltshire,20/07/2016,5106909977,13553.40,Avon Care Homes Ltd - Sutton Veny H ,112612,BA5 ,Community Services,BCF-Intermediate Cr,Adult Care Nursing Placements - Void Payments,Third Party Payments,REVENUE
Wiltshire,http://opendatacommunities.org/id/unitary-authority/wiltshire,27/07/2016,5106912692,2084.60,Avon Care Homes Ltd - Sutton Veny H ,112612,BA5 ,Community Services,Orchard,Adult Care Nursing Placements- Spot Purchase,Third Party Payments,REVENUE
Wiltshire,http://opendatacommunities.org/id/unitary-authority/wiltshire,27/07/2016,5106912693,448.00,Avon Care Homes Ltd - Sutton Veny H ,112612,BA5 ,Community Services,Orchard,Adult Care Funded Nursing Care - Loal Auth Clients,Third Party Payments,REVENUE
Wiltshire,http://opendatacommunities.org/id/unitary-authority/wiltshire,27/07/2016,5106914616,2084.60,Avon Care Homes Ltd - Sutton Veny H ,112612,BA5 ,Community Services,The Avenue,Adult Care Nursing Placements- Spot Purchase,Third Party Payments,REVENUE
Wiltshire,http://opendatacommunities.org/id/unitary-authority/wiltshire,27/07/2016,5106914617,448.00,Avon Care Homes Ltd - Sutton Veny H ,112612,BA5 ,Community Services,The Avenue,Adult Care Funded Nursing Care - Loal Auth Clients,Third Party Payments,REVENUE
Wiltshire,http://opendatacommunities.org/id/unitary-authority/wiltshire,27/07/2016,5106914619,2084.60,Avon Care Homes Ltd - Sutton Veny H ,112612,BA5 ,Community Services,Orchard,Adult Care Nursing Placements- Spot Purchase,Third Party Payments,REVENUE
Wiltshire,http://opendatacommunities.org/id/unitary-authority/wiltshire,27/07/2016,5106914620,448.00,Avon Care Homes Ltd - Sutton Veny H ,112612,BA5 ,Community Services,Orchard,Adult Care Funded Nursing Care - Loal Auth Clients,Third Party Payments,REVENUE
Wiltshire,http://opendatacommunities.org/id/unitary-authority/wiltshire,27/07/2016,5106916229,2084.60,Avon Care Homes Ltd - Sutton Veny H ,112612,BA5 ,Community Services,The Avenue,Adult Care Nursing Placements- Spot Purchase,Third Party Payments,REVENUE
Wiltshire,http://opendatacommunities.org/id/unitary-authority/wiltshire,27/07/2016,5106916230,448.00,Avon Care Homes Ltd - Sutton Veny H ,112612,BA5 ,Community Services,The Avenue,Adult Care Funded Nursing Care - Loal Auth Clients,Third Party Payments,REVENUE
Wiltshire,http://opendatacommunities.org/id/unitary-authority/wiltshire,20/07/2016,5106909973,15019.20,Avon Court Care Home ,110218,LS16,Community Services,BCF-Intermediate Cr,Adult Care Nursing Placements - Void Payments,Third Party Payments,REVENUE
Wiltshire,http://opendatacommunities.org/id/unitary-authority/wiltshire,27/07/2016,5106912379,1986.12,Avon Court Care Home ,110218,LS16,Community Services,Chippenham,Adult Care Nursing Placements- Block Contract,Third Party Payments,REVENUE
Wiltshire,http://opendatacommunities.org/id/unitary-authority/wiltshire,27/07/2016,5106912380,448.00,Avon Court Care Home ,110218,LS16,Community Services,Chippenham,Adult Care Funded Nursing Care - Loal Auth Clients,Third Party Payments,REVENUE
Wiltshire,http://opendatacommunities.org/id/unitary-authority/wiltshire,27/07/2016,5106912562,2089.28,Avon Court Care Home ,110218,LS16,Community Services,Chippenham,Adult Care Nursing Placements- Spot Purchase,Third Party Payments,REVENUE
Wiltshire,http://opendatacommunities.org/id/unitary-authority/wiltshire,27/07/2016,5106912563,448.00,Avon Court Care Home ,110218,LS16,Community Services,Chippenham,Adult Care Funded Nursing Care - Loal Auth Clients,Third Party Payments,REVENUE
Wiltshire,http://opendatacommunities.org/id/unitary-authority/wiltshire,27/07/2016,5106912765,2089.28,Avon Court Care Home ,110218,LS16,Community Services,Chippenham,Adult Care Nursing Placements- Spot Purchase,Third Party Payments,REVENUE
Wiltshire,http://opendatacommunities.org/id/unitary-authority/wiltshire,27/07/2016,5106912766,448.00,Avon Court Care Home ,110218,LS16,Community Services,Chippenham,Adult Care Funded Nursing Care - Loal Auth Clients,Third Party Payments,REVENUE
Wiltshire,http://opendatacommunities.org/id/unitary-authority/wiltshire,27/07/2016,5106912935,1986.12,Avon Court Care Home ,110218,LS16,Community Services,Chippenham,Adult Care Nursing Placements- Block Contract,Third Party Payments,REVENUE
Wiltshire,http://opendatacommunities.org/id/unitary-authority/wiltshire,27/07/2016,5106912936,448.00,Avon Court Care Home ,110218,LS16,Community Services,Chippenham,Adult Care Funded Nursing Care - Loal Auth Clients,Third Party Payments,REVENUE
Wiltshire,http://opendatacommunities.org/id/unitary-authority/wiltshire,27/07/2016,5106913053,2316.24,Avon Court Care Home ,110218,LS16,Community Services,Chippenham,Adult Care Nursing Placements- Spot Purchase,Third Party Payments,REVENUE
Wiltshire,http://opendatacommunities.org/id/unitary-authority/wiltshire,27/07/2016,5106913054,448.00,Avon Court Care Home ,110218,LS16,Community Services,Chippenham,Adult Care Funded Nursing Care - Loal Auth Clients,Third Party Payments,REVENUE
Wiltshire,http://opendatacommunities.org/id/unitary-authority/wiltshire,27/07/2016,5106913164,2316.24,Avon Court Care Home ,110218,LS16,Community Services,Chippenham,Adult Care Nursing Placements- Spot Purchase,Third Party Payments,REVENUE
Wiltshire,http://opendatacommunities.org/id/unitary-authority/wiltshire,27/07/2016,5106913165,448.00,Avon Court Care Home ,110218,LS16,Community Services,Chippenham,Adult Care Funded Nursing Care - Loal Auth Clients,Third Party Payments,REVENUE
Wiltshire,http://opendatacommunities.org/id/unitary-authority/wiltshire,27/07/2016,5106913243,3292.00,Avon Court Care Home ,110218,LS16,Community Services,Home Loans,Adult Care Loans,Capital charges and Expenditure,REVENUE
Wiltshire,http://opendatacommunities.org/id/unitary-authority/wiltshire,27/07/2016,5106913380,2316.24,Avon Court Care Home ,110218,LS16,Community Services,Chippenham,Adult Care Nursing Placements- Spot Purchase,Third Party Payments,REVENUE
Wiltshire,http://opendatacommunities.org/id/unitary-authority/wiltshire,27/07/2016,5106913381,448.00,Avon Court Care Home ,110218,LS16,Community Services,Chippenham,Adult Care Funded Nursing Care - Loal Auth Clients,Third Party Payments,REVENUE
Wiltshire,http://opendatacommunities.org/id/unitary-authority/wiltshire,27/07/2016,5106913625,2035.08,Avon Court Care Home ,110218,LS16,Community Services,Chippenham,Adult Care Nursing Placements- Spot Purchase,Third Party Payments,REVENUE
Wiltshire,http://opendatacommunities.org/id/unitary-authority/wiltshire,27/07/2016,5106913626,625.00,Avon Court Care Home ,110218,LS16,Community Services,Chippenham,Adult Care Funded Nursing Care - Loal Auth Clients,Third Party Payments,REVENUE
Wiltshire,http://opendatacommunities.org/id/unitary-authority/wiltshire,27/07/2016,5106913628,594.21,Avon Court Care Home ,110218,LS16,Community Services,Chippenham,Adult Care Funded Nursing Care - Loal Auth Clients,Third Party Payments,REVENUE
Wiltshire,http://opendatacommunities.org/id/unitary-authority/wiltshire,27/07/2016,5106913632,2081.04,Avon Court Care Home ,110218,LS16,Community Services,Chippenham,Adult Care Nursing Placements- Spot Purchase,Third Party Payments,REVENUE
Wiltshire,http://opendatacommunities.org/id/unitary-authority/wiltshire,27/07/2016,5106913633,625.00,Avon Court Care Home ,110218,LS16,Community Services,Chippenham,Adult Care Funded Nursing Care - Loal Auth Clients,Third Party Payments,REVENUE
Wiltshire,http://opendatacommunities.org/id/unitary-authority/wiltshire,27/07/2016,5106913635,594.21,Avon Court Care Home ,110218,LS16,Community Services,Chippenham,Adult Care Funded Nursing Care - Loal Auth Clients,Third Party Payments,REVENUE
Wiltshire,http://opendatacommunities.org/id/unitary-authority/wiltshire,27/07/2016,5106913711,2035.08,Avon Court Care Home ,110218,LS16,Community Services,Chippenham,Adult Care Nursing Placements- Spot Purchase,Third Party Payments,REVENUE
Wiltshire,http://opendatacommunities.org/id/unitary-authority/wiltshire,27/07/2016,5106913712,625.00,Avon Court Care Home ,110218,LS16,Community Services,Chippenham,Adult Care Funded Nursing Care - Loal Auth Clients,Third Party Payments,REVENUE
Wiltshire,http://opendatacommunities.org/id/unitary-authority/wiltshire,27/07/2016,5106913714,594.21,Avon Court Care Home ,110218,LS16,Community Services,Chippenham,Adult Care Funded Nursing Care - Loal Auth Clients,Third Party Payments,REVENUE
Wiltshire,http://opendatacommunities.org/id/unitary-authority/wiltshire,27/07/2016,5106913720,2035.08,Avon Court Care Home ,110218,LS16,Community Services,Chippenham,Adult Care Nursing Placements- Spot Purchase,Third Party Payments,REVENUE
Wiltshire,http://opendatacommunities.org/id/unitary-authority/wiltshire,27/07/2016,5106913721,625.00,Avon Court Care Home ,110218,LS16,Community Services,Chippenham,Adult Care Funded Nursing Care - Loal Auth Clients,Third Party Payments,REVENUE
Wiltshire,http://opendatacommunities.org/id/unitary-authority/wiltshire,27/07/2016,5106913723,594.21,Avon Court Care Home ,110218,LS16,Community Services,Chippenham,Adult Care Funded Nursing Care - Loal Auth Clients,Third Party Payments,REVENUE
Wiltshire,http://opendatacommunities.org/id/unitary-authority/wiltshire,27/07/2016,5106914277,1986.12,Avon Court Care Home ,110218,LS16,Community Services,Chippenham,Adult Care Nursing Placements- Block Contract,Third Party Payments,REVENUE
Wiltshire,http://opendatacommunities.org/id/unitary-authority/wiltshire,27/07/2016,5106914278,448.00,Avon Court Care Home ,110218,LS16,Community Services,Chippenham,Adult Care Funded Nursing Care - Loal Auth Clients,Third Party Payments,REVENUE
Wiltshire,http://opendatacommunities.org/id/unitary-authority/wiltshire,27/07/2016,5106914348,1986.12,Avon Court Care Home ,110218,LS16,Community Services,Chippenham,Adult Care Nursing Placements- Block Contract,Third Party Payments,REVENUE
Wiltshire,http://opendatacommunities.org/id/unitary-authority/wiltshire,27/07/2016,5106914349,448.00,Avon Court Care Home ,110218,LS16,Community Services,Chippenham,Adult Care Funded Nursing Care - Loal Auth Clients,Third Party Payments,REVENUE
Wiltshire,http://opendatacommunities.org/id/unitary-authority/wiltshire,27/07/2016,5106914542,1986.12,Avon Court Care Home ,110218,LS16,Community Services,Chippenham,Adult Care Nursing Placements- Block Contract,Third Party Payments,REVENUE
Wiltshire,http://opendatacommunities.org/id/unitary-authority/wiltshire,27/07/2016,5106914543,448.00,Avon Court Care Home ,110218,LS16,Community Services,Chippenham,Adult Care Funded Nursing Care - Loal Auth Clients,Third Party Payments,REVENUE
Wiltshire,http://opendatacommunities.org/id/unitary-authority/wiltshire,27/07/2016,5106914640,2856.44,Avon Court Care Home ,110218,LS16,Community Services,Chippenham,Adult Care Nursing Placements- Spot Purchase,Third Party Payments,REVENUE
Wiltshire,http://opendatacommunities.org/id/unitary-authority/wiltshire,27/07/2016,5106914641,625.00,Avon Court Care Home ,110218,LS16,Community Services,Chippenham,Adult Care Funded Nursing Care - Loal Auth Clients,Third Party Payments,REVENUE
Wiltshire,http://opendatacommunities.org/id/unitary-authority/wiltshire,27/07/2016,5106914643,594.21,Avon Court Care Home ,110218,LS16,Community Services,Chippenham,Adult Care Funded Nursing Care - Loal Auth Clients,Third Party Payments,REVENUE
Wiltshire,http://opendatacommunities.org/id/unitary-authority/wiltshire,27/07/2016,5106914768,1986.12,Avon Court Care Home ,110218,LS16,Community Services,Chippenham,Adult Care Nursing Placements- Block Contract,Third Party Payments,REVENUE
Wiltshire,http://opendatacommunities.org/id/unitary-authority/wiltshire,27/07/2016,5106914769,448.00,Avon Court Care Home ,110218,LS16,Community Services,Chippenham,Adult Care Funded Nursing Care - Loal Auth Clients,Third Party Payments,REVENUE
Wiltshire,http://opendatacommunities.org/id/unitary-authority/wiltshire,27/07/2016,5106915564,1986.12,Avon Court Care Home ,110218,LS16,Community Services,Chippenham,Adult Care Nursing Placements- Block Contract,Third Party Payments,REVENUE
Wiltshire,http://opendatacommunities.org/id/unitary-authority/wiltshire,27/07/2016,5106915565,448.00,Avon Court Care Home ,110218,LS16,Community Services,Chippenham,Adult Care Funded Nursing Care - Loal Auth Clients,Third Party Payments,REVENUE
Wiltshire,http://opendatacommunities.org/id/unitary-authority/wiltshire,27/07/2016,5106915983,1986.12,Avon Court Care Home ,110218,LS16,Community Services,Chippenham,Adult Care Nursing Placements- Block Contract,Third Party Payments,REVENUE
Wiltshire,http://opendatacommunities.org/id/unitary-authority/wiltshire,27/07/2016,5106915984,625.00,Avon Court Care Home ,110218,LS16,Community Services,Chippenham,Adult Care Funded Nursing Care - Loal Auth Clients,Third Party Payments,REVENUE
Wiltshire,http://opendatacommunities.org/id/unitary-authority/wiltshire,27/07/2016,5106915986,442.50,Avon Court Care Home ,110218,LS16,Community Services,Chippenham,Adult Care Funded Nursing Care - Loal Auth Clients,Third Party Payments,REVENUE
Wiltshire,http://opendatacommunities.org/id/unitary-authority/wiltshire,27/07/2016,5106916344,2089.28,Avon Court Care Home ,110218,LS16,Community Services,Chippenham,Adult Residential Placements - Spot Purchase,Third Party Payments,REVENUE
Wiltshire,http://opendatacommunities.org/id/unitary-authority/wiltshire,27/07/2016,5106916463,820.82,Avon Court Care Home ,110218,LS16,Community Services,Chippenham,Adult Care Nursing Placements - 12 Week,Third Party Payments,REVENUE
Wiltshire,http://opendatacommunities.org/id/unitary-authority/wiltshire,27/07/2016,5106916466,2089.28,Avon Court Care Home ,110218,LS16,Community Services,Chippenham,Adult Care Nursing Placements - 12 Week,Third Party Payments,REVENUE
